﻿Organisation name,Effective date,Supplier (Beneficiary) name,Department,Purpose of spend,Payment Date,Transaction number, Amount (Gross) 
Staffordshire County Council,31/01/2015,Active Assistance,Health,Supplies & Services,07/01/2015,4501357759," 1,061.20 "
Staffordshire County Council,31/01/2015,Active Assistance,Health,Supplies & Services,12/01/2015,4501359517," 1,061.20 "
Staffordshire County Council,31/01/2015,Active Assistance,Health,Supplies & Services,12/01/2015,4501359610," 1,061.20 "
Staffordshire County Council,31/01/2015,Active Assistance,Health,Supplies & Services,19/01/2015,4501361011," 1,061.20 "
Staffordshire County Council,31/01/2015,Active Assistance,Health,Supplies & Services,26/01/2015,4501363148," 1,061.20 "
Staffordshire County Council,31/01/2015,1 STOP JETTING LTD, Schools,Premises,28/01/2015,3005485253, 765.00 
Staffordshire County Council,31/01/2015,123 Comms Ltd, Schools,Supplies & Services,12/01/2015,3005474360, 898.80 
Staffordshire County Council,31/01/2015,1st Brereton Scout Group,Law & Governence,Third Party,07/01/2015,3005468398," 2,000.00 "
Staffordshire County Council,31/01/2015,1ST CLASS FOOTBALL COACHING, Schools,Supplies & Services,29/01/2015,3005493287, 860.00 
Staffordshire County Council,31/01/2015,24HR WEST SIDE TAXIS,Other Education and Children's services,Transport,22/01/2015,3005483544, -   
Staffordshire County Council,31/01/2015,24HR WEST SIDE TAXIS,Other Education and Children's services,Transport,22/01/2015,3005483544, -   
Staffordshire County Council,31/01/2015,24HR WEST SIDE TAXIS,Other Education and Children's services,Transport,22/01/2015,3005483544, -   
Staffordshire County Council,31/01/2015,24HR WEST SIDE TAXIS,Other Education and Children's services,Transport,22/01/2015,3005483544, -   
Staffordshire County Council,31/01/2015,24HR WEST SIDE TAXIS,Other Education and Children's services,Transport,22/01/2015,3005483544, -   
Staffordshire County Council,31/01/2015,24HR WEST SIDE TAXIS,Other Education and Children's services,Transport,22/01/2015,3005483544, -   
Staffordshire County Council,31/01/2015,24HR WEST SIDE TAXIS,Other Education and Children's services,Transport,22/01/2015,3005483544, -   
Staffordshire County Council,31/01/2015,24HR WEST SIDE TAXIS,Other Education and Children's services,Transport,22/01/2015,3005483544, -   
Staffordshire County Council,31/01/2015,24HR WEST SIDE TAXIS,Other Education and Children's services,Transport,22/01/2015,3005483544, -   
Staffordshire County Council,31/01/2015,24HR WEST SIDE TAXIS,Other Education and Children's services,Transport,22/01/2015,3005483544," 30,786.08 "
Staffordshire County Council,31/01/2015,24HR WEST SIDE TAXIS,Other Education and Children's services,Transport,22/01/2015,3005483544, -   
Staffordshire County Council,31/01/2015,24HR WEST SIDE TAXIS,Other Education and Children's services,Transport,22/01/2015,3005483544, -   
Staffordshire County Council,31/01/2015,24HR WEST SIDE TAXIS,Other Education and Children's services,Transport,22/01/2015,3005483544, -   
Staffordshire County Council,31/01/2015,24HR WEST SIDE TAXIS,Other Education and Children's services,Transport,22/01/2015,3005483544, -   
Staffordshire County Council,31/01/2015,24HR WEST SIDE TAXIS,Other Education and Children's services,Transport,22/01/2015,3005483544, -   
Staffordshire County Council,31/01/2015,2SIMPLE SOFTWARE, Schools,Supplies & Services,14/01/2015,3005480400, 600.00 
Staffordshire County Council,31/01/2015,3L CARE LTD,Adult Social Care,Supplies & Services,14/01/2015,3005479477," 1,402.56 "
Staffordshire County Council,31/01/2015,3P Learning Ltd, Schools,Supplies & Services,27/01/2015,3005496600," 1,656.00 "
Staffordshire County Council,31/01/2015,4 Forces Keyholding Ltd,Highways and transport,Capital,12/01/2015,4501359389," 17,339.45 "
Staffordshire County Council,31/01/2015,4 Forces Keyholding Ltd,Highways and transport,Capital,12/01/2015,4501359402, 619.69 
Staffordshire County Council,31/01/2015,4 FUELS, Schools,Premises,26/01/2015,3005493001, 940.80 
Staffordshire County Council,31/01/2015,5 TEN TAXIS,Other Education and Children's services,Transport,07/01/2015,4501357868," 1,332.00 "
Staffordshire County Council,31/01/2015,57 TAXIS,Other Education and Children's services,Transport,20/01/2015,3005472000, -   
Staffordshire County Council,31/01/2015,57 TAXIS,Other Education and Children's services,Transport,20/01/2015,3005472000, -   
Staffordshire County Council,31/01/2015,57 TAXIS,Other Education and Children's services,Transport,20/01/2015,3005472000, -   
Staffordshire County Council,31/01/2015,57 TAXIS,Other Education and Children's services,Transport,20/01/2015,3005472000, -   
Staffordshire County Council,31/01/2015,57 TAXIS,Other Education and Children's services,Transport,20/01/2015,3005472000, -   
Staffordshire County Council,31/01/2015,57 TAXIS,Other Education and Children's services,Transport,20/01/2015,3005472000, -   
Staffordshire County Council,31/01/2015,57 TAXIS,Other Education and Children's services,Transport,20/01/2015,3005472000," 5,528.12 "
Staffordshire County Council,31/01/2015,57 TAXIS,Other Education and Children's services,Transport,07/01/2015,4501357869," 3,564.00 "
Staffordshire County Council,31/01/2015,57 TAXIS,Other Education and Children's services,Transport,23/01/2015,4501363415," 2,844.00 "
Staffordshire County Council,31/01/2015,58 Taxis,Other Education and Children's services,Transport,14/01/2015,3005469838," 2,240.00 "
Staffordshire County Council,31/01/2015,58 Taxis,Other Education and Children's services,Transport,14/01/2015,3005469838, -   
Staffordshire County Council,31/01/2015,6061 CARS,Other Education and Children's services,Transport,07/01/2015,3005468654, -   
Staffordshire County Council,31/01/2015,6061 CARS,Other Education and Children's services,Transport,07/01/2015,3005468654, -   
Staffordshire County Council,31/01/2015,6061 CARS,Other Education and Children's services,Transport,07/01/2015,3005468654, -   
Staffordshire County Council,31/01/2015,6061 CARS,Other Education and Children's services,Transport,07/01/2015,3005468654, -   
Staffordshire County Council,31/01/2015,6061 CARS,Other Education and Children's services,Transport,07/01/2015,3005468654, -   
Staffordshire County Council,31/01/2015,6061 CARS,Other Education and Children's services,Transport,07/01/2015,3005468654, -   
Staffordshire County Council,31/01/2015,6061 CARS,Other Education and Children's services,Transport,07/01/2015,3005468654, -   
Staffordshire County Council,31/01/2015,6061 CARS,Other Education and Children's services,Transport,07/01/2015,3005468654, -   
Staffordshire County Council,31/01/2015,6061 CARS,Other Education and Children's services,Transport,07/01/2015,3005468654," 15,627.08 "
Staffordshire County Council,31/01/2015,6061 CARS,Adult Social Care,Transport,26/01/2015,3005492663," 1,152.00 "
Staffordshire County Council,31/01/2015,A & D Taxis,Other Education and Children's services,Transport,15/01/2015,3005472144," 1,635.00 "
Staffordshire County Council,31/01/2015,A & D Taxis,Other Education and Children's services,Transport,15/01/2015,3005472144, -   
Staffordshire County Council,31/01/2015,A & H Cars,Other Education and Children's services,Transport,12/01/2015,3005468844," 1,362.45 "
Staffordshire County Council,31/01/2015,A & H Cars,Other Education and Children's services,Transport,12/01/2015,3005468844, -   
Staffordshire County Council,31/01/2015,A & K TRAVEL,Other Education and Children's services,Transport,07/01/2015,3005468774, -   
Staffordshire County Council,31/01/2015,A & K TRAVEL,Other Education and Children's services,Transport,07/01/2015,3005468774, -   
Staffordshire County Council,31/01/2015,A & K TRAVEL,Other Education and Children's services,Transport,07/01/2015,3005468774, -   
Staffordshire County Council,31/01/2015,A & K TRAVEL,Other Education and Children's services,Transport,07/01/2015,3005468774, -   
Staffordshire County Council,31/01/2015,A & K TRAVEL,Other Education and Children's services,Transport,07/01/2015,3005468774, -   
Staffordshire County Council,31/01/2015,A & K TRAVEL,Other Education and Children's services,Transport,07/01/2015,3005468774, -   
Staffordshire County Council,31/01/2015,A & K TRAVEL,Other Education and Children's services,Transport,07/01/2015,3005468774," 8,782.88 "
Staffordshire County Council,31/01/2015,A & K TRAVEL,Other Education and Children's services,Transport,09/01/2015,4501359390," 1,627.00 "
Staffordshire County Council,31/01/2015,A & K TRAVEL,Other Education and Children's services,Transport,09/01/2015,4501359403," 1,284.48 "
Staffordshire County Council,31/01/2015,A & K TRAVEL,Other Education and Children's services,Transport,21/01/2015,4501362499," 1,455.74 "
Staffordshire County Council,31/01/2015,A & S ENTERPRISES LTD, Schools,Capital,07/01/2015,3005468388," 98,874.01 "
Staffordshire County Council,31/01/2015,A & S ENTERPRISES LTD,Corporate & Democratic Core,Capital,23/01/2015,4501362966," 3,824.99 "
Staffordshire County Council,31/01/2015,A A AFSAR,Other Education and Children's services,Transport,16/01/2015,3005474306, -   
Staffordshire County Council,31/01/2015,A A AFSAR,Other Education and Children's services,Transport,16/01/2015,3005474306, -   
Staffordshire County Council,31/01/2015,A A AFSAR,Other Education and Children's services,Transport,16/01/2015,3005474306, -   
Staffordshire County Council,31/01/2015,A A AFSAR,Other Education and Children's services,Transport,16/01/2015,3005474306, -   
Staffordshire County Council,31/01/2015,A A AFSAR,Other Education and Children's services,Transport,16/01/2015,3005474306, -   
Staffordshire County Council,31/01/2015,A A AFSAR,Other Education and Children's services,Transport,16/01/2015,3005474306, -   
Staffordshire County Council,31/01/2015,A A AFSAR,Other Education and Children's services,Transport,16/01/2015,3005474306, -   
Staffordshire County Council,31/01/2015,A A AFSAR,Other Education and Children's services,Transport,16/01/2015,3005474306, -   
Staffordshire County Council,31/01/2015,A A AFSAR,Other Education and Children's services,Transport,16/01/2015,3005474306, -   
Staffordshire County Council,31/01/2015,A A AFSAR,Other Education and Children's services,Transport,16/01/2015,3005474306, -   
Staffordshire County Council,31/01/2015,A A AFSAR,Other Education and Children's services,Transport,16/01/2015,3005474306, -   
Staffordshire County Council,31/01/2015,A A AFSAR,Other Education and Children's services,Transport,16/01/2015,3005474306, -   
Staffordshire County Council,31/01/2015,A A AFSAR,Other Education and Children's services,Transport,16/01/2015,3005474306, -   
Staffordshire County Council,31/01/2015,A A AFSAR,Other Education and Children's services,Transport,16/01/2015,3005474306, -   
Staffordshire County Council,31/01/2015,A A AFSAR,Planning & Economic Development,Transport,16/01/2015,3005474306, 240.00 
Staffordshire County Council,31/01/2015,A A AFSAR,Other Education and Children's services,Transport,16/01/2015,3005474306, -   
Staffordshire County Council,31/01/2015,A A AFSAR,Other Education and Children's services,Transport,16/01/2015,3005474306, -   
Staffordshire County Council,31/01/2015,A A AFSAR,Other Education and Children's services,Transport,16/01/2015,3005474306," 21,236.65 "
Staffordshire County Council,31/01/2015,A ALEKSA, Schools,Supplies & Services,07/01/2015,3005457953, 735.00 
Staffordshire County Council,31/01/2015,A C S, Schools,Supplies & Services,28/01/2015,4501364256, 811.20 
Staffordshire County Council,31/01/2015,A COPE, Schools,Employees,29/01/2015,3005499441, 521.00 
Staffordshire County Council,31/01/2015,A CRAVEN,Other Education and Children's services,Supplies & Services,19/01/2015,3005469219," 4,350.00 "
Staffordshire County Council,31/01/2015,A D RUTTER,Other Education and Children's services,Transport,07/01/2015,3005469895," 1,604.85 "
Staffordshire County Council,31/01/2015,A Dewis, Schools,Supplies & Services,14/01/2015,7008643603, 533.53 
Staffordshire County Council,31/01/2015,A F CONSULTING NORTHERN LTD, Schools,Supplies & Services,30/01/2015,3005484915, 930.84 
Staffordshire County Council,31/01/2015,A FOX,Other Education and Children's services,Supplies & Services,07/01/2015,3005469232," 1,080.00 "
Staffordshire County Council,31/01/2015,A FOX,Other Education and Children's services,Supplies & Services,07/01/2015,3005469356," 1,020.00 "
Staffordshire County Council,31/01/2015,A FOX, Schools,Supplies & Services,09/01/2015,3005472270," 1,200.00 "
Staffordshire County Council,31/01/2015,A Gardner, Schools,Supplies & Services,14/01/2015,7008643562, 533.53 
Staffordshire County Council,31/01/2015,A I D FUEL OILS LTD, Schools,Premises,08/01/2015,3005470280," 3,786.59 "
Staffordshire County Council,31/01/2015,A I D FUEL OILS LTD, Schools,Premises,29/01/2015,3005487512," 3,596.99 "
Staffordshire County Council,31/01/2015,A I D FUEL OILS LTD,Planning & Economic Development,Transport,22/01/2015,4501360857, 937.41 
Staffordshire County Council,31/01/2015,A Jobson, Schools,Supplies & Services,14/01/2015,7008643865, 796.44 
Staffordshire County Council,31/01/2015,A Lavan, Schools,Employees,28/01/2015,3005482311, 850.00 
Staffordshire County Council,31/01/2015,A Matthews Travel,Other Education and Children's services,Transport,14/01/2015,3005469225, -   
Staffordshire County Council,31/01/2015,A Matthews Travel,Other Education and Children's services,Transport,14/01/2015,3005469225, 567.45 
Staffordshire County Council,31/01/2015,A N FAULKNER,Adult Social Care,Supplies & Services,12/01/2015,7008632721, 780.00 
Staffordshire County Council,31/01/2015,A N FAULKNER,Adult Social Care,Supplies & Services,26/01/2015,7008661061, 780.00 
Staffordshire County Council,31/01/2015,A RIDSDALE SMITH, Schools,Supplies & Services,14/01/2015,7008643720, 533.53 
Staffordshire County Council,31/01/2015,A RIDSDALE SMITH, Schools,Supplies & Services,14/01/2015,7008644044," 1,061.92 "
Staffordshire County Council,31/01/2015,A S J FACILITIES BUILDING MGNT, Schools,Premises,23/01/2015,4501363528," 1,054.80 "
Staffordshire County Council,31/01/2015,A S J FACILITIES BUILDING MGNT, Schools,Third Party,27/01/2015,4501363542," 8,376.00 "
Staffordshire County Council,31/01/2015,A SCOTT, Schools,Supplies & Services,14/01/2015,7008643919," 1,592.88 "
Staffordshire County Council,31/01/2015,A SHAW-MATTHEWS, Schools,Supplies & Services,14/01/2015,7008643722, 533.53 
Staffordshire County Council,31/01/2015,A SHAW-MATTHEWS, Schools,Supplies & Services,14/01/2015,7008644046, 929.18 
Staffordshire County Council,31/01/2015,A Sporting Chance Ltd, Schools,Supplies & Services,19/01/2015,3005473074," 2,178.00 "
Staffordshire County Council,31/01/2015,A Sporting Chance Ltd, Schools,Employees,19/01/2015,3005477535," 2,508.00 "
Staffordshire County Council,31/01/2015,A Sporting Chance Ltd, Schools,Employees,19/01/2015,3005480046," 2,508.00 "
Staffordshire County Council,31/01/2015,A Sporting Chance Ltd, Schools,Employees,19/01/2015,3005481663," 2,508.00 "
Staffordshire County Council,31/01/2015,A STAR KRAV MAGA, Schools,Supplies & Services,09/01/2015,3005473426, -   
Staffordshire County Council,31/01/2015,A STAR KRAV MAGA, Schools,Supplies & Services,09/01/2015,3005473426," 1,350.00 "
Staffordshire County Council,31/01/2015,A STAR KRAV MAGA, Schools,Supplies & Services,09/01/2015,3005473426, -   
Staffordshire County Council,31/01/2015,A WEAVER,Highways and transport,Supplies & Services,13/01/2015,4501357905," 1,837.50 "
Staffordshire County Council,31/01/2015,A WINSTANLEY,Law & Governence,Supplies & Services,30/01/2015,3005483518, 900.00 
Staffordshire County Council,31/01/2015,A1 EMBASSY TAXIS LTD,Other Education and Children's services,Transport,15/01/2015,3005469646, -   
Staffordshire County Council,31/01/2015,A1 EMBASSY TAXIS LTD,Other Education and Children's services,Transport,15/01/2015,3005469646," 14,491.19 "
Staffordshire County Council,31/01/2015,A1 EMBASSY TAXIS LTD,Other Education and Children's services,Transport,15/01/2015,3005469646, -   
Staffordshire County Council,31/01/2015,A1 EMBASSY TAXIS LTD,Other Education and Children's services,Transport,15/01/2015,3005469646, -   
Staffordshire County Council,31/01/2015,A1 EMBASSY TAXIS LTD,Other Education and Children's services,Transport,15/01/2015,3005469646, -   
Staffordshire County Council,31/01/2015,A1 EMBASSY TAXIS LTD,Other Education and Children's services,Transport,15/01/2015,3005469646, -   
Staffordshire County Council,31/01/2015,A1 EMBASSY TAXIS LTD,Other Education and Children's services,Transport,15/01/2015,3005469646, -   
Staffordshire County Council,31/01/2015,A1 EMBASSY TAXIS LTD,Other Education and Children's services,Transport,15/01/2015,3005469646, -   
Staffordshire County Council,31/01/2015,A1 EMBASSY TAXIS LTD,Other Education and Children's services,Transport,15/01/2015,3005469646, -   
Staffordshire County Council,31/01/2015,A1 EMBASSY TAXIS LTD,Other Education and Children's services,Transport,15/01/2015,3005469646, -   
Staffordshire County Council,31/01/2015,A1 EMBASSY TAXIS LTD,Other Education and Children's services,Transport,15/01/2015,3005469646, -   
Staffordshire County Council,31/01/2015,A1 EMBASSY TAXIS LTD,Other Education and Children's services,Transport,15/01/2015,3005469651," 6,593.04 "
Staffordshire County Council,31/01/2015,A1 EMBASSY TAXIS LTD,Other Education and Children's services,Transport,15/01/2015,3005469651, -   
Staffordshire County Council,31/01/2015,A1 EMBASSY TAXIS LTD,Other Education and Children's services,Transport,15/01/2015,3005469651, -   
Staffordshire County Council,31/01/2015,A1 EMBASSY TAXIS LTD,Other Education and Children's services,Transport,15/01/2015,3005469651, -   
Staffordshire County Council,31/01/2015,A1 EMBASSY TAXIS LTD,Other Education and Children's services,Transport,15/01/2015,3005469651, -   
Staffordshire County Council,31/01/2015,A1 EMBASSY TAXIS LTD,Other Education and Children's services,Transport,16/01/2015,3005479763, -   
Staffordshire County Council,31/01/2015,A1 EMBASSY TAXIS LTD,Other Education and Children's services,Transport,16/01/2015,3005479763," 1,752.00 "
Staffordshire County Council,31/01/2015,A1 EMBASSY TAXIS LTD,Other Education and Children's services,Transport,16/01/2015,3005479777," 1,576.80 "
Staffordshire County Council,31/01/2015,A1 EMBASSY TAXIS LTD,Other Education and Children's services,Transport,16/01/2015,3005479777, -   
Staffordshire County Council,31/01/2015,A1 EMBASSY TAXIS LTD,Other Education and Children's services,Transport,27/01/2015,3005493125," 2,290.14 "
Staffordshire County Council,31/01/2015,A1 EMBASSY TAXIS LTD,Other Education and Children's services,Transport,27/01/2015,3005493125, -   
Staffordshire County Council,31/01/2015,A2B Cars,Other Education and Children's services,Transport,07/01/2015,3005469621, -   
Staffordshire County Council,31/01/2015,A2B Cars,Other Education and Children's services,Transport,07/01/2015,3005469621, -   
Staffordshire County Council,31/01/2015,A2B Cars,Other Education and Children's services,Transport,07/01/2015,3005469621, -   
Staffordshire County Council,31/01/2015,A2B Cars,Other Education and Children's services,Transport,07/01/2015,3005469621, -   
Staffordshire County Council,31/01/2015,A2B Cars,Other Education and Children's services,Transport,07/01/2015,3005469621, -   
Staffordshire County Council,31/01/2015,A2B Cars,Other Education and Children's services,Transport,07/01/2015,3005469621, -   
Staffordshire County Council,31/01/2015,A2B Cars,Other Education and Children's services,Transport,07/01/2015,3005469621," 5,596.85 "
Staffordshire County Council,31/01/2015,A2B Village Taxis,Other Education and Children's services,Transport,09/01/2015,3005473204," 6,925.61 "
Staffordshire County Council,31/01/2015,A2B Village Taxis,Other Education and Children's services,Transport,09/01/2015,3005473204, -   
Staffordshire County Council,31/01/2015,A2B Village Taxis,Other Education and Children's services,Transport,09/01/2015,3005473204, -   
Staffordshire County Council,31/01/2015,A2B Village Taxis,Other Education and Children's services,Transport,09/01/2015,3005473204, -   
Staffordshire County Council,31/01/2015,A2B Village Taxis,Other Education and Children's services,Transport,09/01/2015,3005473204, -   
Staffordshire County Council,31/01/2015,A2B Village Taxis,Other Education and Children's services,Transport,09/01/2015,3005473204, -   
Staffordshire County Council,31/01/2015,A2B Village Taxis,Other Education and Children's services,Transport,09/01/2015,3005473204, -   
Staffordshire County Council,31/01/2015,A2Z TAXIS,Other Education and Children's services,Transport,13/01/2015,3005470008, -   
Staffordshire County Council,31/01/2015,A2Z TAXIS,Other Education and Children's services,Transport,13/01/2015,3005470008, -   
Staffordshire County Council,31/01/2015,A2Z TAXIS,Other Education and Children's services,Transport,13/01/2015,3005470008, -   
Staffordshire County Council,31/01/2015,A2Z TAXIS,Other Education and Children's services,Transport,13/01/2015,3005470008, -   
Staffordshire County Council,31/01/2015,A2Z TAXIS,Other Education and Children's services,Transport,13/01/2015,3005470008, -   
Staffordshire County Council,31/01/2015,A2Z TAXIS,Other Education and Children's services,Transport,13/01/2015,3005470008," 17,310.84 "
Staffordshire County Council,31/01/2015,Aaron & Partners,Highways and transport,Capital,19/01/2015,3005484542," 224,100.00 "
Staffordshire County Council,31/01/2015,ABACUS TRAINING, Schools,Supplies & Services,26/01/2015,3005492803," 1,362.00 "
Staffordshire County Council,31/01/2015,ABBOTS BROMLEY SCHOOL FOR GIRL, Schools,Supplies & Services,09/01/2015,3005467443," 2,849.75 "
Staffordshire County Council,31/01/2015,ABC COUNTDOWN CARS,Other Education and Children's services,Transport,07/01/2015,3005468985, -   
Staffordshire County Council,31/01/2015,ABC COUNTDOWN CARS,Other Education and Children's services,Transport,07/01/2015,3005468985, -   
Staffordshire County Council,31/01/2015,ABC COUNTDOWN CARS,Other Education and Children's services,Transport,07/01/2015,3005468985, -   
Staffordshire County Council,31/01/2015,ABC COUNTDOWN CARS,Other Education and Children's services,Transport,07/01/2015,3005468985, -   
Staffordshire County Council,31/01/2015,ABC COUNTDOWN CARS,Other Education and Children's services,Transport,07/01/2015,3005468985, -   
Staffordshire County Council,31/01/2015,ABC COUNTDOWN CARS,Other Education and Children's services,Transport,07/01/2015,3005468985, -   
Staffordshire County Council,31/01/2015,ABC COUNTDOWN CARS,Other Education and Children's services,Transport,07/01/2015,3005468985," 10,173.06 "
Staffordshire County Council,31/01/2015,ABC COUNTDOWN CARS,Other Education and Children's services,Transport,07/01/2015,3005468985, -   
Staffordshire County Council,31/01/2015,ABC COUNTDOWN CARS,Other Education and Children's services,Transport,07/01/2015,3005468985, -   
Staffordshire County Council,31/01/2015,ABC COUNTDOWN CARS, Schools,Supplies & Services,29/01/2015,3005485599, 142.20 
Staffordshire County Council,31/01/2015,ABC COUNTDOWN CARS, Schools,Transport,29/01/2015,3005485599, 495.00 
Staffordshire County Council,31/01/2015,ABC EARLY LEARNING & CHLDCRE C, Schools,Supplies & Services,29/01/2015,3005484939," 1,022.12 "
Staffordshire County Council,31/01/2015,ABC Fostering Services Ltd,Other Education and Children's services,Supplies & Services,26/01/2015,7008667837," 3,279.80 "
Staffordshire County Council,31/01/2015,ABC Fostering Services Ltd,Other Education and Children's services,Supplies & Services,26/01/2015,7008667843," 6,689.80 "
Staffordshire County Council,31/01/2015,ABC Fostering Services Ltd,Other Education and Children's services,Supplies & Services,26/01/2015,7008667855," 3,565.00 "
Staffordshire County Council,31/01/2015,ABC SUPREME LTD,Other Education and Children's services,Transport,14/01/2015,3005471953, -   
Staffordshire County Council,31/01/2015,ABC SUPREME LTD,Other Education and Children's services,Transport,14/01/2015,3005471953, -   
Staffordshire County Council,31/01/2015,ABC SUPREME LTD,Other Education and Children's services,Transport,14/01/2015,3005471953, -   
Staffordshire County Council,31/01/2015,ABC SUPREME LTD,Other Education and Children's services,Transport,14/01/2015,3005471953, -   
Staffordshire County Council,31/01/2015,ABC SUPREME LTD,Other Education and Children's services,Transport,14/01/2015,3005471953, -   
Staffordshire County Council,31/01/2015,ABC SUPREME LTD,Other Education and Children's services,Transport,14/01/2015,3005471953," 4,375.20 "
Staffordshire County Council,31/01/2015,ABC SUPREME LTD,Other Education and Children's services,Transport,16/01/2015,3005473079, 626.40 
Staffordshire County Council,31/01/2015,ABC SUPREME LTD,Planning & Economic Development,Transport,15/01/2015,3005480486," 3,168.00 "
Staffordshire County Council,31/01/2015,ABC SUPREME LTD,Planning & Economic Development,Transport,15/01/2015,3005480523," 4,081.70 "
Staffordshire County Council,31/01/2015,ABC SUPREME LTD,Planning & Economic Development,Transport,15/01/2015,3005480532," 3,001.50 "
Staffordshire County Council,31/01/2015,ABC SUPREME LTD,Planning & Economic Development,Transport,15/01/2015,3005480539," 3,860.51 "
Staffordshire County Council,31/01/2015,ABC TEACHERS LIMITED, Schools,Employees,07/01/2015,3005468648, -   
Staffordshire County Council,31/01/2015,ABC TEACHERS LIMITED, Schools,Employees,07/01/2015,3005468648," 2,383.08 "
Staffordshire County Council,31/01/2015,ABC TEACHERS LIMITED, Schools,Employees,07/01/2015,3005468716, 833.93 
Staffordshire County Council,31/01/2015,ABC TEACHERS LIMITED, Schools,Employees,07/01/2015,3005468762, 677.94 
Staffordshire County Council,31/01/2015,ABC TEACHERS LIMITED, Schools,Supplies & Services,07/01/2015,3005468797, 600.00 
Staffordshire County Council,31/01/2015,ABC TEACHERS LIMITED, Schools,Employees,07/01/2015,3005469146, 503.95 
Staffordshire County Council,31/01/2015,ABC TEACHERS LIMITED, Schools,Employees,09/01/2015,3005470000, 719.98 
Staffordshire County Council,31/01/2015,ABC TEACHERS LIMITED, Schools,Employees,09/01/2015,3005470006, 887.96 
Staffordshire County Council,31/01/2015,ABC TEACHERS LIMITED, Schools,Employees,07/01/2015,3005470330," 2,054.28 "
Staffordshire County Council,31/01/2015,ABC TEACHERS LIMITED, Schools,Employees,07/01/2015,3005470434, 959.94 
Staffordshire County Council,31/01/2015,ABC TEACHERS LIMITED, Schools,Employees,13/01/2015,3005471661," 1,157.96 "
Staffordshire County Council,31/01/2015,ABC TEACHERS LIMITED, Schools,Employees,08/01/2015,3005471858," 3,752.21 "
Staffordshire County Council,31/01/2015,ABC TEACHERS LIMITED, Schools,Employees,09/01/2015,3005472271, 695.95 
Staffordshire County Council,31/01/2015,ABC TEACHERS LIMITED, Schools,Employees,09/01/2015,3005472857, 583.17 
Staffordshire County Council,31/01/2015,ABC TEACHERS LIMITED, Schools,Employees,13/01/2015,3005473287," 1,997.82 "
Staffordshire County Council,31/01/2015,ABC TEACHERS LIMITED, Schools,Employees,13/01/2015,3005473290," 1,331.88 "
Staffordshire County Council,31/01/2015,ABC TEACHERS LIMITED, Schools,Employees,27/01/2015,3005473300," 1,907.89 "
Staffordshire County Council,31/01/2015,ABC TEACHERS LIMITED, Schools,Employees,09/01/2015,3005473504, 849.60 
Staffordshire County Council,31/01/2015,ABC TEACHERS LIMITED, Schools,Employees,12/01/2015,3005474394, 593.96 
Staffordshire County Council,31/01/2015,ABC TEACHERS LIMITED, Schools,Employees,12/01/2015,3005474411, 593.96 
Staffordshire County Council,31/01/2015,ABC TEACHERS LIMITED, Schools,Employees,13/01/2015,3005478276," 1,337.92 "
Staffordshire County Council,31/01/2015,ABC TEACHERS LIMITED, Schools,Employees,27/01/2015,3005479434," 2,303.89 "
Staffordshire County Council,31/01/2015,ABC TEACHERS LIMITED, Schools,Employees,27/01/2015,3005479434, -   
Staffordshire County Council,31/01/2015,ABC TEACHERS LIMITED, Schools,Employees,27/01/2015,3005479625," 1,265.96 "
Staffordshire County Council,31/01/2015,ABC TEACHERS LIMITED, Schools,Employees,27/01/2015,3005479666, 805.15 
Staffordshire County Council,31/01/2015,ABC TEACHERS LIMITED, Schools,Employees,13/01/2015,3005479683," 1,265.96 "
Staffordshire County Council,31/01/2015,ABC TEACHERS LIMITED, Schools,Employees,14/01/2015,3005479794," 1,840.69 "
Staffordshire County Council,31/01/2015,ABC TEACHERS LIMITED, Schools,Employees,27/01/2015,3005479797," 1,235.94 "
Staffordshire County Council,31/01/2015,ABC TEACHERS LIMITED, Schools,Employees,27/01/2015,3005479866, 989.94 
Staffordshire County Council,31/01/2015,ABC TEACHERS LIMITED, Schools,Employees,14/01/2015,3005479951, 551.98 
Staffordshire County Council,31/01/2015,ABC TEACHERS LIMITED, Schools,Employees,27/01/2015,3005480001, 803.97 
Staffordshire County Council,31/01/2015,ABC TEACHERS LIMITED, Schools,Employees,14/01/2015,3005480012, 828.00 
Staffordshire County Council,31/01/2015,ABC TEACHERS LIMITED, Schools,Employees,14/01/2015,3005480015, 922.10 
Staffordshire County Council,31/01/2015,ABC TEACHERS LIMITED, Schools,Employees,14/01/2015,3005480020, 789.93 
Staffordshire County Council,31/01/2015,ABC TEACHERS LIMITED, Schools,Employees,27/01/2015,3005480388," 1,376.32 "
Staffordshire County Council,31/01/2015,ABC TEACHERS LIMITED, Schools,Employees,27/01/2015,3005481956," 1,200.00 "
Staffordshire County Council,31/01/2015,ABC TEACHERS LIMITED, Schools,Employees,27/01/2015,3005482010, 629.94 
Staffordshire County Council,31/01/2015,ABC TEACHERS LIMITED, Schools,Employees,27/01/2015,3005482190," 3,305.84 "
Staffordshire County Council,31/01/2015,ABC TEACHERS LIMITED, Schools,Employees,23/01/2015,3005482749," 2,726.26 "
Staffordshire County Council,31/01/2015,ABC TEACHERS LIMITED, Schools,Employees,27/01/2015,3005482984, 974.32 
Staffordshire County Council,31/01/2015,ABC TEACHERS LIMITED, Schools,Employees,20/01/2015,3005483009, 992.33 
Staffordshire County Council,31/01/2015,ABC TEACHERS LIMITED, Schools,Employees,27/01/2015,3005483035," 1,491.51 "
Staffordshire County Council,31/01/2015,ABC TEACHERS LIMITED, Schools,Employees,19/01/2015,3005483722," 2,200.68 "
Staffordshire County Council,31/01/2015,ABC TEACHERS LIMITED, Schools,Supplies & Services,28/01/2015,3005484837, 654.12 
Staffordshire County Council,31/01/2015,ABC TEACHERS LIMITED, Schools,Employees,27/01/2015,3005485270, 558.00 
Staffordshire County Council,31/01/2015,ABC TEACHERS LIMITED, Schools,Employees,27/01/2015,3005485358," 1,109.94 "
Staffordshire County Council,31/01/2015,ABC TEACHERS LIMITED, Schools,Employees,20/01/2015,3005485895, 581.97 
Staffordshire County Council,31/01/2015,ABC TEACHERS LIMITED, Schools,Employees,27/01/2015,3005487299," 2,849.85 "
Staffordshire County Council,31/01/2015,ABC TEACHERS LIMITED, Schools,Employees,21/01/2015,3005487446," 1,109.94 "
Staffordshire County Council,31/01/2015,ABC TEACHERS LIMITED, Schools,Employees,26/01/2015,3005488055, 941.97 
Staffordshire County Council,31/01/2015,ABC TEACHERS LIMITED, Schools,Employees,27/01/2015,3005489679, 743.95 
Staffordshire County Council,31/01/2015,ABC TEACHERS LIMITED, Schools,Employees,27/01/2015,3005490164," 1,025.94 "
Staffordshire County Council,31/01/2015,ABC TEACHERS LIMITED, Schools,Employees,26/01/2015,3005492517, 682.75 
Staffordshire County Council,31/01/2015,ABC TEACHERS LIMITED, Schools,Employees,13/01/2015,3005493329,"-1,265.96 "
Staffordshire County Council,31/01/2015,ABC TEACHERS LIMITED, Schools,Employees,26/01/2015,3005493399, 525.56 
Staffordshire County Council,31/01/2015,ABC TEACHERS LIMITED, Schools,Employees,28/01/2015,3005497831," 3,409.00 "
Staffordshire County Council,31/01/2015,ABC TEACHERS LIMITED, Schools,Employees,30/01/2015,3005498125, 635.99 
Staffordshire County Council,31/01/2015,ABC TEACHERS LIMITED, Schools,Employees,12/01/2015,4501359743, 552.00 
Staffordshire County Council,31/01/2015,ABC TEACHERS LIMITED, Schools,Employees,27/01/2015,4501360558, 552.00 
Staffordshire County Council,31/01/2015,About Me Care and Support Ltd,Health,Supplies & Services,09/01/2015,3005470160, 513.24 
Staffordshire County Council,31/01/2015,About Me Care and Support Ltd,Health,Supplies & Services,09/01/2015,3005470161, 631.68 
Staffordshire County Council,31/01/2015,About Me Care and Support Ltd,Health,Supplies & Services,09/01/2015,3005470162," 1,105.44 "
Staffordshire County Council,31/01/2015,About Me Care and Support Ltd,Health,Supplies & Services,09/01/2015,3005470164," 1,105.44 "
Staffordshire County Council,31/01/2015,About Me Care and Support Ltd,Health,Supplies & Services,09/01/2015,3005470174, 789.60 
Staffordshire County Council,31/01/2015,About Me Care and Support Ltd,Health,Supplies & Services,09/01/2015,3005470175, 789.60 
Staffordshire County Council,31/01/2015,About Me Care and Support Ltd,Health,Supplies & Services,21/01/2015,3005487320, 528.06 
Staffordshire County Council,31/01/2015,About Me Care and Support Ltd,Health,Supplies & Services,22/01/2015,3005487833, 631.68 
Staffordshire County Council,31/01/2015,About Me Care and Support Ltd,Health,Supplies & Services,29/01/2015,3005487839, 631.68 
Staffordshire County Council,31/01/2015,About Me Care and Support Ltd,Health,Supplies & Services,29/01/2015,3005487856," 1,105.44 "
Staffordshire County Council,31/01/2015,About Me Care and Support Ltd,Health,Supplies & Services,29/01/2015,3005487972, 789.61 
Staffordshire County Council,31/01/2015,About Me Care and Support Ltd,Health,Supplies & Services,07/01/2015,4501358675, 947.52 
Staffordshire County Council,31/01/2015,About Me Care and Support Ltd,Health,Supplies & Services,07/01/2015,4501358678, 947.52 
Staffordshire County Council,31/01/2015,About Me Care and Support Ltd,Health,Supplies & Services,21/01/2015,4501362368, 631.68 
Staffordshire County Council,31/01/2015,About Me Care and Support Ltd,Health,Supplies & Services,29/01/2015,4501362370, 631.68 
Staffordshire County Council,31/01/2015,About Me Care and Support Ltd,Health,Supplies & Services,21/01/2015,4501362372, 947.52 
Staffordshire County Council,31/01/2015,About Me Care and Support Ltd,Health,Supplies & Services,21/01/2015,4501362378, 947.53 
Staffordshire County Council,31/01/2015,About Me Care and Support Ltd,Health,Supplies & Services,29/01/2015,4501362379, 947.52 
Staffordshire County Council,31/01/2015,Abov N Beyond Limited,Other Education and Children's services,Third Party,14/01/2015,3005468370," 2,045.20 "
Staffordshire County Council,31/01/2015,Abov N Beyond Limited,Other Education and Children's services,Third Party,14/01/2015,3005468371," 3,197.20 "
Staffordshire County Council,31/01/2015,Abov N Beyond Limited,Other Education and Children's services,Supplies & Services,14/01/2015,3005468372," 3,293.20 "
Staffordshire County Council,31/01/2015,Abov N Beyond Limited,Other Education and Children's services,Supplies & Services,14/01/2015,3005468373, 960.00 
Staffordshire County Council,31/01/2015,Abov N Beyond Limited,Other Education and Children's services,Supplies & Services,14/01/2015,3005468374," 1,805.20 "
Staffordshire County Council,31/01/2015,Abov N Beyond Limited,Other Education and Children's services,Third Party,14/01/2015,3005468375," 2,045.20 "
Staffordshire County Council,31/01/2015,Abov N Beyond Limited,Other Education and Children's services,Supplies & Services,14/01/2015,3005468377," 9,827.20 "
Staffordshire County Council,31/01/2015,Abov N Beyond Limited,Other Education and Children's services,Supplies & Services,14/01/2015,3005468378," 2,237.20 "
Staffordshire County Council,31/01/2015,Abov N Beyond Limited,Other Education and Children's services,Supplies & Services,14/01/2015,3005468379," 1,997.20 "
Staffordshire County Council,31/01/2015,Abov N Beyond Limited,Other Education and Children's services,Supplies & Services,14/01/2015,3005468380," 3,485.20 "
Staffordshire County Council,31/01/2015,Academics, Schools,Employees,07/01/2015,3005468938," 1,599.90 "
Staffordshire County Council,31/01/2015,Academics, Schools,Employees,07/01/2015,3005469073, 599.40 
Staffordshire County Council,31/01/2015,Academics, Schools,Employees,07/01/2015,3005469080, 599.40 
Staffordshire County Council,31/01/2015,Academics, Schools,Employees,07/01/2015,3005469163," 1,239.00 "
Staffordshire County Council,31/01/2015,Academics, Schools,Employees,07/01/2015,3005469165, 567.00 
Staffordshire County Council,31/01/2015,Academics, Schools,Supplies & Services,07/01/2015,3005469867, 540.00 
Staffordshire County Council,31/01/2015,Academics, Schools,Employees,07/01/2015,3005469925," 1,599.90 "
Staffordshire County Council,31/01/2015,Academics, Schools,Employees,07/01/2015,3005469928," 1,599.90 "
Staffordshire County Council,31/01/2015,Academics, Schools,Employees,07/01/2015,3005470584, 540.00 
Staffordshire County Council,31/01/2015,Academics, Schools,Employees,08/01/2015,3005471810," 1,128.00 "
Staffordshire County Council,31/01/2015,Academics, Schools,Employees,08/01/2015,3005471822," 1,140.00 "
Staffordshire County Council,31/01/2015,Academics, Schools,Employees,08/01/2015,3005471825, 576.00 
Staffordshire County Council,31/01/2015,Academics, Schools,Employees,13/01/2015,3005478115, 738.00 
Staffordshire County Council,31/01/2015,Academics, Schools,Employees,13/01/2015,3005478119, 738.00 
Staffordshire County Council,31/01/2015,Academics, Schools,Employees,13/01/2015,3005478279, 684.00 
Staffordshire County Council,31/01/2015,Academics, Schools,Employees,13/01/2015,3005478346, 927.00 
Staffordshire County Council,31/01/2015,Academics, Schools,Employees,28/01/2015,3005483263, 735.00 
Staffordshire County Council,31/01/2015,Academics, Schools,Employees,28/01/2015,3005485168, 960.00 
Staffordshire County Council,31/01/2015,Academics, Schools,Employees,28/01/2015,3005485936, 774.00 
Staffordshire County Council,31/01/2015,Academics, Schools,Employees,28/01/2015,3005486037," 1,599.90 "
Staffordshire County Council,31/01/2015,Academics, Schools,Supplies & Services,28/01/2015,3005486152, 990.00 
Staffordshire County Council,31/01/2015,Academics, Schools,Employees,28/01/2015,3005486383, 599.40 
Staffordshire County Council,31/01/2015,Academics, Schools,Employees,28/01/2015,3005491616, 960.00 
Staffordshire County Council,31/01/2015,ACADEMY EARLY YEARS CHILDCARE, Schools,Supplies & Services,14/01/2015,7008643623," 7,825.06 "
Staffordshire County Council,31/01/2015,ACADEMY EARLY YEARS CHILDCARE, Schools,Supplies & Services,14/01/2015,7008643922," 11,088.55 "
Staffordshire County Council,31/01/2015,ACADEMY PHOTOGRAPHY LTD, Schools,Supplies & Services,26/01/2015,3005486062, 700.80 
Staffordshire County Council,31/01/2015,ACCESS INDEPENDENT LTD,Planning & Economic Development,Supplies & Services,07/01/2015,4501358711," 1,089.60 "
Staffordshire County Council,31/01/2015,ACCORD HOUSING ASSOCIATION,Adult Social Care,Third Party,07/01/2015,3005469625," 22,690.80 "
Staffordshire County Council,31/01/2015,ACCORD HOUSING ASSOCIATION,Adult Social Care,Income,07/01/2015,3005469625,"-1,928.08 "
Staffordshire County Council,31/01/2015,ACCORD HOUSING ASSOCIATION,Adult Social Care,Income,07/01/2015,3005469625, -   
Staffordshire County Council,31/01/2015,ACCORD HOUSING ASSOCIATION,Adult Social Care,Income,07/01/2015,3005469636, -   
Staffordshire County Council,31/01/2015,ACCORD HOUSING ASSOCIATION,Adult Social Care,Income,07/01/2015,3005469636, -   
Staffordshire County Council,31/01/2015,ACCORD HOUSING ASSOCIATION,Adult Social Care,Income,07/01/2015,3005469636, -   
Staffordshire County Council,31/01/2015,ACCORD HOUSING ASSOCIATION,Adult Social Care,Income,07/01/2015,3005469636,"-4,471.20 "
Staffordshire County Council,31/01/2015,ACCORD HOUSING ASSOCIATION,Adult Social Care,Third Party,07/01/2015,3005469636, -   
Staffordshire County Council,31/01/2015,ACCORD HOUSING ASSOCIATION,Adult Social Care,Third Party,07/01/2015,3005469636," 13,171.24 "
Staffordshire County Council,31/01/2015,Accordia Computing Supplies Lt, Schools,Supplies & Services,14/01/2015,3005479746," 1,837.14 "
Staffordshire County Council,31/01/2015,Ace Care Agency,Health,Supplies & Services,29/01/2015,3005482139, 973.00 
Staffordshire County Council,31/01/2015,ACORN FOSTERING SERVICES LTD,Other Education and Children's services,Supplies & Services,07/01/2015,3005467423," 3,428.83 "
Staffordshire County Council,31/01/2015,ACORN FOSTERING SERVICES LTD,Other Education and Children's services,Supplies & Services,07/01/2015,3005467424," 3,348.88 "
Staffordshire County Council,31/01/2015,ACORN FOSTERING SERVICES LTD,Other Education and Children's services,Supplies & Services,23/01/2015,7008658515," 3,428.82 "
Staffordshire County Council,31/01/2015,ACORN FOSTERING SERVICES LTD,Other Education and Children's services,Supplies & Services,23/01/2015,7008659337," 3,348.89 "
Staffordshire County Council,31/01/2015,Acorn House Fostering Services,Other Education and Children's services,Supplies & Services,27/01/2015,3005478589," 2,463.72 "
Staffordshire County Council,31/01/2015,Acorn House Fostering Services,Other Education and Children's services,Supplies & Services,27/01/2015,3005478597," 2,513.91 "
Staffordshire County Council,31/01/2015,Acorn House Fostering Services,Other Education and Children's services,Supplies & Services,23/01/2015,7008659369," 7,347.62 "
Staffordshire County Council,31/01/2015,ACTION CENTRES UK LTD,Other Education and Children's services,Supplies & Services,07/01/2015,3005450350," 1,014.00 "
Staffordshire County Council,31/01/2015,ACTION CENTRES UK LTD,Other Education and Children's services,Supplies & Services,07/01/2015,3005450361, 943.50 
Staffordshire County Council,31/01/2015,Action for Children,Other Education and Children's services,Third Party,14/01/2015,3005478428," 125,250.00 "
Staffordshire County Council,31/01/2015,Action for Children,Other Education and Children's services,Supplies & Services,23/01/2015,7008659330," 2,978.13 "
Staffordshire County Council,31/01/2015,ACTIVE SCIENCE, Schools,Supplies & Services,16/01/2015,4501360141," 1,062.90 "
Staffordshire County Council,31/01/2015,Addiction Dependency Solutions,Adult Social Care,Supplies & Services,21/01/2015,3005486161," 170,703.68 "
Staffordshire County Council,31/01/2015,Addiction Dependency Solutions,Adult Social Care,Supplies & Services,21/01/2015,3005486163," 175,240.74 "
Staffordshire County Council,31/01/2015,Addiction Dependency Solutions,Adult Social Care,Supplies & Services,21/01/2015,3005486165," 168,244.04 "
Staffordshire County Council,31/01/2015,Adoption Matters North West,Other Education and Children's services,Supplies & Services,28/01/2015,3005404407," 1,666.66 "
Staffordshire County Council,31/01/2015,Adoption Matters North West,Other Education and Children's services,Supplies & Services,07/01/2015,3005468602," 1,666.66 "
Staffordshire County Council,31/01/2015,ADVANCE FOSTER CARE,Other Education and Children's services,Supplies & Services,27/01/2015,7008658501," 3,207.88 "
Staffordshire County Council,31/01/2015,ADVANCE FOSTER CARE,Other Education and Children's services,Supplies & Services,27/01/2015,7008658502," 6,415.76 "
Staffordshire County Council,31/01/2015,ADVANCE FOSTER CARE,Other Education and Children's services,Supplies & Services,27/01/2015,7008658510," 3,503.09 "
Staffordshire County Council,31/01/2015,ADVANCE FOSTER CARE,Other Education and Children's services,Supplies & Services,27/01/2015,7008658513," 8,581.50 "
Staffordshire County Council,31/01/2015,ADVANCE FOSTER CARE,Other Education and Children's services,Supplies & Services,27/01/2015,7008658526," 9,117.18 "
Staffordshire County Council,31/01/2015,ADVANCE FOSTER CARE,Other Education and Children's services,Supplies & Services,27/01/2015,7008658531," 3,343.44 "
Staffordshire County Council,31/01/2015,ADVANCE FOSTER CARE,Other Education and Children's services,Supplies & Services,27/01/2015,7008658555," 6,931.20 "
Staffordshire County Council,31/01/2015,ADVANCE FOSTER CARE,Other Education and Children's services,Supplies & Services,27/01/2015,7008658556," 3,376.74 "
Staffordshire County Council,31/01/2015,ADVANCE FOSTER CARE,Other Education and Children's services,Supplies & Services,27/01/2015,7008658559," 3,376.74 "
Staffordshire County Council,31/01/2015,ADVANCE FOSTER CARE,Other Education and Children's services,Supplies & Services,27/01/2015,7008658579," 6,472.56 "
Staffordshire County Council,31/01/2015,ADVANCE FOSTER CARE,Other Education and Children's services,Supplies & Services,27/01/2015,7008659331," 3,376.74 "
Staffordshire County Council,31/01/2015,ADVANCE FOSTER CARE,Other Education and Children's services,Supplies & Services,27/01/2015,7008659352," 3,376.74 "
Staffordshire County Council,31/01/2015,ADVANCE FOSTER CARE,Other Education and Children's services,Supplies & Services,27/01/2015,7008659354," 3,376.74 "
Staffordshire County Council,31/01/2015,ADVANCE FOSTER CARE,Other Education and Children's services,Supplies & Services,27/01/2015,7008659356," 3,376.74 "
Staffordshire County Council,31/01/2015,ADVANCE FOSTER CARE,Other Education and Children's services,Supplies & Services,27/01/2015,7008670051,"-3,207.88 "
Staffordshire County Council,31/01/2015,ADVANCE FOSTER CARE,Other Education and Children's services,Supplies & Services,27/01/2015,7008670052,"-6,415.76 "
Staffordshire County Council,31/01/2015,ADVANCE FOSTER CARE,Other Education and Children's services,Supplies & Services,27/01/2015,7008670053,"-3,503.09 "
Staffordshire County Council,31/01/2015,ADVANCE FOSTER CARE,Other Education and Children's services,Supplies & Services,27/01/2015,7008670054,"-8,581.50 "
Staffordshire County Council,31/01/2015,ADVANCE FOSTER CARE,Other Education and Children's services,Supplies & Services,27/01/2015,7008670055,"-9,117.18 "
Staffordshire County Council,31/01/2015,ADVANCE FOSTER CARE,Other Education and Children's services,Supplies & Services,27/01/2015,7008670056,"-3,343.44 "
Staffordshire County Council,31/01/2015,ADVANCE FOSTER CARE,Other Education and Children's services,Supplies & Services,27/01/2015,7008670057,"-6,931.20 "
Staffordshire County Council,31/01/2015,ADVANCE FOSTER CARE,Other Education and Children's services,Supplies & Services,27/01/2015,7008670058,"-3,376.74 "
Staffordshire County Council,31/01/2015,ADVANCE FOSTER CARE,Other Education and Children's services,Supplies & Services,27/01/2015,7008670059,"-3,376.74 "
Staffordshire County Council,31/01/2015,ADVANCE FOSTER CARE,Other Education and Children's services,Supplies & Services,27/01/2015,7008670060,"-6,472.56 "
Staffordshire County Council,31/01/2015,ADVANCE FOSTER CARE,Other Education and Children's services,Supplies & Services,27/01/2015,7008670061,"-3,376.74 "
Staffordshire County Council,31/01/2015,ADVANCE FOSTER CARE,Other Education and Children's services,Supplies & Services,27/01/2015,7008670062,"-3,376.74 "
Staffordshire County Council,31/01/2015,ADVANCE FOSTER CARE,Other Education and Children's services,Supplies & Services,27/01/2015,7008670063,"-3,376.74 "
Staffordshire County Council,31/01/2015,ADVANCE FOSTER CARE,Other Education and Children's services,Supplies & Services,27/01/2015,7008670064,"-3,376.74 "
Staffordshire County Council,31/01/2015,Aero Taxis,Other Education and Children's services,Transport,07/01/2015,4501357819," 1,056.00 "
Staffordshire County Council,31/01/2015,Aero Taxis,Other Education and Children's services,Transport,21/01/2015,4501362532," 1,200.00 "
Staffordshire County Council,31/01/2015,AERO TAXIS Ltd,Other Education and Children's services,Transport,15/01/2015,3005471860," 12,996.00 "
Staffordshire County Council,31/01/2015,AERO TAXIS Ltd,Other Education and Children's services,Transport,15/01/2015,3005471860, -   
Staffordshire County Council,31/01/2015,AERO TAXIS Ltd,Other Education and Children's services,Transport,15/01/2015,3005471860, -   
Staffordshire County Council,31/01/2015,AERO TAXIS Ltd,Other Education and Children's services,Transport,15/01/2015,3005471860, -   
Staffordshire County Council,31/01/2015,AERO TAXIS Ltd,Other Education and Children's services,Transport,15/01/2015,3005471860, -   
Staffordshire County Council,31/01/2015,AERO TAXIS Ltd,Other Education and Children's services,Transport,15/01/2015,3005471860, -   
Staffordshire County Council,31/01/2015,AERO TAXIS Ltd,Other Education and Children's services,Transport,15/01/2015,3005471860, -   
Staffordshire County Council,31/01/2015,AERO TAXIS Ltd, Schools,Transport,23/01/2015,4501363447, 595.20 
Staffordshire County Council,31/01/2015,AEROBRIGHTS TAXIS, Schools,Transport,16/01/2015,3005473634, 509.90 
Staffordshire County Council,31/01/2015,Affinity Trust,Adult Social Care,Third Party,07/01/2015,3005469018," 12,178.36 "
Staffordshire County Council,31/01/2015,Affinity Trust,Adult Social Care,Third Party,07/01/2015,3005469029," 36,383.12 "
Staffordshire County Council,31/01/2015,Affinity Trust,Adult Social Care,Third Party,07/01/2015,3005469040," 10,664.32 "
Staffordshire County Council,31/01/2015,Affinity Trust,Adult Social Care,Third Party,20/01/2015,3005485164," 10,750.52 "
Staffordshire County Council,31/01/2015,Affinity Trust,Adult Social Care,Third Party,20/01/2015,3005485165," 1,885.80 "
Staffordshire County Council,31/01/2015,Affinity Trust,Adult Social Care,Third Party,20/01/2015,3005485176," 16,871.36 "
Staffordshire County Council,31/01/2015,Affinity Trust,Adult Social Care,Third Party,20/01/2015,3005485178," 9,188.00 "
Staffordshire County Council,31/01/2015,Affinity Trust,Adult Social Care,Third Party,20/01/2015,3005485181," 8,756.96 "
Staffordshire County Council,31/01/2015,Affinity Trust,Adult Social Care,Third Party,20/01/2015,3005485181, -   
Staffordshire County Council,31/01/2015,Affinity Trust,Adult Social Care,Third Party,20/01/2015,3005486189," 10,664.32 "
Staffordshire County Council,31/01/2015,Affinity Trust,Adult Social Care,Third Party,20/01/2015,3005486193," 12,178.36 "
Staffordshire County Council,31/01/2015,Affinity Trust,Adult Social Care,Third Party,20/01/2015,3005486195," 36,383.12 "
Staffordshire County Council,31/01/2015,Aftab Najib t/a Elite Private,Other Education and Children's services,Transport,15/01/2015,3005471948, -   
Staffordshire County Council,31/01/2015,Aftab Najib t/a Elite Private,Other Education and Children's services,Transport,15/01/2015,3005471948, -   
Staffordshire County Council,31/01/2015,Aftab Najib t/a Elite Private,Other Education and Children's services,Transport,15/01/2015,3005471948, -   
Staffordshire County Council,31/01/2015,Aftab Najib t/a Elite Private,Other Education and Children's services,Transport,15/01/2015,3005471948, -   
Staffordshire County Council,31/01/2015,Aftab Najib t/a Elite Private,Other Education and Children's services,Transport,15/01/2015,3005471948, -   
Staffordshire County Council,31/01/2015,Aftab Najib t/a Elite Private,Other Education and Children's services,Transport,15/01/2015,3005471948, -   
Staffordshire County Council,31/01/2015,Aftab Najib t/a Elite Private,Other Education and Children's services,Transport,15/01/2015,3005471948, -   
Staffordshire County Council,31/01/2015,Aftab Najib t/a Elite Private,Other Education and Children's services,Transport,15/01/2015,3005471948, -   
Staffordshire County Council,31/01/2015,Aftab Najib t/a Elite Private,Other Education and Children's services,Transport,15/01/2015,3005471948," 12,224.42 "
Staffordshire County Council,31/01/2015,AGE CONCERN STAFFORD & DIST,Health,Supplies & Services,15/01/2015,3005481581," 34,850.00 "
Staffordshire County Council,31/01/2015,Age UK,Adult Social Care,Supplies & Services,27/01/2015,4501364214, 699.00 
Staffordshire County Council,31/01/2015,Age UK North Staffordshire,Health,Supplies & Services,29/01/2015,3005499366," 2,467.10 "
Staffordshire County Council,31/01/2015,Age UK North Staffordshire,Health,Supplies & Services,29/01/2015,3005499369," 5,697.25 "
Staffordshire County Council,31/01/2015,Age UK South Staffordshire,Health,Transport,19/01/2015,3005482130," 3,473.66 "
Staffordshire County Council,31/01/2015,Age UK South Staffordshire,Health,Supplies & Services,19/01/2015,3005482130," 10,548.26 "
Staffordshire County Council,31/01/2015,Age UK South Staffordshire,Health,Supplies & Services,19/01/2015,3005482219, 543.35 
Staffordshire County Council,31/01/2015,Age UK South Staffordshire,Health,Supplies & Services,19/01/2015,3005482220," 1,086.70 "
Staffordshire County Council,31/01/2015,Age UK South Staffordshire,Health,Transport,19/01/2015,3005482263," 11,332.66 "
Staffordshire County Council,31/01/2015,Age UK South Staffordshire,Health,Supplies & Services,19/01/2015,3005482263," 34,413.33 "
Staffordshire County Council,31/01/2015,Age UK South Staffordshire,Health,Transport,26/01/2015,3005484606," 3,381.98 "
Staffordshire County Council,31/01/2015,Age UK South Staffordshire,Health,Supplies & Services,26/01/2015,3005484606," 10,269.86 "
Staffordshire County Council,31/01/2015,Age UK South Staffordshire,Health,Supplies & Services,29/01/2015,3005485239," 6,387.45 "
Staffordshire County Council,31/01/2015,Age UK South Staffordshire,Health,Transport,29/01/2015,3005485239," 2,155.49 "
Staffordshire County Council,31/01/2015,Age UK South Staffordshire,Health,Supplies & Services,26/01/2015,3005489813," 2,271.67 "
Staffordshire County Council,31/01/2015,Age UK South Staffordshire,Health,Supplies & Services,26/01/2015,3005489818," 3,494.88 "
Staffordshire County Council,31/01/2015,ah!media,ICT,Employees,07/01/2015,3005469440," 2,232.00 "
Staffordshire County Council,31/01/2015,AIB SOLUTIONS LTD, Schools,Premises,20/01/2015,4501362035," 1,270.80 "
Staffordshire County Council,31/01/2015,Aim Project,Other Education and Children's services,Supplies & Services,16/01/2015,4501358836, 711.00 
Staffordshire County Council,31/01/2015,AIR LIQUIDE UK LTD,Trading Service Scientific Services,Supplies & Services,30/01/2015,4501365136, 827.58 
Staffordshire County Council,31/01/2015,Air Monitors Ltd,Trading Service Scientific Services,Supplies & Services,07/01/2015,4501350341, 528.00 
Staffordshire County Council,31/01/2015,Air Monitors Ltd,Trading Service Scientific Services,Supplies & Services,28/01/2015,4501362401, 828.00 
Staffordshire County Council,31/01/2015,AIR PRODUCTS PLC,Trading Service Scientific Services,Supplies & Services,30/01/2015,4501365140, 547.67 
Staffordshire County Council,31/01/2015,AIRPORT CARS LICHFIELD,Other Education and Children's services,Transport,15/01/2015,3005481700, -   
Staffordshire County Council,31/01/2015,AIRPORT CARS LICHFIELD,Other Education and Children's services,Transport,15/01/2015,3005481700, -   
Staffordshire County Council,31/01/2015,AIRPORT CARS LICHFIELD,Other Education and Children's services,Transport,15/01/2015,3005481700," 2,417.77 "
Staffordshire County Council,31/01/2015,ALAN PERRY LTD,Property,Capital,07/01/2015,4501358268," 2,167.10 "
Staffordshire County Council,31/01/2015,ALAN PERRY LTD,Corporate & Democratic Core,Premises,09/01/2015,4501359370, 613.01 
Staffordshire County Council,31/01/2015,ALAN PERRY LTD,Corporate & Democratic Core,Premises,16/01/2015,4501360975, 807.94 
Staffordshire County Council,31/01/2015,ALARM RADIO MONITORING LTD, CXO,Premises,13/01/2015,3005474920, 705.22 
Staffordshire County Council,31/01/2015,ALBERT BEAR PLAYGROUP, Schools,Supplies & Services,14/01/2015,7008643701," 13,409.30 "
Staffordshire County Council,31/01/2015,ALBERT BEAR PLAYGROUP, Schools,Supplies & Services,14/01/2015,7008644008," 10,994.39 "
Staffordshire County Council,31/01/2015,Albrighton Care Ltd,Other Education and Children's services,Third Party,26/01/2015,7008667852," 17,032.29 "
Staffordshire County Council,31/01/2015,Albrighton Care Ltd,Other Education and Children's services,Third Party,26/01/2015,7008667857," 6,655.00 "
Staffordshire County Council,31/01/2015,Alfiesoft Limited, Schools,Supplies & Services,14/01/2015,4501360335," 1,782.00 "
Staffordshire County Council,31/01/2015,A-LINE LTD T/A CHASE CARS,Other Education and Children's services,Transport,07/01/2015,3005468794," 1,595.86 "
Staffordshire County Council,31/01/2015,A-LINE LTD T/A CHASE CARS,Other Education and Children's services,Transport,07/01/2015,3005468794, -   
Staffordshire County Council,31/01/2015,ALISON KNIGHT TRAINING CONSULT,Adult Social Care,Employees,07/01/2015,4501350095, 917.11 
Staffordshire County Council,31/01/2015,ALISTAIR SHAW CONSUL & TRG LTD, Schools,Employees,27/01/2015,3005491920, 552.00 
Staffordshire County Council,31/01/2015,ALL SAINTS KIDS CLUB, Schools,Supplies & Services,14/01/2015,7008644024," 1,649.64 "
Staffordshire County Council,31/01/2015,ALLEYNES ACADEMY, Schools,Supplies & Services,23/01/2015,3005487713," 9,803.29 "
Staffordshire County Council,31/01/2015,Alliance in Partnership Ltd, Schools,Supplies & Services,08/01/2015,3005471886," 4,200.14 "
Staffordshire County Council,31/01/2015,ALLSORTS OFFICE SUPPLIES LTD,Planning & Economic Development,Supplies & Services,19/01/2015,3005474087, 665.29 
Staffordshire County Council,31/01/2015,ALLSORTS OFFICE SUPPLIES LTD,Corporate & Democratic Core,Supplies & Services,08/01/2015,4501359062," 13,885.40 "
Staffordshire County Council,31/01/2015,ALLSORTS OFFICE SUPPLIES LTD,Corporate & Democratic Core,Supplies & Services,08/01/2015,4501359063," 3,528.00 "
Staffordshire County Council,31/01/2015,ALLSORTS OFFICE SUPPLIES LTD,Corporate & Democratic Core,Supplies & Services,08/01/2015,4501359064, 864.00 
Staffordshire County Council,31/01/2015,ALLSORTS OFFICE SUPPLIES LTD,Corporate & Democratic Core,Supplies & Services,08/01/2015,4501359065," 1,056.00 "
Staffordshire County Council,31/01/2015,ALLSORTS OFFICE SUPPLIES LTD,Corporate & Democratic Core,Supplies & Services,21/01/2015,4501360694," 6,778.80 "
Staffordshire County Council,31/01/2015,ALLSORTS OFFICE SUPPLIES LTD,Adult Social Care,Premises,30/01/2015,4501362683, 864.00 
Staffordshire County Council,31/01/2015,ALLSORTS OFFICE SUPPLIES LTD,Corporate & Democratic Core,Supplies & Services,29/01/2015,4501364762,-586.08 
Staffordshire County Council,31/01/2015,ALLSORTS OFFICE SUPPLIES LTD,Corporate & Democratic Core,Supplies & Services,29/01/2015,4501364764," 1,162.08 "
Staffordshire County Council,31/01/2015,ALLSTAR BUSINESS SOLUTIONS LTD,Trading Service County Fleet Care,Transport,07/01/2015,3005467387," 9,053.72 "
Staffordshire County Council,31/01/2015,ALLSTAR BUSINESS SOLUTIONS LTD,Trading Service County Fleet Care,Transport,07/01/2015,3005468345," 7,571.26 "
Staffordshire County Council,31/01/2015,ALLSTAR BUSINESS SOLUTIONS LTD,Trading Service County Fleet Care,Transport,15/01/2015,3005480130," 2,462.02 "
Staffordshire County Council,31/01/2015,ALLSTAR BUSINESS SOLUTIONS LTD,Trading Service County Fleet Care,Transport,15/01/2015,3005481715," 4,890.03 "
Staffordshire County Council,31/01/2015,ALLSTAR BUSINESS SOLUTIONS LTD,Trading Service County Fleet Care,Transport,23/01/2015,3005491121," 7,835.84 "
Staffordshire County Council,31/01/2015,ALLSTAR BUSINESS SOLUTIONS LTD,Trading Service County Fleet Care,Transport,30/01/2015,3005500876," 8,473.03 "
Staffordshire County Council,31/01/2015,Alpha Hair Academy, Schools,Supplies & Services,15/01/2015,3005467342, 520.00 
Staffordshire County Council,31/01/2015,Alrewas Parish Council,Law & Governence,Third Party,23/01/2015,3005491175," 2,000.00 "
Staffordshire County Council,31/01/2015,Amadeus Associates Ltd, Schools,Supplies & Services,08/01/2015,3005471872, 500.00 
Staffordshire County Council,31/01/2015,Amadeus Associates Ltd, Schools,Supplies & Services,16/01/2015,3005483230, 500.00 
Staffordshire County Council,31/01/2015,Amasal Sports & Social Club,Adult Social Care,Supplies & Services,14/01/2015,3005471873," 1,190.00 "
Staffordshire County Council,31/01/2015,AMBER ADVERTISING & DESIGN,Other Education and Children's services,Supplies & Services,22/01/2015,3005468348," 1,008.00 "
Staffordshire County Council,31/01/2015,Ambroplastics Ltd,Trading Service Central Print & Design,Supplies & Services,08/01/2015,4501359212," 2,256.00 "
Staffordshire County Council,31/01/2015,AMEY OW LTD,Highways and transport,Capital,14/01/2015,4501360247," 6,560.59 "
Staffordshire County Council,31/01/2015,AMEY OW LTD,Highways and transport,Capital,14/01/2015,4501360250," 6,585.17 "
Staffordshire County Council,31/01/2015,AMEY OW LTD,Highways and transport,Capital,14/01/2015,4501360311," 5,473.40 "
Staffordshire County Council,31/01/2015,AMEY OW LTD,Highways and transport,Capital,14/01/2015,4501360312," 4,856.50 "
Staffordshire County Council,31/01/2015,AMG NURSING & CARE SERVICES,Other Education and Children's services,Supplies & Services,15/01/2015,3005478026, 855.60 
Staffordshire County Council,31/01/2015,AMG NURSING & CARE SERVICES,Other Education and Children's services,Supplies & Services,15/01/2015,3005478029, 855.60 
Staffordshire County Council,31/01/2015,AMG NURSING & CARE SERVICES,Other Education and Children's services,Supplies & Services,15/01/2015,3005479686, 896.00 
Staffordshire County Council,31/01/2015,AMG NURSING & CARE SERVICES,Other Education and Children's services,Supplies & Services,15/01/2015,3005479946, 855.60 
Staffordshire County Council,31/01/2015,AMG NURSING & CARE SERVICES,Other Education and Children's services,Supplies & Services,15/01/2015,3005479954, 855.60 
Staffordshire County Council,31/01/2015,AMG NURSING & CARE SERVICES,Other Education and Children's services,Supplies & Services,15/01/2015,3005479956, 855.60 
Staffordshire County Council,31/01/2015,AMG NURSING & CARE SERVICES,Other Education and Children's services,Supplies & Services,30/01/2015,3005497083, 936.40 
Staffordshire County Council,31/01/2015,ANCER SPA (MIDLANDS) LTD,Highways and transport,Capital,23/01/2015,4501362397," 1,418.35 "
Staffordshire County Council,31/01/2015,ANCER SPA (MIDLANDS) LTD,Highways and transport,Capital,28/01/2015,4501364409," 1,743.12 "
Staffordshire County Council,31/01/2015,Anchor Fostercare,Other Education and Children's services,Supplies & Services,23/01/2015,7008659357," 5,376.29 "
Staffordshire County Council,31/01/2015,Angel Homecaring,Health,Supplies & Services,08/01/2015,3005467727, 502.38 
Staffordshire County Council,31/01/2015,Angel Homecaring,Health,Supplies & Services,08/01/2015,3005467762, 580.80 
Staffordshire County Council,31/01/2015,Angel Homecaring,Health,Supplies & Services,08/01/2015,3005467816, 580.80 
Staffordshire County Council,31/01/2015,Angel Homecaring,Health,Supplies & Services,16/01/2015,3005473328, 560.93 
Staffordshire County Council,31/01/2015,Angel Homecaring,Health,Supplies & Services,12/01/2015,3005473329, 580.92 
Staffordshire County Council,31/01/2015,Angel Homecaring,Health,Supplies & Services,16/01/2015,3005474366, 580.80 
Staffordshire County Council,31/01/2015,Angel Homecaring,Health,Supplies & Services,16/01/2015,3005474367, 580.80 
Staffordshire County Council,31/01/2015,Angel Homecaring,Health,Supplies & Services,23/01/2015,3005483167, 580.80 
Staffordshire County Council,31/01/2015,Angel Homecaring,Health,Supplies & Services,30/01/2015,3005491678, 580.80 
Staffordshire County Council,31/01/2015,ANGEL SOLUTIONS LTD, Schools,Supplies & Services,09/01/2015,3005473403, 600.00 
Staffordshire County Council,31/01/2015,Anglesey Classic Storage Ltd, Schools,Premises,15/01/2015,3005480207, 590.56 
Staffordshire County Council,31/01/2015,Anglesey Primary Academy, Schools,Supplies & Services,23/01/2015,3005486448," 2,997.68 "
Staffordshire County Council,31/01/2015,Ann Craft Trust,Other Education and Children's services,Supplies & Services,14/01/2015,4501360343, 685.00 
Staffordshire County Council,31/01/2015,Anne Lee Sch of Speech & Drama, Schools,Supplies & Services,21/01/2015,3005480433," 1,200.00 "
Staffordshire County Council,31/01/2015,Anne Newton Management Cnsltnc,Other Education and Children's services,Supplies & Services,07/01/2015,3005468838," 4,561.12 "
Staffordshire County Council,31/01/2015,ANS GROUP PLC,ICT,Supplies & Services,07/01/2015,4501358715," 4,674.85 "
Staffordshire County Council,31/01/2015,Anthony Collins Sols LLP,Law & Governence,Supplies & Services,12/01/2015,3005474041, 517.20 
Staffordshire County Council,31/01/2015,ANTHONYS AJ'S A1, Schools,Transport,07/01/2015,3005469454, 882.00 
Staffordshire County Council,31/01/2015,ANTHONYS AJ'S A1,Other Education and Children's services,Transport,08/01/2015,3005471921, -   
Staffordshire County Council,31/01/2015,ANTHONYS AJ'S A1,Other Education and Children's services,Transport,08/01/2015,3005471921, -   
Staffordshire County Council,31/01/2015,ANTHONYS AJ'S A1,Other Education and Children's services,Transport,08/01/2015,3005471921," 2,179.92 "
Staffordshire County Council,31/01/2015,ANTHONYS AJ'S A1,Other Education and Children's services,Transport,08/01/2015,3005471960, -   
Staffordshire County Council,31/01/2015,ANTHONYS AJ'S A1,Other Education and Children's services,Transport,08/01/2015,3005471960, -   
Staffordshire County Council,31/01/2015,ANTHONYS AJ'S A1,Other Education and Children's services,Transport,08/01/2015,3005471960," 4,017.60 "
Staffordshire County Council,31/01/2015,ANTHONYS AJ'S A1,Other Education and Children's services,Transport,08/01/2015,3005471966, -   
Staffordshire County Council,31/01/2015,ANTHONYS AJ'S A1,Other Education and Children's services,Transport,08/01/2015,3005471966, -   
Staffordshire County Council,31/01/2015,ANTHONYS AJ'S A1,Other Education and Children's services,Transport,08/01/2015,3005471966, -   
Staffordshire County Council,31/01/2015,ANTHONYS AJ'S A1,Other Education and Children's services,Transport,08/01/2015,3005471966, -   
Staffordshire County Council,31/01/2015,ANTHONYS AJ'S A1,Other Education and Children's services,Transport,08/01/2015,3005471966, -   
Staffordshire County Council,31/01/2015,ANTHONYS AJ'S A1,Other Education and Children's services,Transport,08/01/2015,3005471966, -   
Staffordshire County Council,31/01/2015,ANTHONYS AJ'S A1,Other Education and Children's services,Transport,08/01/2015,3005471966, -   
Staffordshire County Council,31/01/2015,ANTHONYS AJ'S A1,Other Education and Children's services,Transport,08/01/2015,3005471966, -   
Staffordshire County Council,31/01/2015,ANTHONYS AJ'S A1,Other Education and Children's services,Transport,08/01/2015,3005471966, -   
Staffordshire County Council,31/01/2015,ANTHONYS AJ'S A1,Other Education and Children's services,Transport,08/01/2015,3005471966, -   
Staffordshire County Council,31/01/2015,ANTHONYS AJ'S A1,Other Education and Children's services,Transport,08/01/2015,3005471966, -   
Staffordshire County Council,31/01/2015,ANTHONYS AJ'S A1,Other Education and Children's services,Transport,08/01/2015,3005471966, -   
Staffordshire County Council,31/01/2015,ANTHONYS AJ'S A1,Other Education and Children's services,Transport,08/01/2015,3005471966, -   
Staffordshire County Council,31/01/2015,ANTHONYS AJ'S A1,Other Education and Children's services,Transport,08/01/2015,3005471966," 18,979.05 "
Staffordshire County Council,31/01/2015,ANTHONYS AJ'S A1,Other Education and Children's services,Transport,08/01/2015,3005471966, -   
Staffordshire County Council,31/01/2015,ANTHONYS AJ'S A1,Other Education and Children's services,Transport,08/01/2015,3005471966, -   
Staffordshire County Council,31/01/2015,ANTHONYS AJ'S A1,Other Education and Children's services,Transport,08/01/2015,3005471966, -   
Staffordshire County Council,31/01/2015,ANTHONYS AJ'S A1,Other Education and Children's services,Transport,08/01/2015,3005471966, -   
Staffordshire County Council,31/01/2015,ANTHONYS AJ'S A1,Other Education and Children's services,Transport,08/01/2015,3005471966, -   
Staffordshire County Council,31/01/2015,ANTHONYS AJ'S A1,Health,Transport,12/01/2015,3005474310, 528.00 
Staffordshire County Council,31/01/2015,ANTHONYS AJ'S A1,Other Education and Children's services,Transport,22/01/2015,3005487677, 672.00 
Staffordshire County Council,31/01/2015,ANTHONYS AJ'S A1,Other Education and Children's services,Transport,22/01/2015,3005487681, 504.00 
Staffordshire County Council,31/01/2015,Applied Radiators,Trading Service County Fleet Care,Supplies & Services,28/01/2015,7008670240, 550.63 
Staffordshire County Council,31/01/2015,Approach Sprtng Your Life Your,Health,Supplies & Services,16/01/2015,3005480019," 2,729.50 "
Staffordshire County Council,31/01/2015,Approach Sprtng Your Life Your,Health,Supplies & Services,16/01/2015,3005480022," 2,087.00 "
Staffordshire County Council,31/01/2015,Approach Sprtng Your Life Your,Health,Transport,21/01/2015,3005484414, 370.00 
Staffordshire County Council,31/01/2015,Approach Sprtng Your Life Your,Health,Supplies & Services,21/01/2015,3005484414," 2,570.88 "
Staffordshire County Council,31/01/2015,Approach Sprtng Your Life Your,Health,Supplies & Services,09/01/2015,4501359483, 824.15 
Staffordshire County Council,31/01/2015,AQA, Schools,Supplies & Services,07/01/2015,3005453190," 1,087.35 "
Staffordshire County Council,31/01/2015,AQA, Schools,Supplies & Services,13/01/2015,3005469779, 560.15 
Staffordshire County Council,31/01/2015,AQA, Schools,Supplies & Services,07/01/2015,3005469924, -   
Staffordshire County Council,31/01/2015,AQA, Schools,Supplies & Services,07/01/2015,3005469924," 1,462.40 "
Staffordshire County Council,31/01/2015,AQA, Schools,Supplies & Services,07/01/2015,3005469924, -   
Staffordshire County Council,31/01/2015,AQA, Schools,Supplies & Services,07/01/2015,3005469924, -   
Staffordshire County Council,31/01/2015,AQA, Schools,Supplies & Services,13/01/2015,3005473545, 560.15 
Staffordshire County Council,31/01/2015,AQA, Schools,Supplies & Services,14/01/2015,3005478730, 593.10 
Staffordshire County Council,31/01/2015,AQA, Schools,Supplies & Services,19/01/2015,3005484478," 1,021.45 "
Staffordshire County Council,31/01/2015,AQA, Schools,Supplies & Services,27/01/2015,3005491237, 500.00 
Staffordshire County Council,31/01/2015,AQA, Schools,Supplies & Services,27/01/2015,3005497295, 500.00 
Staffordshire County Council,31/01/2015,AQUAID (MIDS & SOUTH WALES), Schools,Premises,22/01/2015,3005470349, 930.24 
Staffordshire County Council,31/01/2015,AQUAID (MIDS & SOUTH WALES), Schools,Supplies & Services,19/01/2015,3005474801, 500.16 
Staffordshire County Council,31/01/2015,AQUAID BIRMINGHAM CENTRAL, Schools,Supplies & Services,19/01/2015,3005458011, 728.16 
Staffordshire County Council,31/01/2015,AQUAID BIRMINGHAM CENTRAL, Schools,Supplies & Services,14/01/2015,3005480417, 620.16 
Staffordshire County Council,31/01/2015,AR1 Homecare,Health,Supplies & Services,22/01/2015,3005484615," 1,098.95 "
Staffordshire County Council,31/01/2015,AR1 Homecare,Health,Supplies & Services,22/01/2015,3005484621," 1,063.50 "
Staffordshire County Council,31/01/2015,AR1 Homecare,Health,Supplies & Services,22/01/2015,3005484625, 519.94 
Staffordshire County Council,31/01/2015,AR1 Homecare,Health,Supplies & Services,19/01/2015,4501361647, 965.15 
Staffordshire County Council,31/01/2015,ARCH NORTH STAFFS LTD,Adult Social Care,Supplies & Services,16/01/2015,3005468168," 18,862.45 "
Staffordshire County Council,31/01/2015,ARCH NORTH STAFFS LTD,Adult Social Care,Supplies & Services,07/01/2015,3005468169," 22,158.33 "
Staffordshire County Council,31/01/2015,ARCH NORTH STAFFS LTD,Adult Social Care,Supplies & Services,30/01/2015,3005501274," 22,158.33 "
Staffordshire County Council,31/01/2015,ARJO LTD,Adult Social Care,Premises,19/01/2015,3005474930," 1,268.22 "
Staffordshire County Council,31/01/2015,ARJO LTD,Adult Social Care,Supplies & Services,19/01/2015,3005484897, 690.97 
Staffordshire County Council,31/01/2015,Arnold Clark,Trading Service County Fleet Care,Transport,16/01/2015,7008644826, 567.60 
Staffordshire County Council,31/01/2015,ARROW COUNTY SUPPLIES, Schools,Premises,26/01/2015,3005492891, 989.76 
Staffordshire County Council,31/01/2015,ARTHUR HURST & SON LTD, Schools,Premises,15/01/2015,3005481507, 576.00 
Staffordshire County Council,31/01/2015,ARTHUR M GRIFFITHS & SON LTD, Schools,Premises,22/01/2015,3005477656," 1,342.50 "
Staffordshire County Council,31/01/2015,ARTHUR M GRIFFITHS & SON LTD, Schools,Premises,22/01/2015,3005477656, -   
Staffordshire County Council,31/01/2015,Artis Education Limited, Schools,Employees,19/01/2015,3005479537," 3,978.00 "
Staffordshire County Council,31/01/2015,ARTZ, Schools,Supplies & Services,28/01/2015,3005482810, 957.00 
Staffordshire County Council,31/01/2015,Arval UK Ltd, Schools,Third Party,16/01/2015,3005472338, 565.40 
Staffordshire County Council,31/01/2015,Asda Pharmacy (Stafford),Adult Social Care,Supplies & Services,15/01/2015,3005480485, 794.50 
Staffordshire County Council,31/01/2015,ASHBOURNE COMMUNITY TRANSPORT,Planning & Economic Development,Transport,07/01/2015,3005469970," 8,172.63 "
Staffordshire County Council,31/01/2015,ASHBOURNE COMMUNITY TRANSPORT,Other Education and Children's services,Transport,07/01/2015,3005469970," 2,269.60 "
Staffordshire County Council,31/01/2015,ASHBOURNE COMMUNITY TRANSPORT,Other Education and Children's services,Transport,07/01/2015,3005470034, 638.20 
Staffordshire County Council,31/01/2015,ASHBOURNE COMMUNITY TRANSPORT,Planning & Economic Development,Transport,16/01/2015,3005483516," 8,363.73 "
Staffordshire County Council,31/01/2015,ASHBOURNE COMMUNITY TRANSPORT,Other Education and Children's services,Transport,16/01/2015,3005483516," 1,702.20 "
Staffordshire County Council,31/01/2015,ASKEWS LIBRARY SERVICES LTD,Cultural Services,Supplies & Services,07/01/2015,7008624597, 512.06 
Staffordshire County Council,31/01/2015,ASKEWS LIBRARY SERVICES LTD,Cultural Services,Supplies & Services,07/01/2015,7008624625, 548.48 
Staffordshire County Council,31/01/2015,ASKEWS LIBRARY SERVICES LTD,Cultural Services,Supplies & Services,21/01/2015,7008641907," 3,600.00 "
Staffordshire County Council,31/01/2015,ASKEWS LIBRARY SERVICES LTD,Cultural Services,Supplies & Services,13/01/2015,7008641938, 611.10 
Staffordshire County Council,31/01/2015,ASKEWS LIBRARY SERVICES LTD,Cultural Services,Supplies & Services,14/01/2015,7008642735, 714.80 
Staffordshire County Council,31/01/2015,ASKEWS LIBRARY SERVICES LTD,Cultural Services,Supplies & Services,14/01/2015,7008642752, 504.34 
Staffordshire County Council,31/01/2015,ASKEWS LIBRARY SERVICES LTD,Cultural Services,Supplies & Services,21/01/2015,7008642773, 590.08 
Staffordshire County Council,31/01/2015,ASKEWS LIBRARY SERVICES LTD,Cultural Services,Supplies & Services,27/01/2015,7008669256, 691.16 
Staffordshire County Council,31/01/2015,ASKEWS LIBRARY SERVICES LTD,Cultural Services,Supplies & Services,27/01/2015,7008669275, 705.84 
Staffordshire County Council,31/01/2015,ASKEWS LIBRARY SERVICES LTD,Cultural Services,Supplies & Services,27/01/2015,7008669286, 620.68 
Staffordshire County Council,31/01/2015,ASKEWS LIBRARY SERVICES LTD,Cultural Services,Supplies & Services,28/01/2015,7008669300, 500.00 
Staffordshire County Council,31/01/2015,ASKEWS LIBRARY SERVICES LTD,Cultural Services,Supplies & Services,30/01/2015,7008670079, 520.27 
Staffordshire County Council,31/01/2015,ASM SPORTS UK LTD, Schools,Employees,07/01/2015,3005468286," 3,240.00 "
Staffordshire County Council,31/01/2015,ASM SPORTS UK LTD, Schools,Supplies & Services,07/01/2015,3005469228, 990.00 
Staffordshire County Council,31/01/2015,ASM SPORTS UK LTD, Schools,Employees,07/01/2015,3005469593," 2,088.00 "
Staffordshire County Council,31/01/2015,ASM SPORTS UK LTD, Schools,Employees,07/01/2015,3005469609," 1,404.00 "
Staffordshire County Council,31/01/2015,ASM SPORTS UK LTD, Schools,Supplies & Services,07/01/2015,3005469612, -   
Staffordshire County Council,31/01/2015,ASM SPORTS UK LTD, Schools,Supplies & Services,07/01/2015,3005469612, 777.60 
Staffordshire County Council,31/01/2015,ASM SPORTS UK LTD, Schools,Supplies & Services,07/01/2015,3005469730," 2,172.00 "
Staffordshire County Council,31/01/2015,ASM SPORTS UK LTD, Schools,Supplies & Services,07/01/2015,3005469735, 504.00 
Staffordshire County Council,31/01/2015,ASM SPORTS UK LTD, Schools,Employees,15/01/2015,3005470029," 1,092.00 "
Staffordshire County Council,31/01/2015,ASM SPORTS UK LTD, Schools,Employees,08/01/2015,3005471970," 1,080.00 "
Staffordshire County Council,31/01/2015,ASM SPORTS UK LTD, Schools,Supplies & Services,09/01/2015,3005472911," 1,008.00 "
Staffordshire County Council,31/01/2015,ASM SPORTS UK LTD, Schools,Employees,09/01/2015,3005473222," 1,716.00 "
Staffordshire County Council,31/01/2015,ASM SPORTS UK LTD, Schools,Supplies & Services,20/01/2015,3005486182, 576.00 
Staffordshire County Council,31/01/2015,ASM SPORTS UK LTD, Schools,Supplies & Services,13/01/2015,4501360039," 2,340.00 "
Staffordshire County Council,31/01/2015,ASPENS, Schools,Supplies & Services,14/01/2015,3005469755," 1,873.96 "
Staffordshire County Council,31/01/2015,ASPENS, Schools,Supplies & Services,16/01/2015,3005483623," 1,778.88 "
Staffordshire County Council,31/01/2015,ASPENS, Schools,Supplies & Services,26/01/2015,3005492850," 1,807.74 "
Staffordshire County Council,31/01/2015,Aspirations Care Ltd,Adult Social Care,Supplies & Services,07/01/2015,3005467431," 13,482.86 "
Staffordshire County Council,31/01/2015,Aspirations Care Ltd,Adult Social Care,Supplies & Services,13/01/2015,3005478170," 13,932.28 "
Staffordshire County Council,31/01/2015,Aspire Business Solutions Ltd,Cultural Services,Supplies & Services,09/01/2015,4501359278," 8,100.00 "
Staffordshire County Council,31/01/2015,Aspire Business Solutions Ltd,Cultural Services,Supplies & Services,16/01/2015,4501361002," 3,600.00 "
Staffordshire County Council,31/01/2015,Aspire Business Solutions Ltd,Cultural Services,Supplies & Services,16/01/2015,4501361003," 49,692.00 "
Staffordshire County Council,31/01/2015,ASPIRE HOUSING LTD,Adult Social Care,Supplies & Services,19/01/2015,3005482896," 11,076.00 "
Staffordshire County Council,31/01/2015,ASPIRE HOUSING LTD,Adult Social Care,Supplies & Services,19/01/2015,3005482899," 5,088.00 "
Staffordshire County Council,31/01/2015,ASPIRE PEOPLE LTD, Schools,Employees,06/01/2015,3005452756," 1,882.80 "
Staffordshire County Council,31/01/2015,ASPIRE PEOPLE LTD, Schools,Employees,07/01/2015,3005453160, 675.00 
Staffordshire County Council,31/01/2015,ASPIRE PEOPLE LTD, Schools,Employees,07/01/2015,3005469898," 1,152.00 "
Staffordshire County Council,31/01/2015,ASPIRE PEOPLE LTD, Schools,Employees,07/01/2015,3005470009, 656.36 
Staffordshire County Council,31/01/2015,ASPIRE PEOPLE LTD, Schools,Employees,07/01/2015,3005470038, 596.70 
Staffordshire County Council,31/01/2015,ASPIRE PEOPLE LTD, Schools,Employees,06/01/2015,3005470109,"-1,882.80 "
Staffordshire County Council,31/01/2015,ASPIRE PEOPLE LTD, Schools,Employees,09/01/2015,3005470201," 1,242.90 "
Staffordshire County Council,31/01/2015,ASPIRE PEOPLE LTD, Schools,Employees,09/01/2015,3005470326," 1,170.00 "
Staffordshire County Council,31/01/2015,ASPIRE PEOPLE LTD, Schools,Employees,09/01/2015,3005470357," 1,405.20 "
Staffordshire County Council,31/01/2015,ASPIRE PEOPLE LTD, Schools,Employees,09/01/2015,3005470392," 1,134.00 "
Staffordshire County Council,31/01/2015,ASPIRE PEOPLE LTD, Schools,Employees,07/01/2015,3005470399," 1,247.40 "
Staffordshire County Council,31/01/2015,ASPIRE PEOPLE LTD, Schools,Employees,08/01/2015,3005471644," 1,269.00 "
Staffordshire County Council,31/01/2015,ASPIRE PEOPLE LTD, Schools,Employees,09/01/2015,3005472396, 675.00 
Staffordshire County Council,31/01/2015,ASPIRE PEOPLE LTD, Schools,Employees,09/01/2015,3005472478, 675.00 
Staffordshire County Council,31/01/2015,ASPIRE PEOPLE LTD, Schools,Employees,09/01/2015,3005473390, 954.00 
Staffordshire County Council,31/01/2015,ASPIRE PEOPLE LTD, Schools,Employees,09/01/2015,3005473435," 1,395.60 "
Staffordshire County Council,31/01/2015,ASPIRE PEOPLE LTD, Schools,Employees,09/01/2015,3005473451, 954.00 
Staffordshire County Council,31/01/2015,ASPIRE PEOPLE LTD, Schools,Employees,12/01/2015,3005477562, 608.40 
Staffordshire County Council,31/01/2015,ASPIRE PEOPLE LTD, Schools,Employees,13/01/2015,3005478596," 2,148.00 "
Staffordshire County Council,31/01/2015,ASPIRE PEOPLE LTD, Schools,Employees,13/01/2015,3005478796," 1,020.60 "
Staffordshire County Council,31/01/2015,ASPIRE PEOPLE LTD, Schools,Employees,13/01/2015,3005478978, 540.00 
Staffordshire County Council,31/01/2015,ASPIRE PEOPLE LTD, Schools,Employees,14/01/2015,3005480002, 572.83 
Staffordshire County Council,31/01/2015,ASPIRE PEOPLE LTD, Schools,Employees,14/01/2015,3005480006, 541.01 
Staffordshire County Council,31/01/2015,ASPIRE PEOPLE LTD, Schools,Employees,30/01/2015,3005481710," 1,860.00 "
Staffordshire County Council,31/01/2015,ASPIRE PEOPLE LTD, Schools,Employees,15/01/2015,3005482313," 1,096.80 "
Staffordshire County Council,31/01/2015,ASPIRE PEOPLE LTD, Schools,Employees,15/01/2015,3005482331," 1,430.40 "
Staffordshire County Council,31/01/2015,ASPIRE PEOPLE LTD, Schools,Employees,16/01/2015,3005482835, 680.40 
Staffordshire County Council,31/01/2015,ASPIRE PEOPLE LTD, Schools,Employees,16/01/2015,3005482840," 1,491.00 "
Staffordshire County Council,31/01/2015,ASPIRE PEOPLE LTD, Schools,Employees,16/01/2015,3005482843, 815.40 
Staffordshire County Council,31/01/2015,ASPIRE PEOPLE LTD, Schools,Employees,16/01/2015,3005482849," 2,166.00 "
Staffordshire County Council,31/01/2015,ASPIRE PEOPLE LTD, Schools,Employees,16/01/2015,3005482857," 1,265.40 "
Staffordshire County Council,31/01/2015,ASPIRE PEOPLE LTD, Schools,Employees,30/01/2015,3005483342, 954.00 
Staffordshire County Council,31/01/2015,ASPIRE PEOPLE LTD, Schools,Employees,30/01/2015,3005483502, 775.20 
Staffordshire County Council,31/01/2015,ASPIRE PEOPLE LTD, Schools,Employees,30/01/2015,3005483596," 1,071.30 "
Staffordshire County Council,31/01/2015,ASPIRE PEOPLE LTD, Schools,Employees,16/01/2015,3005483654," 2,326.80 "
Staffordshire County Council,31/01/2015,ASPIRE PEOPLE LTD, Schools,Employees,16/01/2015,3005483660," 2,148.00 "
Staffordshire County Council,31/01/2015,ASPIRE PEOPLE LTD, Schools,Employees,30/01/2015,3005483667, 672.00 
Staffordshire County Council,31/01/2015,ASPIRE PEOPLE LTD, Schools,Employees,16/01/2015,3005483799," 1,247.40 "
Staffordshire County Council,31/01/2015,ASPIRE PEOPLE LTD, Schools,Employees,20/01/2015,3005484436," 2,760.00 "
Staffordshire County Council,31/01/2015,ASPIRE PEOPLE LTD, Schools,Employees,20/01/2015,3005484436, -   
Staffordshire County Council,31/01/2015,ASPIRE PEOPLE LTD, Schools,Employees,20/01/2015,3005485954," 2,660.40 "
Staffordshire County Council,31/01/2015,ASPIRE PEOPLE LTD, Schools,Employees,20/01/2015,3005485963," 3,056.40 "
Staffordshire County Council,31/01/2015,ASPIRE PEOPLE LTD, Schools,Employees,30/01/2015,3005488001," 2,340.00 "
Staffordshire County Council,31/01/2015,ASPIRE PEOPLE LTD, Schools,Employees,30/01/2015,3005489765," 1,134.00 "
Staffordshire County Council,31/01/2015,ASPIRE PEOPLE LTD, Schools,Employees,30/01/2015,3005491057, 859.20 
Staffordshire County Council,31/01/2015,ASPIRE PEOPLE LTD, Schools,Employees,30/01/2015,3005491316, 675.00 
Staffordshire County Council,31/01/2015,ASPIRE PEOPLE LTD, Schools,Employees,12/01/2015,3005497278,-608.40 
Staffordshire County Council,31/01/2015,AspireOne Care Ltd,Other Education and Children's services,Third Party,23/01/2015,7008658452," 13,795.00 "
Staffordshire County Council,31/01/2015,Assist Domiciliary Care Limite,Health,Supplies & Services,09/01/2015,4501359526, 906.39 
Staffordshire County Council,31/01/2015,Assist Domiciliary Care Limite,Health,Supplies & Services,20/01/2015,4501361878, 525.73 
Staffordshire County Council,31/01/2015,ASSOCIATED RADIO TAXIS,Other Education and Children's services,Transport,07/01/2015,3005468912," 3,317.54 "
Staffordshire County Council,31/01/2015,ASSOCIATED RADIO TAXIS,Other Education and Children's services,Transport,07/01/2015,3005468912, -   
Staffordshire County Council,31/01/2015,ASSOCIATED RADIO TAXIS,Other Education and Children's services,Transport,07/01/2015,3005468912, -   
Staffordshire County Council,31/01/2015,ASSOCIATED RADIO TAXIS,Other Education and Children's services,Transport,07/01/2015,3005468912, -   
Staffordshire County Council,31/01/2015,ASSOCIATED RADIO TAXIS, Schools,Transport,15/01/2015,3005474234, 685.40 
Staffordshire County Council,31/01/2015,ATG ACCESS LTD,Highways and transport,Third Party,28/01/2015,4501362000, 516.02 
Staffordshire County Council,31/01/2015,ATKINS TRANSPORT PLANNING,Highways and transport,Capital,23/01/2015,3005480106," 35,732.40 "
Staffordshire County Council,31/01/2015,ATS EUROMASTER LTD,Trading Service County Fleet Care,Transport,14/01/2015,3005473323," 5,808.78 "
Staffordshire County Council,31/01/2015,ATS EUROMASTER LTD,Police,Transport,07/01/2015,4501358930, 641.65 
Staffordshire County Council,31/01/2015,AUTOMOBILE ASSOCIATION DEV LTD,Trading Service County Fleet Care,Transport,22/01/2015,3005489764, 845.38 
Staffordshire County Council,31/01/2015,AV PARTS MASTER LTD, Schools,Supplies & Services,20/01/2015,3005486105, -   
Staffordshire County Council,31/01/2015,AV PARTS MASTER LTD, Schools,Supplies & Services,20/01/2015,3005486105, 890.39 
Staffordshire County Council,31/01/2015,AV PARTS MASTER LTD,ICT,ICT Equipment,09/01/2015,4501359557," 1,669.20 "
Staffordshire County Council,31/01/2015,AV PARTS MASTER LTD,ICT,ICT Equipment,09/01/2015,4501359558, 697.20 
Staffordshire County Council,31/01/2015,AV PARTS MASTER LTD,ICT,ICT Equipment,15/01/2015,4501359598," 1,134.00 "
Staffordshire County Council,31/01/2015,AV PARTS MASTER LTD,ICT,ICT Equipment,12/01/2015,4501359795, 880.80 
Staffordshire County Council,31/01/2015,AV PARTS MASTER LTD,ICT,ICT Equipment,19/01/2015,4501359799," 1,303.20 "
Staffordshire County Council,31/01/2015,AV PARTS MASTER LTD, Schools,Supplies & Services,27/01/2015,4501361499," 2,171.99 "
Staffordshire County Council,31/01/2015,Avery Weigh-Tronix,Highways and transport,Third Party,07/01/2015,4501357342," 1,623.30 "
Staffordshire County Council,31/01/2015,Avery Weigh-Tronix,Highways and transport,Third Party,07/01/2015,4501357416," 1,968.00 "
Staffordshire County Council,31/01/2015,AYUDANTE, Schools,Supplies & Services,19/01/2015,3005482060, 611.00 
Staffordshire County Council,31/01/2015,AYUDANTE, Schools,Supplies & Services,20/01/2015,3005486589, 998.27 
Staffordshire County Council,31/01/2015,B & A TEXTILES LTD,Highways and transport,Supplies & Services,23/01/2015,4501361491," 6,430.80 "
Staffordshire County Council,31/01/2015,B & J ENGINEERING (SOT) LTD, Schools,Capital,27/01/2015,4501364023," 7,994.40 "
Staffordshire County Council,31/01/2015,B HUSSAIN,Law & Governence,Supplies & Services,23/01/2015,3005471995," 1,800.00 "
Staffordshire County Council,31/01/2015,B P BROWN TRAVEL LTD,Planning & Economic Development,Transport,15/01/2015,3005480287," 17,954.75 "
Staffordshire County Council,31/01/2015,B P BROWN TRAVEL LTD,Planning & Economic Development,Transport,19/01/2015,3005483554," 9,884.00 "
Staffordshire County Council,31/01/2015,B P BROWN TRAVEL LTD,Planning & Economic Development,Transport,28/01/2015,3005497816, 907.74 
Staffordshire County Council,31/01/2015,B SQUARED, Schools,Supplies & Services,07/01/2015,3005470023, 540.00 
Staffordshire County Council,31/01/2015,B4 LEGAL,CXO,87502,14/01/2015,3005480041," 109,781.05 "
Staffordshire County Council,31/01/2015,Badger Learning, Schools,Supplies & Services,23/01/2015,3005485953, 509.15 
Staffordshire County Council,31/01/2015,Badger Learning, Schools,Supplies & Services,29/01/2015,3005499979, 736.64 
Staffordshire County Council,31/01/2015,BAGNALLS COACHES, Schools,Transport,08/01/2015,3005472317, 895.00 
Staffordshire County Council,31/01/2015,BAKERS COACHES,Planning & Economic Development,Transport,14/01/2015,3005472236," 14,055.09 "
Staffordshire County Council,31/01/2015,BAKERS COACHES,Planning & Economic Development,Transport,23/01/2015,3005490242," 4,277.96 "
Staffordshire County Council,31/01/2015,BALFOR RECRUITMENT GROUP LTD, Schools,Employees,16/01/2015,3005483072, 684.00 
Staffordshire County Council,31/01/2015,Balfour Beatty Civil Eng Ltd,Highways and transport,Capital,26/01/2015,4501362668," 249,619.87 "
Staffordshire County Council,31/01/2015,BANNER BUSINESS SERVICES LTD, Schools,Supplies & Services,23/01/2015,3005491231, 627.18 
Staffordshire County Council,31/01/2015,BANNER BUSINESS SERVICES LTD, Schools,Supplies & Services,23/01/2015,3005491284,-540.18 
Staffordshire County Council,31/01/2015,BANNER BUSINESS SERVICES LTD, Schools,Supplies & Services,07/01/2015,4501358081, 791.24 
Staffordshire County Council,31/01/2015,BANNER BUSINESS SERVICES LTD, Schools,Supplies & Services,20/01/2015,4501360542, 582.84 
Staffordshire County Council,31/01/2015,BARNARDO SERVICES LTD,Other Education and Children's services,Supplies & Services,14/01/2015,3005480134," 15,000.00 "
Staffordshire County Council,31/01/2015,BARNARDO'S,Other Education and Children's services,Supplies & Services,23/01/2015,7008658530," 3,751.31 "
Staffordshire County Council,31/01/2015,BARNARDO'S,Other Education and Children's services,Supplies & Services,23/01/2015,7008658571," 7,387.79 "
Staffordshire County Council,31/01/2015,BARNARDO'S,Other Education and Children's services,Supplies & Services,23/01/2015,7008659329," 3,751.31 "
Staffordshire County Council,31/01/2015,BARNARDO'S,Other Education and Children's services,Supplies & Services,26/01/2015,7008667836," 3,296.98 "
Staffordshire County Council,31/01/2015,Barnardos Yorkshire,Other Education and Children's services,Supplies & Services,26/01/2015,7008667839," 4,692.47 "
Staffordshire County Council,31/01/2015,BARRIERS DIRECT, Schools,Supplies & Services,20/01/2015,4501362177, 944.80 
Staffordshire County Council,31/01/2015,Barton Village Taxis,Other Education and Children's services,Transport,19/01/2015,3005472009," 3,811.50 "
Staffordshire County Council,31/01/2015,Barton Village Taxis,Other Education and Children's services,Transport,19/01/2015,3005472009, -   
Staffordshire County Council,31/01/2015,Barton Village Taxis,Other Education and Children's services,Transport,19/01/2015,3005472009, -   
Staffordshire County Council,31/01/2015,Barton Village Taxis,Other Education and Children's services,Transport,19/01/2015,3005472009, -   
Staffordshire County Council,31/01/2015,Barton Village Taxis,Other Education and Children's services,Transport,19/01/2015,3005472009, -   
Staffordshire County Council,31/01/2015,Barton Village Taxis,Other Education and Children's services,Transport,19/01/2015,3005472009, -   
Staffordshire County Council,31/01/2015,Barton Village Taxis,Other Education and Children's services,Transport,19/01/2015,3005472009, -   
Staffordshire County Council,31/01/2015,Base 25,Other Education and Children's services,Supplies & Services,07/01/2015,3005467190," 1,020.00 "
Staffordshire County Council,31/01/2015,Base 25, Schools,Supplies & Services,13/01/2015,3005468899," 1,260.00 "
Staffordshire County Council,31/01/2015,Base 25, Schools,Supplies & Services,20/01/2015,3005470372, 540.00 
Staffordshire County Council,31/01/2015,Base 25, Schools,Supplies & Services,20/01/2015,3005474863," 1,155.00 "
Staffordshire County Council,31/01/2015,BATES & HUNT (PETROLEUM) LTD, Schools,Premises,22/01/2015,3005490410," 1,138.20 "
Staffordshire County Council,31/01/2015,Bates Office Services Ltd, Schools,Supplies & Services,14/01/2015,3005469697, 656.32 
Staffordshire County Council,31/01/2015,BAYLISS CONTRACT SERVICES, Schools,Premises,19/01/2015,4501361532," 6,681.60 "
Staffordshire County Council,31/01/2015,BAYLISS CONTRACT SERVICES, Schools,Supplies & Services,20/01/2015,4501361917," 6,000.00 "
Staffordshire County Council,31/01/2015,BAYLISS CONTRACT SERVICES, Schools,Capital,20/01/2015,4501361918," 3,355.20 "
Staffordshire County Council,31/01/2015,BAYLISS CONTRACT SERVICES, Schools,Capital,20/01/2015,4501361919," 2,596.80 "
Staffordshire County Council,31/01/2015,BB Interpretive Products Ltd,Cultural Services,Supplies & Services,14/01/2015,4501357287," 1,319.28 "
Staffordshire County Council,31/01/2015,BCIS,Highways and transport,Supplies & Services,13/01/2015,3005456264," 1,122.00 "
Staffordshire County Council,31/01/2015,BCS Cleaning Services, Schools,Premises,20/01/2015,3005469464, 900.00 
Staffordshire County Council,31/01/2015,BDO LLP,Finance,Employees,07/01/2015,3005468563," 4,800.00 "
Staffordshire County Council,31/01/2015,BDO LLP,Finance,Employees,07/01/2015,3005468572," 7,200.00 "
Staffordshire County Council,31/01/2015,BEAT THE COLD,Adult Social Care,Supplies & Services,28/01/2015,3005486275," 9,876.00 "
Staffordshire County Council,31/01/2015,Belgrave St Bartholomew's Teac, Schools,Supplies & Services,08/01/2015,3005472100," 1,440.00 "
Staffordshire County Council,31/01/2015,Belgrave St Bartholomew's Teac, Schools,Supplies & Services,12/01/2015,3005473321," 1,050.00 "
Staffordshire County Council,31/01/2015,Belgrave St Bartholomew's Teac, Schools,Employees,14/01/2015,3005480014, 900.00 
Staffordshire County Council,31/01/2015,Belgrave St Bartholomew's Teac, Schools,Supplies & Services,13/01/2015,4501360201, 900.00 
Staffordshire County Council,31/01/2015,BENNETT'S TAXIS,Other Education and Children's services,Transport,21/01/2015,3005471920," 19,006.46 "
Staffordshire County Council,31/01/2015,BENNETT'S TAXIS,Other Education and Children's services,Transport,21/01/2015,3005471920, -   
Staffordshire County Council,31/01/2015,BENNETT'S TAXIS,Other Education and Children's services,Transport,21/01/2015,3005471920, -   
Staffordshire County Council,31/01/2015,BENNETT'S TAXIS,Other Education and Children's services,Transport,21/01/2015,3005471920, -   
Staffordshire County Council,31/01/2015,BENNETT'S TAXIS,Other Education and Children's services,Transport,21/01/2015,3005471920, -   
Staffordshire County Council,31/01/2015,BENNETT'S TAXIS,Other Education and Children's services,Transport,21/01/2015,3005471920, -   
Staffordshire County Council,31/01/2015,BENNETT'S TAXIS,Other Education and Children's services,Transport,21/01/2015,3005471920, -   
Staffordshire County Council,31/01/2015,BENNETT'S TAXIS,Other Education and Children's services,Transport,21/01/2015,3005471920, -   
Staffordshire County Council,31/01/2015,BENNETT'S TAXIS,Other Education and Children's services,Transport,21/01/2015,3005471920, -   
Staffordshire County Council,31/01/2015,BENNETT'S TAXIS,Other Education and Children's services,Transport,21/01/2015,3005471920, -   
Staffordshire County Council,31/01/2015,BENNETT'S TAXIS,Other Education and Children's services,Transport,21/01/2015,3005471920, -   
Staffordshire County Council,31/01/2015,BENNETT'S TAXIS,Other Education and Children's services,Transport,21/01/2015,3005471920, -   
Staffordshire County Council,31/01/2015,BENNETT'S TAXIS,Other Education and Children's services,Transport,21/01/2015,3005471920, -   
Staffordshire County Council,31/01/2015,BENNETT'S TAXIS,Other Education and Children's services,Transport,21/01/2015,3005471920, -   
Staffordshire County Council,31/01/2015,BENNETT'S TAXIS,Other Education and Children's services,Transport,21/01/2015,3005471920, -   
Staffordshire County Council,31/01/2015,BENNETT'S TAXIS,Other Education and Children's services,Transport,21/01/2015,3005471920, -   
Staffordshire County Council,31/01/2015,BENNETT'S TAXIS,Other Education and Children's services,Transport,21/01/2015,3005471920, -   
Staffordshire County Council,31/01/2015,BENNETT'S TAXIS,Other Education and Children's services,Transport,21/01/2015,3005471920, -   
Staffordshire County Council,31/01/2015,BENNETT'S TAXIS,Adult Social Care,Transport,14/01/2015,3005477550," 1,142.40 "
Staffordshire County Council,31/01/2015,BENNETT'S TAXIS,Adult Social Care,Transport,14/01/2015,3005477556," 1,080.00 "
Staffordshire County Council,31/01/2015,BENNETT'S TAXIS,Other Education and Children's services,Supplies & Services,28/01/2015,3005479544," 1,608.00 "
Staffordshire County Council,31/01/2015,BENNETT'S TAXIS,Other Education and Children's services,Transport,16/01/2015,3005482310," 2,880.00 "
Staffordshire County Council,31/01/2015,BENNETT'S TAXIS,Other Education and Children's services,Transport,22/01/2015,3005487684," 1,353.00 "
Staffordshire County Council,31/01/2015,BENNETT'S TAXIS,Other Education and Children's services,Transport,19/01/2015,4501361684, 950.40 
Staffordshire County Council,31/01/2015,BENNETTS TRAVEL (CRANBERRY) LT,Planning & Economic Development,Transport,08/01/2015,3005471738," 3,339.00 "
Staffordshire County Council,31/01/2015,BENNETTS TRAVEL (CRANBERRY) LT,Planning & Economic Development,Transport,14/01/2015,3005478644," 18,700.00 "
Staffordshire County Council,31/01/2015,BENNETTS TRAVEL (CRANBERRY) LT,Planning & Economic Development,Transport,14/01/2015,3005478647," 18,827.80 "
Staffordshire County Council,31/01/2015,BENNETTS TRAVEL (CRANBERRY) LT,Planning & Economic Development,Transport,14/01/2015,3005480187," 6,801.36 "
Staffordshire County Council,31/01/2015,BENNETTS TRAVEL (CRANBERRY) LT,Other Education and Children's services,Transport,14/01/2015,3005480187," 4,578.20 "
Staffordshire County Council,31/01/2015,BENNETTS TRAVEL (CRANBERRY) LT,Other Education and Children's services,Transport,14/01/2015,3005480192," 12,927.38 "
Staffordshire County Council,31/01/2015,BENNETTS TRAVEL (CRANBERRY) LT,Planning & Economic Development,Transport,22/01/2015,3005484823," 2,308.00 "
Staffordshire County Council,31/01/2015,BENNETTS TRAVEL (CRANBERRY) LT,Planning & Economic Development,Transport,22/01/2015,3005484827, 577.00 
Staffordshire County Council,31/01/2015,BENNETTS TRAVEL (CRANBERRY) LT,Planning & Economic Development,Transport,23/01/2015,3005491533," 3,316.00 "
Staffordshire County Council,31/01/2015,BENNETTS TRAVEL LTD,Other Education and Children's services,Transport,07/01/2015,3005468958, -   
Staffordshire County Council,31/01/2015,BENNETTS TRAVEL LTD,Other Education and Children's services,Transport,07/01/2015,3005468958, -   
Staffordshire County Council,31/01/2015,BENNETTS TRAVEL LTD,Other Education and Children's services,Transport,07/01/2015,3005468958, -   
Staffordshire County Council,31/01/2015,BENNETTS TRAVEL LTD,Other Education and Children's services,Transport,07/01/2015,3005468958, -   
Staffordshire County Council,31/01/2015,BENNETTS TRAVEL LTD,Other Education and Children's services,Transport,07/01/2015,3005468958, -   
Staffordshire County Council,31/01/2015,BENNETTS TRAVEL LTD,Other Education and Children's services,Transport,07/01/2015,3005468958, -   
Staffordshire County Council,31/01/2015,BENNETTS TRAVEL LTD,Other Education and Children's services,Transport,07/01/2015,3005468958, -   
Staffordshire County Council,31/01/2015,BENNETTS TRAVEL LTD,Other Education and Children's services,Transport,07/01/2015,3005468958, -   
Staffordshire County Council,31/01/2015,BENNETTS TRAVEL LTD,Other Education and Children's services,Transport,07/01/2015,3005468958," 12,413.71 "
Staffordshire County Council,31/01/2015,BENNETTS TRAVEL LTD,Other Education and Children's services,Transport,07/01/2015,3005468958, -   
Staffordshire County Council,31/01/2015,BENNETTS TRAVEL LTD,Other Education and Children's services,Transport,07/01/2015,3005468958, -   
Staffordshire County Council,31/01/2015,BENNETTS TRAVEL LTD,Other Education and Children's services,Transport,07/01/2015,3005468958, -   
Staffordshire County Council,31/01/2015,BENNETTS TRAVEL LTD,Other Education and Children's services,Transport,07/01/2015,3005468958, -   
Staffordshire County Council,31/01/2015,BEST IMPRESSIONS LTD,Planning & Economic Development,Supplies & Services,29/01/2015,3005498211," 5,424.00 "
Staffordshire County Council,31/01/2015,BIBLIOTHECA LTD,Cultural Services,Supplies & Services,13/01/2015,7008641908, 999.43 
Staffordshire County Council,31/01/2015,BID, CXO,Premises,14/01/2015,4501360079, 870.00 
Staffordshire County Council,31/01/2015,BIDDULPH HIGH SCHOOL (ACADEMY), Schools,Supplies & Services,23/01/2015,3005489048," 8,248.86 "
Staffordshire County Council,31/01/2015,Biffa Waste Services, CXO,Supplies & Services,09/01/2015,3005469340, 534.84 
Staffordshire County Council,31/01/2015,Biffa Waste Services, Schools,Supplies & Services,22/01/2015,3005482291," 2,411.14 "
Staffordshire County Council,31/01/2015,BIFFA WASTE SERVICES LTD,Environment,Supplies & Services,13/01/2015,3005299662, -   
Staffordshire County Council,31/01/2015,BIFFA WASTE SERVICES LTD,Environment,Supplies & Services,13/01/2015,3005299662," 9,155.96 "
Staffordshire County Council,31/01/2015,BIFFA WASTE SERVICES LTD, CXO,Supplies & Services,12/01/2015,3005442774, 736.32 
Staffordshire County Council,31/01/2015,BIFFA WASTE SERVICES LTD, Schools,Supplies & Services,09/01/2015,3005468840, 555.43 
Staffordshire County Council,31/01/2015,BIFFA WASTE SERVICES LTD,Environment,Supplies & Services,13/01/2015,3005472159, -   
Staffordshire County Council,31/01/2015,BIFFA WASTE SERVICES LTD,Environment,Supplies & Services,13/01/2015,3005472159, 833.78 
Staffordshire County Council,31/01/2015,BIFFA WASTE SERVICES LTD,Environment,Supplies & Services,13/01/2015,3005472194, -   
Staffordshire County Council,31/01/2015,BIFFA WASTE SERVICES LTD,Environment,Supplies & Services,13/01/2015,3005472194," 1,317.55 "
Staffordshire County Council,31/01/2015,BIFFA WASTE SERVICES LTD,Environment,Supplies & Services,13/01/2015,3005472200, 581.87 
Staffordshire County Council,31/01/2015,BIFFA WASTE SERVICES LTD,Environment,Supplies & Services,13/01/2015,3005472200, -   
Staffordshire County Council,31/01/2015,BIFFA WASTE SERVICES LTD,Environment,Supplies & Services,13/01/2015,3005472203," 1,326.47 "
Staffordshire County Council,31/01/2015,BIFFA WASTE SERVICES LTD,Environment,Supplies & Services,13/01/2015,3005472203, -   
Staffordshire County Council,31/01/2015,BIFFA WASTE SERVICES LTD,Environment,Supplies & Services,13/01/2015,3005472229, -   
Staffordshire County Council,31/01/2015,BIFFA WASTE SERVICES LTD,Environment,Supplies & Services,13/01/2015,3005472229," 2,224.90 "
Staffordshire County Council,31/01/2015,BIFFA WASTE SERVICES LTD, Schools,Supplies & Services,22/01/2015,3005478004, 513.55 
Staffordshire County Council,31/01/2015,BIFFA WASTE SERVICES LTD, Schools,Supplies & Services,22/01/2015,3005478982," 1,088.26 "
Staffordshire County Council,31/01/2015,BIFFA WASTE SERVICES LTD, Schools,Supplies & Services,22/01/2015,3005479692, 611.52 
Staffordshire County Council,31/01/2015,BIFFA WASTE SERVICES LTD, Schools,Supplies & Services,22/01/2015,3005479978, 611.52 
Staffordshire County Council,31/01/2015,BIFFA WASTE SERVICES LTD, Schools,Supplies & Services,22/01/2015,3005480362," 2,169.02 "
Staffordshire County Council,31/01/2015,BIFFA WASTE SERVICES LTD,Environment,Supplies & Services,19/01/2015,3005482115," 1,761.19 "
Staffordshire County Council,31/01/2015,BIFFA WASTE SERVICES LTD,Environment,Supplies & Services,19/01/2015,3005482115, -   
Staffordshire County Council,31/01/2015,BIFFA WASTE SERVICES LTD,Environment,Supplies & Services,19/01/2015,3005482117," 2,077.76 "
Staffordshire County Council,31/01/2015,BIFFA WASTE SERVICES LTD,Environment,Supplies & Services,19/01/2015,3005482117, -   
Staffordshire County Council,31/01/2015,BIFFA WASTE SERVICES LTD,Environment,Supplies & Services,19/01/2015,3005482119," 1,491.43 "
Staffordshire County Council,31/01/2015,BIFFA WASTE SERVICES LTD,Environment,Supplies & Services,19/01/2015,3005482119, -   
Staffordshire County Council,31/01/2015,BIFFA WASTE SERVICES LTD,Environment,Supplies & Services,19/01/2015,3005482123," 1,110.23 "
Staffordshire County Council,31/01/2015,BIFFA WASTE SERVICES LTD,Environment,Supplies & Services,19/01/2015,3005482123, -   
Staffordshire County Council,31/01/2015,BIFFA WASTE SERVICES LTD, Schools,Supplies & Services,22/01/2015,3005482965, 969.07 
Staffordshire County Council,31/01/2015,BIFFA WASTE SERVICES LTD, Schools,Supplies & Services,22/01/2015,3005483006, 941.30 
Staffordshire County Council,31/01/2015,BIFFA WASTE SERVICES LTD, Schools,Supplies & Services,22/01/2015,3005483141, 611.52 
Staffordshire County Council,31/01/2015,BIFFA WASTE SERVICES LTD, Schools,Supplies & Services,22/01/2015,3005483466, 730.70 
Staffordshire County Council,31/01/2015,BIFFA WASTE SERVICES LTD,Environment,Supplies & Services,19/01/2015,3005483809, -   
Staffordshire County Council,31/01/2015,BIFFA WASTE SERVICES LTD,Environment,Supplies & Services,19/01/2015,3005483809,"-2,340.82 "
Staffordshire County Council,31/01/2015,BIFFA WASTE SERVICES LTD, Schools,Supplies & Services,22/01/2015,3005486713, 611.52 
Staffordshire County Council,31/01/2015,BIFFA WASTE SERVICES LTD,Environment,Supplies & Services,26/01/2015,3005493052, -   
Staffordshire County Council,31/01/2015,BIFFA WASTE SERVICES LTD,Environment,Supplies & Services,26/01/2015,3005493052," 2,066.62 "
Staffordshire County Council,31/01/2015,BIFFA WASTE SERVICES LTD,Environment,Supplies & Services,26/01/2015,3005493055," 2,320.76 "
Staffordshire County Council,31/01/2015,BIFFA WASTE SERVICES LTD,Environment,Supplies & Services,26/01/2015,3005493055, -   
Staffordshire County Council,31/01/2015,BIFFA WASTE SERVICES LTD,Environment,Supplies & Services,26/01/2015,3005493060," 2,155.79 "
Staffordshire County Council,31/01/2015,BIFFA WASTE SERVICES LTD,Environment,Supplies & Services,26/01/2015,3005493060, -   
Staffordshire County Council,31/01/2015,BIFFA WASTE SERVICES LTD,Environment,Supplies & Services,26/01/2015,3005493063," 4,046.28 "
Staffordshire County Council,31/01/2015,BIFFA WASTE SERVICES LTD,Environment,Supplies & Services,26/01/2015,3005493063, -   
Staffordshire County Council,31/01/2015,BIFFA WASTE SERVICES LTD,Environment,Supplies & Services,27/01/2015,3005493075," 23,489.36 "
Staffordshire County Council,31/01/2015,Big On Driver Training,Other Education and Children's services,Employees,08/01/2015,3005470092, 676.50 
Staffordshire County Council,31/01/2015,Birmingham Chamber of Commerce,Planning & Economic Development,Supplies & Services,13/01/2015,3005425148," 5,994.00 "
Staffordshire County Council,31/01/2015,Birmingham City Council, Schools,Employees,09/01/2015,3005472477, 525.00 
Staffordshire County Council,31/01/2015,Birmingham City Council,Planning & Economic Development,Supplies & Services,22/01/2015,3005478837," 21,663.85 "
Staffordshire County Council,31/01/2015,BIRSE CIVILS LTD,Highways and transport,Capital,23/01/2015,4501359599," 127,937.12 "
Staffordshire County Council,31/01/2015,BIRSE CIVILS LTD,Highways and transport,Capital,21/01/2015,4501360245," 51,178.61 "
Staffordshire County Council,31/01/2015,BIRSE CIVILS LTD,Highways and transport,Capital,26/01/2015,4501360783," 861,248.75 "
Staffordshire County Council,31/01/2015,BIRSE CIVILS LTD,Highways and transport,Capital,29/01/2015,4501361803," 137,235.65 "
Staffordshire County Council,31/01/2015,Bizzy Bears Childminding, Schools,Supplies & Services,22/01/2015,7008560171,-597.38 
Staffordshire County Council,31/01/2015,Bizzy Bears Childminding, Schools,Supplies & Services,22/01/2015,7008658196," 1,194.66 "
Staffordshire County Council,31/01/2015,Bizzy Bears Childminding, Schools,Supplies & Services,23/01/2015,7008667762, 796.44 
Staffordshire County Council,31/01/2015,Bizzy Bears Childminding, Schools,Supplies & Services,23/01/2015,7008667763, 533.53 
Staffordshire County Council,31/01/2015,Black Country Reinvestment Soc,Planning & Economic Development,Supplies & Services,12/01/2015,3005477557," 100,000.00 "
Staffordshire County Council,31/01/2015,Blackberry Productions, Schools,Employees,30/01/2015,3005501050, 534.00 
Staffordshire County Council,31/01/2015,Blackberry Productions, Schools,Employees,30/01/2015,3005501056, 534.00 
Staffordshire County Council,31/01/2015,BLACKBOARD RECRUITMENT LTD, Schools,Employees,09/01/2015,3005470052, 741.36 
Staffordshire County Council,31/01/2015,BLACKBOARD RECRUITMENT LTD, Schools,Employees,07/01/2015,3005470202," 1,092.00 "
Staffordshire County Council,31/01/2015,BLACKBOARD RECRUITMENT LTD, Schools,Employees,27/01/2015,3005491137, 549.78 
Staffordshire County Council,31/01/2015,BLACKFRIARS ACADEMY, Schools,Supplies & Services,09/01/2015,3005468655," 290,000.00 "
Staffordshire County Council,31/01/2015,BLAKEMORE FOOD SERVICE LTD,Adult Social Care,Supplies & Services,07/01/2015,3005467936, 561.68 
Staffordshire County Council,31/01/2015,BLAKEMORE FOOD SERVICE LTD, Schools,Supplies & Services,16/01/2015,3005469277, 576.25 
Staffordshire County Council,31/01/2015,BLAKEMORE FOOD SERVICE LTD, Schools,Supplies & Services,07/01/2015,3005469311, 701.60 
Staffordshire County Council,31/01/2015,BLAKEMORE FOOD SERVICE LTD, Schools,Supplies & Services,13/01/2015,3005469550, 705.38 
Staffordshire County Council,31/01/2015,BLAKEMORE FOOD SERVICE LTD, Schools,Supplies & Services,09/01/2015,3005471844, 657.12 
Staffordshire County Council,31/01/2015,BLAKEMORE FOOD SERVICE LTD, Schools,Supplies & Services,20/01/2015,3005474425, 583.22 
Staffordshire County Council,31/01/2015,BLAKEMORE FOOD SERVICE LTD,Adult Social Care,Supplies & Services,20/01/2015,3005474578, 560.31 
Staffordshire County Council,31/01/2015,BLAKEMORE FOOD SERVICE LTD, Schools,Supplies & Services,19/01/2015,3005474618, 710.48 
Staffordshire County Council,31/01/2015,BLAKEMORE FOOD SERVICE LTD, Schools,Supplies & Services,23/01/2015,3005478086, 758.43 
Staffordshire County Council,31/01/2015,BLAKEMORE FOOD SERVICE LTD, Schools,Supplies & Services,23/01/2015,3005478086, -   
Staffordshire County Council,31/01/2015,BLAKEMORE FOOD SERVICE LTD, Schools,Supplies & Services,21/01/2015,3005482286, 631.62 
Staffordshire County Council,31/01/2015,BLAKEMORE FOOD SERVICE LTD, Schools,Supplies & Services,28/01/2015,3005482296, 630.58 
Staffordshire County Council,31/01/2015,BLAKEMORE FOOD SERVICE LTD, Schools,Supplies & Services,16/01/2015,3005483634, -   
Staffordshire County Council,31/01/2015,BLAKEMORE FOOD SERVICE LTD, Schools,Supplies & Services,16/01/2015,3005483634, 605.21 
Staffordshire County Council,31/01/2015,BLAKEMORE FOOD SERVICE LTD, Schools,Supplies & Services,30/01/2015,3005486091, 726.54 
Staffordshire County Council,31/01/2015,BLAKEMORE FOOD SERVICE LTD, Schools,Supplies & Services,27/01/2015,3005486254, 550.85 
Staffordshire County Council,31/01/2015,BLAKEMORE FOOD SERVICE LTD, Schools,Supplies & Services,26/01/2015,3005490335, 669.22 
Staffordshire County Council,31/01/2015,BLAKEMORE FOOD SERVICE LTD, Schools,Supplies & Services,23/01/2015,3005491110, 707.05 
Staffordshire County Council,31/01/2015,BLAKEMORE FOOD SERVICE LTD, Schools,Supplies & Services,26/01/2015,3005493333," 1,016.26 "
Staffordshire County Council,31/01/2015,BLAKEMORE FOOD SERVICE LTD, Schools,Supplies & Services,27/01/2015,3005495956, 754.71 
Staffordshire County Council,31/01/2015,BLAKEMORE FOOD SERVICE LTD,Adult Social Care,Supplies & Services,12/01/2015,4501358011, 810.97 
Staffordshire County Council,31/01/2015,BLAKEMORE FOOD SERVICE LTD,Adult Social Care,Supplies & Services,27/01/2015,4501361778, 657.02 
Staffordshire County Council,31/01/2015,BLAKEMORE FOOD SERVICE LTD,Adult Social Care,Supplies & Services,23/01/2015,4501363519, 580.44 
Staffordshire County Council,31/01/2015,BLAKEMORE FOOD SERVICE LTD,Adult Social Care,Supplies & Services,23/01/2015,4501363535, 551.80 
Staffordshire County Council,31/01/2015,Blithfield Safety Training Ltd, Schools,Employees,22/01/2015,3005490338," 1,198.80 "
Staffordshire County Council,31/01/2015,BLOOMIN GARDENS & LANDSCAPES L, Schools,Premises,09/01/2015,3005473211, 749.51 
Staffordshire County Council,31/01/2015,BLOOMIN GARDENS & LANDSCAPES L, Schools,Premises,27/01/2015,3005496806, 559.68 
Staffordshire County Council,31/01/2015,BLOOMIN GARDENS & LANDSCAPES L, Schools,Premises,27/01/2015,3005496814, 559.68 
Staffordshire County Council,31/01/2015,Blot, Schools,Supplies & Services,07/01/2015,3005469432, 550.00 
Staffordshire County Council,31/01/2015,Blue Box Entertainment Ltd, Schools,Supplies & Services,19/01/2015,3005483631, 790.80 
Staffordshire County Council,31/01/2015,Blue Sky,Planning & Economic Development,Supplies & Services,23/01/2015,3005474712," 5,760.00 "
Staffordshire County Council,31/01/2015,Blue Sky,Planning & Economic Development,Supplies & Services,30/01/2015,3005484940," 30,000.00 "
Staffordshire County Council,31/01/2015,Bluebird Care Stoke On Trent,Health,Supplies & Services,28/01/2015,3005433539, 963.20 
Staffordshire County Council,31/01/2015,Bluebird Care Stoke On Trent,Health,Supplies & Services,07/01/2015,3005468359," 1,290.00 "
Staffordshire County Council,31/01/2015,Bluebird Care Stoke On Trent,Health,Supplies & Services,07/01/2015,3005468360," 1,324.40 "
Staffordshire County Council,31/01/2015,Bluebird Care Stoke On Trent,Health,Supplies & Services,07/01/2015,3005468361," 1,324.40 "
Staffordshire County Council,31/01/2015,Bluebird Care Stoke On Trent,Health,Supplies & Services,09/01/2015,3005471737, 928.80 
Staffordshire County Council,31/01/2015,Bluebird Care Stoke On Trent,Health,Supplies & Services,08/01/2015,3005471758," 1,324.40 "
Staffordshire County Council,31/01/2015,Bluebird Care Stoke On Trent,Health,Supplies & Services,08/01/2015,3005471764," 1,324.40 "
Staffordshire County Council,31/01/2015,Bluebird Care Stoke On Trent,Health,Supplies & Services,12/01/2015,3005471766," 1,399.65 "
Staffordshire County Council,31/01/2015,Bluebird Care Stoke On Trent,Health,Supplies & Services,09/01/2015,3005471784, 550.40 
Staffordshire County Council,31/01/2015,Bluebird Care Stoke On Trent,Health,Supplies & Services,09/01/2015,3005471939, 550.40 
Staffordshire County Council,31/01/2015,Bluebird Care Stoke On Trent,Health,Supplies & Services,09/01/2015,3005471943, 954.60 
Staffordshire County Council,31/01/2015,Bluebird Care Stoke On Trent,Health,Supplies & Services,21/01/2015,3005479961, 842.80 
Staffordshire County Council,31/01/2015,Bluebird Care Stoke On Trent,Health,Supplies & Services,16/01/2015,3005479968, 842.80 
Staffordshire County Council,31/01/2015,Bluebird Care Stoke On Trent,Health,Supplies & Services,22/01/2015,3005489731," 1,324.40 "
Staffordshire County Council,31/01/2015,Bluebird Care Stoke On Trent,Health,Supplies & Services,08/01/2015,4501358946, 541.80 
Staffordshire County Council,31/01/2015,Bluebird Care Stoke On Trent,Health,Supplies & Services,12/01/2015,4501358948, 580.50 
Staffordshire County Council,31/01/2015,Bluebird Care Stoke On Trent,Health,Supplies & Services,08/01/2015,4501359113, 980.40 
Staffordshire County Council,31/01/2015,Bluebird Care Stoke On Trent,Health,Supplies & Services,12/01/2015,4501359114," 1,032.00 "
Staffordshire County Council,31/01/2015,Bluebird Care(E Staffs & S D's,Health,Supplies & Services,07/01/2015,4501358041, 534.10 
Staffordshire County Council,31/01/2015,Bluebird Care(E Staffs & S D's,Health,Supplies & Services,12/01/2015,4501358042, 517.14 
Staffordshire County Council,31/01/2015,Bluebird Care(E Staffs & S D's,Health,Supplies & Services,19/01/2015,4501360500, 534.10 
Staffordshire County Council,31/01/2015,Bluebird Care(E Staffs & S D's,Health,Supplies & Services,22/01/2015,4501363002, 534.10 
Staffordshire County Council,31/01/2015,BMW (UK) LTD,Trading Service County Fleet Care,Supplies & Services,19/01/2015,7008648306, 564.44 
Staffordshire County Council,31/01/2015,BNP PARIBAS LEASE GROUP, Schools,Supplies & Services,16/01/2015,3005482169," 4,903.20 "
Staffordshire County Council,31/01/2015,BOB FARMER HOME IMPROVEMENTS &, Schools,Premises,15/01/2015,4501360097, 600.00 
Staffordshire County Council,31/01/2015,Bobbles Day Nursery, Schools,Supplies & Services,26/01/2015,3005484916," 1,018.50 "
Staffordshire County Council,31/01/2015,BOC LTD,Trading Service County Fleet Care,Supplies & Services,07/01/2015,3005466974, 929.39 
Staffordshire County Council,31/01/2015,BOOK TRUST,Other Education and Children's services,Supplies & Services,07/01/2015,3005467344," 27,675.00 "
Staffordshire County Council,31/01/2015,BOOK TRUST,Other Education and Children's services,Supplies & Services,14/01/2015,4501360530," 27,675.00 "
Staffordshire County Council,31/01/2015,BOOKPOINT LTD, Schools,Supplies & Services,07/01/2015,3005470039, 540.00 
Staffordshire County Council,31/01/2015,BOOKPOINT LTD, Schools,Supplies & Services,07/01/2015,3005470396," 1,020.00 "
Staffordshire County Council,31/01/2015,BOOKPOINT LTD, Schools,Supplies & Services,12/01/2015,3005474053, 830.60 
Staffordshire County Council,31/01/2015,BOOKPOINT LTD, Schools,Supplies & Services,13/01/2015,3005478626," 1,085.50 "
Staffordshire County Council,31/01/2015,BOOKPOINT LTD, Schools,Supplies & Services,27/01/2015,3005482292, 686.00 
Staffordshire County Council,31/01/2015,BOOKPOINT LTD, Schools,Supplies & Services,23/01/2015,3005485911, 689.00 
Staffordshire County Council,31/01/2015,BOOKPOINT LTD, Schools,Supplies & Services,30/01/2015,3005500996, 703.20 
Staffordshire County Council,31/01/2015,BOOTS THE CHEMIST LTD,Adult Social Care,Supplies & Services,08/01/2015,3005470540, 569.66 
Staffordshire County Council,31/01/2015,BOOTS THE CHEMIST LTD,Adult Social Care,Supplies & Services,15/01/2015,3005480498, 621.66 
Staffordshire County Council,31/01/2015,Born Communications Ltd,Adult Social Care,Supplies & Services,28/01/2015,3005497252, 540.00 
Staffordshire County Council,31/01/2015,Born Communications Ltd,Adult Social Care,Supplies & Services,28/01/2015,3005497260," 4,560.00 "
Staffordshire County Council,31/01/2015,BOUNDARY SCHOOL OF MOTORING,Highways and transport,Supplies & Services,07/01/2015,4501358636, 612.50 
Staffordshire County Council,31/01/2015,BOURNE ELECTRICAL CONTR LTD,Adult Social Care,Capital,07/01/2015,4501358275, 535.69 
Staffordshire County Council,31/01/2015,BOURNE ELECTRICAL CONTR LTD, Schools,Capital,07/01/2015,4501358277," 10,800.00 "
Staffordshire County Council,31/01/2015,BOURNE ELECTRICAL CONTR LTD, CXO,Premises,07/01/2015,4501358278," 1,203.50 "
Staffordshire County Council,31/01/2015,BOURNE ELECTRICAL CONTR LTD, Schools,Premises,08/01/2015,4501358875, 574.22 
Staffordshire County Council,31/01/2015,BOURNE ELECTRICAL CONTR LTD, CXO,Premises,08/01/2015,4501359081," 27,000.00 "
Staffordshire County Council,31/01/2015,BOURNE ELECTRICAL CONTR LTD, CXO,Premises,08/01/2015,4501359083, 577.75 
Staffordshire County Council,31/01/2015,BOURNE ELECTRICAL CONTR LTD,Corporate & Democratic Core,Premises,22/01/2015,4501359847, 618.22 
Staffordshire County Council,31/01/2015,BOURNE ELECTRICAL CONTR LTD, Schools,Premises,22/01/2015,4501360118," 1,026.02 "
Staffordshire County Council,31/01/2015,BOURNE ELECTRICAL CONTR LTD, Schools,Premises,14/01/2015,4501360197, 535.15 
Staffordshire County Council,31/01/2015,BOURNE ELECTRICAL CONTR LTD,Highways and transport,Capital,22/01/2015,4501360670, 814.01 
Staffordshire County Council,31/01/2015,BOURNE ELECTRICAL CONTR LTD, Schools,Capital,20/01/2015,4501361857," 9,205.92 "
Staffordshire County Council,31/01/2015,BOURNE ELECTRICAL CONTR LTD, CXO,Premises,30/01/2015,4501363125," 1,601.51 "
Staffordshire County Council,31/01/2015,BOURNE ELECTRICAL CONTR LTD, Schools,Premises,30/01/2015,4501363126," 17,741.08 "
Staffordshire County Council,31/01/2015,Bradwell Hall,Adult Social Care,Capital,30/01/2015,3005482282," 2,000.00 "
Staffordshire County Council,31/01/2015,BRAKE BROS FOODSERVICE LTD,Trading Service County Catering,Supplies & Services,15/01/2015,3005481756," 178,173.56 "
Staffordshire County Council,31/01/2015,BRAKE BROS FOODSERVICE LTD,Trading Service County Catering,Supplies & Services,15/01/2015,3005481759," 135,942.07 "
Staffordshire County Council,31/01/2015,Branston Taxis Ltd,Other Education and Children's services,Transport,16/01/2015,3005480297, -   
Staffordshire County Council,31/01/2015,Branston Taxis Ltd,Other Education and Children's services,Transport,16/01/2015,3005480297, -   
Staffordshire County Council,31/01/2015,Branston Taxis Ltd,Other Education and Children's services,Transport,16/01/2015,3005480297," 1,357.20 "
Staffordshire County Council,31/01/2015,Branston Taxis Ltd,Other Education and Children's services,Transport,16/01/2015,3005480297, -   
Staffordshire County Council,31/01/2015,Branston Taxis Ltd,Other Education and Children's services,Transport,16/01/2015,3005480297, -   
Staffordshire County Council,31/01/2015,BREDON SCHOOL (2002) LTD, Schools,Supplies & Services,20/01/2015,3005484600," 2,185.33 "
Staffordshire County Council,31/01/2015,BREDON SCHOOL (2002) LTD, Schools,Supplies & Services,20/01/2015,3005484608," 2,185.33 "
Staffordshire County Council,31/01/2015,BREDON SCHOOL (2002) LTD, Schools,Supplies & Services,20/01/2015,3005484614," 2,185.33 "
Staffordshire County Council,31/01/2015,BREWOOD LANDSCAPES LTD, Schools,Premises,14/01/2015,3005468861, 720.00 
Staffordshire County Council,31/01/2015,BRIARS BARN LTD,Adult Social Care,Supplies & Services,12/01/2015,3005467427," 1,106.00 "
Staffordshire County Council,31/01/2015,BRIARS BARN LTD,Adult Social Care,Supplies & Services,14/01/2015,3005479483, 612.00 
Staffordshire County Council,31/01/2015,BRIARS BARN LTD,Adult Social Care,Supplies & Services,20/01/2015,3005485861, 711.00 
Staffordshire County Council,31/01/2015,BRIDGTOWN PARISH COUNCIL,Law & Governence,Third Party,07/01/2015,3005468459," 2,275.00 "
Staffordshire County Council,31/01/2015,Bright Stars Day Care Ltd,Childrens Services,Capital,07/01/2015,3005469312," 5,000.00 "
Staffordshire County Council,31/01/2015,BRISTOL STREET MOTORS,Trading Service County Fleet Care,Supplies & Services,07/01/2015,3005467347, 658.16 
Staffordshire County Council,31/01/2015,BRISTOL STREET MOTORS,Trading Service County Fleet Care,Supplies & Services,21/01/2015,3005484487, 768.53 
Staffordshire County Council,31/01/2015,BRISTOL STREET MOTORS,Trading Service County Fleet Care,Supplies & Services,22/01/2015,3005487735, 500.24 
Staffordshire County Council,31/01/2015,BRISTOL STREET MOTORS,Trading Service County Fleet Care,Supplies & Services,15/01/2015,7008644139, 664.90 
Staffordshire County Council,31/01/2015,BRISTOL STREET MOTORS,Trading Service County Fleet Care,Supplies & Services,21/01/2015,7008652551, 563.47 
Staffordshire County Council,31/01/2015,BRISTOL STREET MOTORS,Trading Service County Fleet Care,Supplies & Services,23/01/2015,7008658395, 676.33 
Staffordshire County Council,31/01/2015,BRISTOL STREET MOTORS,Trading Service County Fleet Care,Supplies & Services,28/01/2015,7008670213, 515.22 
Staffordshire County Council,31/01/2015,BRITISH RED CROSS SOCIETY, Schools,Supplies & Services,22/01/2015,3005487459, 810.00 
Staffordshire County Council,31/01/2015,BRITISH TELECOMMUNICATIONS PLC, Schools,Supplies & Services,07/01/2015,3005469167," 1,718.97 "
Staffordshire County Council,31/01/2015,BRITISH TELECOMMUNICATIONS PLC,Other Education and Children's services,Supplies & Services,14/01/2015,3005479559, -   
Staffordshire County Council,31/01/2015,BRITISH TELECOMMUNICATIONS PLC,Other Education and Children's services,Supplies & Services,14/01/2015,3005479559, 707.38 
Staffordshire County Council,31/01/2015,BRITISH TELECOMMUNICATIONS PLC,Other Education and Children's services,Supplies & Services,14/01/2015,3005479589, -   
Staffordshire County Council,31/01/2015,BRITISH TELECOMMUNICATIONS PLC,Other Education and Children's services,Supplies & Services,14/01/2015,3005479589, 547.90 
Staffordshire County Council,31/01/2015,BRITISH TELECOMMUNICATIONS PLC, Schools,Supplies & Services,27/01/2015,3005484464, 824.50 
Staffordshire County Council,31/01/2015,BRITISH TELECOMMUNICATIONS PLC,Highways and transport,Capital,27/01/2015,3005496622," 5,865.85 "
Staffordshire County Council,31/01/2015,BRITISH TELECOMMUNICATIONS PLC, Schools,Supplies & Services,30/01/2015,3005499460, 549.97 
Staffordshire County Council,31/01/2015,British Thornton ESF Ltd, Schools,Supplies & Services,20/01/2015,4501362073," 1,361.94 "
Staffordshire County Council,31/01/2015,BRI-TON FINE FOODS LTD, Schools,Supplies & Services,19/01/2015,3005482164, 539.59 
Staffordshire County Council,31/01/2015,Brockton Care Ltd,Health,Supplies & Services,16/01/2015,3005473203," 2,282.80 "
Staffordshire County Council,31/01/2015,Brockton Care Ltd,Health,Supplies & Services,16/01/2015,3005473205, 878.70 
Staffordshire County Council,31/01/2015,BROOK STREET UK LIMITED,Other Education and Children's services,Third Party,07/01/2015,3005467534, 872.71 
Staffordshire County Council,31/01/2015,BROOK STREET UK LIMITED,Other Education and Children's services,Third Party,07/01/2015,3005467536," 1,305.16 "
Staffordshire County Council,31/01/2015,BROOK STREET UK LIMITED,Other Education and Children's services,Third Party,07/01/2015,3005467537, 769.85 
Staffordshire County Council,31/01/2015,BROOK STREET UK LIMITED,Other Education and Children's services,Third Party,07/01/2015,3005467540, 624.60 
Staffordshire County Council,31/01/2015,BROOK STREET UK LIMITED,Other Education and Children's services,Third Party,07/01/2015,3005467544," 1,430.78 "
Staffordshire County Council,31/01/2015,BROOK STREET UK LIMITED,Other Education and Children's services,Third Party,07/01/2015,3005469442," 1,153.54 "
Staffordshire County Council,31/01/2015,BROOK STREET UK LIMITED,Other Education and Children's services,Third Party,07/01/2015,3005469447, 985.82 
Staffordshire County Council,31/01/2015,BROTHERS OF CHARITY LANCS,Adult Social Care,Third Party,14/01/2015,3005480062," 2,637.56 "
Staffordshire County Council,31/01/2015,BROTHERS OF CHARITY LANCS,Adult Social Care,Third Party,20/01/2015,3005485246," 2,637.56 "
Staffordshire County Council,31/01/2015,BROWN EDGE FOOTBALL CLUB,Law & Governence,Third Party,07/01/2015,3005468827, 650.00 
Staffordshire County Council,31/01/2015,BROWNE JACOBSON, Schools,Income,07/01/2015,3005460136," 5,400.00 "
Staffordshire County Council,31/01/2015,BROWNE JACOBSON,Finance,Supplies & Services,07/01/2015,3005468296," 1,980.00 "
Staffordshire County Council,31/01/2015,Browne Jacobson Llp, Schools,Supplies & Services,26/01/2015,3005486532," 1,013.31 "
Staffordshire County Council,31/01/2015,BROWNS BOOKS, Schools,Supplies & Services,08/01/2015,3005472275," 2,383.37 "
Staffordshire County Council,31/01/2015,BROWNS BOOKS, Schools,Supplies & Services,21/01/2015,3005486628," 1,384.60 "
Staffordshire County Council,31/01/2015,BROWNS BOOKS, Schools,Supplies & Services,23/01/2015,4501362362, 595.00 
Staffordshire County Council,31/01/2015,BROXAP LTD, Schools,Supplies & Services,15/01/2015,3005481605," 4,488.00 "
Staffordshire County Council,31/01/2015,BROXAP LTD, Schools,Supplies & Services,21/01/2015,3005481952," 2,960.40 "
Staffordshire County Council,31/01/2015,BROXAP LTD, Schools,Supplies & Services,15/01/2015,3005481954," 1,150.80 "
Staffordshire County Council,31/01/2015,Bruce Hill,Other Education and Children's services,Transport,12/01/2015,3005474637, -   
Staffordshire County Council,31/01/2015,Bruce Hill,Other Education and Children's services,Transport,12/01/2015,3005474637," 1,125.00 "
Staffordshire County Council,31/01/2015,Brummies Taxi,Other Education and Children's services,Transport,22/01/2015,3005487500, 540.00 
Staffordshire County Council,31/01/2015,Bryn Melyn Care Ltd,Other Education and Children's services,Third Party,23/01/2015,7008658487," 20,778.86 "
Staffordshire County Council,31/01/2015,BT BUSINESS DIRECT LTD, Schools,Supplies & Services,23/01/2015,4501361142," 1,035.90 "
Staffordshire County Council,31/01/2015,BT Openreach,Highways and transport,Capital,26/01/2015,4501362924, 975.02 
Staffordshire County Council,31/01/2015,BT Plc,ICT,Supplies & Services,12/01/2015,3005472328, -   
Staffordshire County Council,31/01/2015,BT Plc,ICT,Supplies & Services,12/01/2015,3005472328," 1,475.68 "
Staffordshire County Council,31/01/2015,BT Plc,Planning & Economic Development,Premises,22/01/2015,3005491140,-892.40 
Staffordshire County Council,31/01/2015,BT Plc,Planning & Economic Development,Premises,22/01/2015,3005491635, 892.40 
Staffordshire County Council,31/01/2015,BT Plc,ICT,Supplies & Services,29/01/2015,3005498455," 1,546.52 "
Staffordshire County Council,31/01/2015,BT Plc,Highways and transport,Capital,16/01/2015,4501361089," 4,179.93 "
Staffordshire County Council,31/01/2015,BUCHAN CONCRETE SOLUTIONS LTD, Schools,Premises,07/01/2015,4501358483," 93,087.04 "
Staffordshire County Council,31/01/2015,BUCHAN CONCRETE SOLUTIONS LTD, Schools,Premises,16/01/2015,4501359167," 47,572.48 "
Staffordshire County Council,31/01/2015,BUNZL CATERING SUPPLIES,Trading Service County Catering,Supplies & Services,16/01/2015,3005481729," 1,080.00 "
Staffordshire County Council,31/01/2015,Bureau of Silly Ideas Ltd,Cultural Services,Supplies & Services,07/01/2015,3005469271, 960.00 
Staffordshire County Council,31/01/2015,BURNTWOOD ROAD SWEEPERS LTD, CXO,Supplies & Services,21/01/2015,3005482888, 954.00 
Staffordshire County Council,31/01/2015,Burton Albion Community Trust,Adult Social Care,Supplies & Services,07/01/2015,3005467566," 2,500.00 "
Staffordshire County Council,31/01/2015,Burton Albion Community Trust, Schools,Employees,07/01/2015,3005469296," 1,540.00 "
Staffordshire County Council,31/01/2015,Burton Albion Community Trust, Schools,Employees,07/01/2015,3005470085," 1,100.00 "
Staffordshire County Council,31/01/2015,Burton Albion Community Trust, Schools,Supplies & Services,07/01/2015,3005470181," 1,925.00 "
Staffordshire County Council,31/01/2015,Burton Albion Community Trust,Adult Social Care,Supplies & Services,08/01/2015,3005471681," 3,519.00 "
Staffordshire County Council,31/01/2015,Burton Albion Community Trust,Adult Social Care,Supplies & Services,08/01/2015,3005471681, -   
Staffordshire County Council,31/01/2015,Burton Albion Community Trust,Other Education and Children's services,Supplies & Services,13/01/2015,3005472014," 3,749.00 "
Staffordshire County Council,31/01/2015,Burton Albion Community Trust, Schools,Supplies & Services,09/01/2015,3005472413, 650.00 
Staffordshire County Council,31/01/2015,Burton Albion Community Trust, Schools,Employees,09/01/2015,3005472913," 1,680.00 "
Staffordshire County Council,31/01/2015,Burton Albion Community Trust, Schools,Supplies & Services,13/01/2015,3005478348, 960.00 
Staffordshire County Council,31/01/2015,Burton Albion Community Trust, Schools,Supplies & Services,13/01/2015,3005478681, 560.00 
Staffordshire County Council,31/01/2015,Burton Albion Community Trust, Schools,Employees,14/01/2015,3005480579, 540.00 
Staffordshire County Council,31/01/2015,Burton Albion Community Trust,Other Education and Children's services,Supplies & Services,20/01/2015,3005483074," 4,240.00 "
Staffordshire County Council,31/01/2015,Burton Albion Community Trust, Schools,Employees,22/01/2015,3005486198," 4,620.00 "
Staffordshire County Council,31/01/2015,Burton Albion Community Trust, Schools,Supplies & Services,22/01/2015,3005490332," 1,750.00 "
Staffordshire County Council,31/01/2015,BURTON ENVIRONMENTAL SERVS LTD, Schools,Capital,29/01/2015,4501364754," 1,080.00 "
Staffordshire County Council,31/01/2015,BURTON ENVIRONMENTAL SERVS LTD, Schools,Capital,29/01/2015,4501364756, 540.00 
Staffordshire County Council,31/01/2015,BURTON ENVIRONMENTAL SERVS LTD, Schools,Capital,29/01/2015,4501364757, 600.00 
Staffordshire County Council,31/01/2015,BURTON ENVIRONMENTAL SERVS LTD, Schools,Capital,29/01/2015,4501364759, 559.20 
Staffordshire County Council,31/01/2015,BURTON HOSPITALS N H S TRUST,Adult Social Care,Supplies & Services,23/01/2015,3005491390," 20,450.00 "
Staffordshire County Council,31/01/2015,BURTON HOSPITALS NHS TRUST,Adult Social Care,Supplies & Services,16/01/2015,3005474741," 45,387.00 "
Staffordshire County Council,31/01/2015,BURTON HOSPITALS NHS TRUST,Adult Social Care,Supplies & Services,16/01/2015,3005474745,"-1,861.32 "
Staffordshire County Council,31/01/2015,Burton upon Trent & District Y,Adult Social Care,Supplies & Services,14/01/2015,3005478387," 2,090.00 "
Staffordshire County Council,31/01/2015,Business By Technology, Schools,Supplies & Services,16/01/2015,3005482122," 2,615.90 "
Staffordshire County Council,31/01/2015,Business By Technology, Schools,Supplies & Services,16/01/2015,3005482140, 753.72 
Staffordshire County Council,31/01/2015,BUSINESS WATCH GUARDING LTD,Planning & Economic Development,Supplies & Services,15/01/2015,3005473993," 6,277.66 "
Staffordshire County Council,31/01/2015,BUSINESS WATCH GUARDING LTD,Planning & Economic Development,Supplies & Services,22/01/2015,3005485822," 1,844.45 "
Staffordshire County Council,31/01/2015,BUSINESS WATCH GUARDING LTD,Planning & Economic Development,Supplies & Services,22/01/2015,3005485822, -   
Staffordshire County Council,31/01/2015,Butlerbus Technick Ltd,Trading Service County Fleet Care,Supplies & Services,16/01/2015,7008630585, 563.26 
Staffordshire County Council,31/01/2015,BUTTERFLIES NURSERY, Schools,Supplies & Services,14/01/2015,7008643549," 5,335.27 "
Staffordshire County Council,31/01/2015,BUTTERFLIES NURSERY, Schools,Supplies & Services,14/01/2015,7008643821," 2,587.33 "
Staffordshire County Council,31/01/2015,BY THE BRIDGE,Other Education and Children's services,Third Party,23/01/2015,7008658497," 4,295.71 "
Staffordshire County Council,31/01/2015,BY THE BRIDGE,Other Education and Children's services,Supplies & Services,23/01/2015,7008658504," 4,160.86 "
Staffordshire County Council,31/01/2015,BY THE BRIDGE,Other Education and Children's services,Supplies & Services,23/01/2015,7008658522," 4,295.71 "
Staffordshire County Council,31/01/2015,BY THE BRIDGE,Other Education and Children's services,Supplies & Services,23/01/2015,7008658545," 4,080.93 "
Staffordshire County Council,31/01/2015,BY THE BRIDGE,Other Education and Children's services,Supplies & Services,23/01/2015,7008658580," 6,529.93 "
Staffordshire County Council,31/01/2015,BY THE BRIDGE,Other Education and Children's services,Supplies & Services,23/01/2015,7008659336," 4,118.57 "
Staffordshire County Council,31/01/2015,BY THE BRIDGE,Other Education and Children's services,Supplies & Services,23/01/2015,7008659340," 14,985.41 "
Staffordshire County Council,31/01/2015,C A HOUGHTON, Schools,Employees,08/01/2015,3005472389, 762.00 
Staffordshire County Council,31/01/2015,C CARTHY, Schools,Supplies & Services,22/01/2015,7008658183, 533.53 
Staffordshire County Council,31/01/2015,C COOKE, Schools,Supplies & Services,14/01/2015,7008643507, 533.53 
Staffordshire County Council,31/01/2015,C DAVIS, Schools,Supplies & Services,13/01/2015,3005469352," 2,595.60 "
Staffordshire County Council,31/01/2015,C DAVIS, Schools,Supplies & Services,15/01/2015,3005470058, 850.00 
Staffordshire County Council,31/01/2015,C Devine, Schools,Supplies & Services,22/01/2015,7008658194," 1,067.05 "
Staffordshire County Council,31/01/2015,C E Davis, Schools,Supplies & Services,07/01/2015,3005469767," 2,763.00 "
Staffordshire County Council,31/01/2015,C F A B,Other Education and Children's services,Supplies & Services,07/01/2015,3005468385," 15,000.00 "
Staffordshire County Council,31/01/2015,C F Corporate Finance Ltd, Schools,Supplies & Services,07/01/2015,3005469361, 587.93 
Staffordshire County Council,31/01/2015,C FRODSHAM,Other Education and Children's services,Supplies & Services,14/01/2015,4501360217, 630.00 
Staffordshire County Council,31/01/2015,C Hardy, CXO,Supplies & Services,07/01/2015,3005469554, 620.00 
Staffordshire County Council,31/01/2015,C HOLLINGHURST, Schools,Supplies & Services,13/01/2015,4501358334, 547.50 
Staffordshire County Council,31/01/2015,C M COMMUNITY CARE SERVICES LT,Health,Supplies & Services,27/01/2015,3005491826, 511.92 
Staffordshire County Council,31/01/2015,C M COMMUNITY CARE SERVICES LT,Health,Supplies & Services,27/01/2015,3005491828, 511.92 
Staffordshire County Council,31/01/2015,C M COMMUNITY CARE SERVICES LT,Health,Supplies & Services,27/01/2015,3005491829, 511.92 
Staffordshire County Council,31/01/2015,C M COMMUNITY CARE SERVICES LT,Health,Supplies & Services,27/01/2015,3005491833, 511.92 
Staffordshire County Council,31/01/2015,C M COMMUNITY CARE SERVICES LT,Health,Supplies & Services,27/01/2015,3005491835, 511.92 
Staffordshire County Council,31/01/2015,C M COMMUNITY CARE SERVICES LT,Health,Supplies & Services,27/01/2015,3005491838, 511.92 
Staffordshire County Council,31/01/2015,C M COMMUNITY CARE SERVICES LT,Health,Supplies & Services,27/01/2015,3005491842, 511.92 
Staffordshire County Council,31/01/2015,C M COMMUNITY CARE SERVICES LT,Health,Supplies & Services,27/01/2015,3005491845, 511.92 
Staffordshire County Council,31/01/2015,C M ROWLINSON LTD,Highways and transport,Third Party,21/01/2015,4501362350, 835.20 
Staffordshire County Council,31/01/2015,C M ROWLINSON LTD,Highways and transport,Third Party,21/01/2015,4501362364, -   
Staffordshire County Council,31/01/2015,C M ROWLINSON LTD,Highways and transport,Third Party,21/01/2015,4501362364," 11,382.00 "
Staffordshire County Council,31/01/2015,C MARTIN, Schools,Supplies & Services,14/01/2015,7008643508, 533.53 
Staffordshire County Council,31/01/2015,C MARTIN, Schools,Supplies & Services,14/01/2015,7008643765," 1,221.21 "
Staffordshire County Council,31/01/2015,C Natural Music Service, Schools,Employees,08/01/2015,3005472007, 648.79 
Staffordshire County Council,31/01/2015,C Yallop, Schools,Supplies & Services,22/01/2015,7008658195, 533.53 
Staffordshire County Council,31/01/2015,C2C Alliance Ltd, Schools,Supplies & Services,13/01/2015,3005478262, 500.00 
Staffordshire County Council,31/01/2015,C2C Alliance Ltd, Schools,Supplies & Services,13/01/2015,3005478264, 500.00 
Staffordshire County Council,31/01/2015,C2C Alliance Ltd, Schools,Supplies & Services,13/01/2015,3005478267, 500.00 
Staffordshire County Council,31/01/2015,C2C Alliance Ltd, Schools,Supplies & Services,13/01/2015,3005478269, 500.00 
Staffordshire County Council,31/01/2015,CADEBY TREE TRUST,Planning & Economic Development,Supplies & Services,26/01/2015,4501362633, -   
Staffordshire County Council,31/01/2015,CADEBY TREE TRUST,Planning & Economic Development,Supplies & Services,26/01/2015,4501362633," 5,509.32 "
Staffordshire County Council,31/01/2015,CADEBY TREE TRUST,Planning & Economic Development,Supplies & Services,26/01/2015,4501362637,"-3,010.20 "
Staffordshire County Council,31/01/2015,CADEBY TREE TRUST,Planning & Economic Development,Supplies & Services,26/01/2015,4501362637, -   
Staffordshire County Council,31/01/2015,CALBARRIE COMPLIANCE SERVICES, Schools,Premises,07/01/2015,3005468853, 684.00 
Staffordshire County Council,31/01/2015,Calder Training & Consultancy,Other Education and Children's services,Supplies & Services,16/01/2015,4501358860," 10,746.00 "
Staffordshire County Council,31/01/2015,Calder Training & Consultancy,Other Education and Children's services,Supplies & Services,16/01/2015,4501358871," 12,477.60 "
Staffordshire County Council,31/01/2015,CALOR GAS LTD,Planning & Economic Development,Premises,22/01/2015,3005485233," 4,575.77 "
Staffordshire County Council,31/01/2015,Can Training Ltd, Schools,Supplies & Services,07/01/2015,3005460200, 687.50 
Staffordshire County Council,31/01/2015,CANAL & RIVER TRUST, Schools,Supplies & Services,07/01/2015,3005468497, 777.50 
Staffordshire County Council,31/01/2015,CANNOCK CABS & CO,Other Education and Children's services,Transport,07/01/2015,3005469681," 5,561.64 "
Staffordshire County Council,31/01/2015,CANNOCK CABS & CO,Other Education and Children's services,Transport,07/01/2015,3005469681, -   
Staffordshire County Council,31/01/2015,CANNOCK CABS & CO,Other Education and Children's services,Transport,07/01/2015,3005469681, -   
Staffordshire County Council,31/01/2015,CANNOCK CABS & CO,Other Education and Children's services,Transport,07/01/2015,3005469681, -   
Staffordshire County Council,31/01/2015,CANNOCK CABS & CO,Other Education and Children's services,Transport,07/01/2015,3005469681, -   
Staffordshire County Council,31/01/2015,CANNOCK CABS & CO,Other Education and Children's services,Transport,07/01/2015,3005469681, -   
Staffordshire County Council,31/01/2015,CANNOCK CABS & CO,Other Education and Children's services,Transport,07/01/2015,3005469681, -   
Staffordshire County Council,31/01/2015,CANNOCK CABS & CO,Other Education and Children's services,Transport,07/01/2015,3005469681, -   
Staffordshire County Council,31/01/2015,CANNOCK CABS & CO,Planning & Economic Development,Transport,14/01/2015,3005471917," 1,618.00 "
Staffordshire County Council,31/01/2015,CANNOCK CABS & CO,Planning & Economic Development,Transport,19/01/2015,3005483611," 1,150.40 "
Staffordshire County Council,31/01/2015,Cannock Carpets,Planning & Economic Development,Premises,14/01/2015,4501360446," 1,376.35 "
Staffordshire County Council,31/01/2015,CANNOCK CHASE COUNCIL,Environment,Supplies & Services,16/01/2015,3005468240," 85,200.15 "
Staffordshire County Council,31/01/2015,CANNOCK CHASE COUNCIL, Schools,Premises,21/01/2015,3005470157, 623.71 
Staffordshire County Council,31/01/2015,CANNOCK CHASE COUNCIL,Corporate & Democratic Core,Premises,08/01/2015,3005470515," 3,727.50 "
Staffordshire County Council,31/01/2015,CANNOCK CHASE COUNCIL,Corporate & Democratic Core,Premises,08/01/2015,3005470517," 3,611.25 "
Staffordshire County Council,31/01/2015,CANNOCK CHASE COUNCIL, CXO,Premises,08/01/2015,3005470523, 622.50 
Staffordshire County Council,31/01/2015,CANNOCK CHASE COUNCIL, CXO,Premises,08/01/2015,3005470528," 3,555.88 "
Staffordshire County Council,31/01/2015,CANNOCK CHASE COUNCIL, Schools,Supplies & Services,13/01/2015,3005472003, 513.76 
Staffordshire County Council,31/01/2015,CANNOCK CHASE COUNCIL, Schools,Supplies & Services,15/01/2015,3005481915," 1,512.16 "
Staffordshire County Council,31/01/2015,CANNOCK CHASE COUNCIL, Schools,Capital,22/01/2015,3005482203," 2,280.00 "
Staffordshire County Council,31/01/2015,CANNOCK CHASE COUNCIL,Property,Capital,22/01/2015,3005485310, 918.00 
Staffordshire County Council,31/01/2015,CANNOCK CHASE COUNCIL, Schools,Capital,30/01/2015,3005500803, 594.00 
Staffordshire County Council,31/01/2015,CANNOCK CHASE COUNCIL, Schools,Supplies & Services,30/01/2015,4501365063, 780.00 
Staffordshire County Council,31/01/2015,CANNOCK CHASE HIGH SCHOOL, Schools,Supplies & Services,23/01/2015,3005487969," 20,450.36 "
Staffordshire County Council,31/01/2015,CANON UK LTD,Trading Service Central Print & Design,Supplies & Services,09/01/2015,4501359540," 5,576.89 "
Staffordshire County Council,31/01/2015,CANPRINT (STOKE) LTD, Schools,Supplies & Services,23/01/2015,4501362276," 1,685.00 "
Staffordshire County Council,31/01/2015,CAPITA BUSINESS SERVICES LTD, Schools,Supplies & Services,19/01/2015,3005484462," 2,394.00 "
Staffordshire County Council,31/01/2015,CAPITA BUSINESS SERVICES LTD, Schools,Employees,28/01/2015,3005488025, 984.48 
Staffordshire County Council,31/01/2015,CAPITA BUSINESS SERVICES LTD,ICT,Supplies & Services,21/01/2015,4501360262," 7,800.00 "
Staffordshire County Council,31/01/2015,CAPITA BUSINESS SERVICES LTD,ICT,Employees,20/01/2015,4501360416, 720.00 
Staffordshire County Council,31/01/2015,Capita IT Services Limited, Schools,Supplies & Services,09/01/2015,4501359325," 2,264.64 "
Staffordshire County Council,31/01/2015,Capita Property & Infrastructu, Schools,Capital,07/01/2015,4501358267," 5,274.00 "
Staffordshire County Council,31/01/2015,CAPITA RESOURCING LIMITED,Finance,Employees,08/01/2015,3005469800," 1,592.10 "
Staffordshire County Council,31/01/2015,CAPITA RESOURCING LTD, CXO,Supplies & Services,07/01/2015,3005467401, 660.00 
Staffordshire County Council,31/01/2015,CAPITA RESOURCING LTD, CXO,Supplies & Services,07/01/2015,3005467404," 12,540.00 "
Staffordshire County Council,31/01/2015,CAPITA RESOURCING LTD, CXO,Supplies & Services,07/01/2015,3005468556," 11,802.00 "
Staffordshire County Council,31/01/2015,CAPITA RESOURCING LTD,Adult Social Care,Supplies & Services,07/01/2015,3005468650," 1,100.00 "
Staffordshire County Council,31/01/2015,CAPITA RESOURCING LTD,Other Education and Children's services,Supplies & Services,07/01/2015,3005468650," 1,540.00 "
Staffordshire County Council,31/01/2015,CAPITA RESOURCING LTD,Adult Social Care,Supplies & Services,07/01/2015,3005468664," 18,360.00 "
Staffordshire County Council,31/01/2015,CAPITA RESOURCING LTD,Adult Social Care,Supplies & Services,07/01/2015,3005468688," 2,110.94 "
Staffordshire County Council,31/01/2015,CAPITA RESOURCING LTD,Adult Social Care,Supplies & Services,07/01/2015,3005468693," 16,530.00 "
Staffordshire County Council,31/01/2015,CAPITA RESOURCING LTD,Adult Social Care,Supplies & Services,22/01/2015,3005473308," 3,915.00 "
Staffordshire County Council,31/01/2015,CAPITA RESOURCING LTD,Other Education and Children's services,Supplies & Services,14/01/2015,3005478335, 770.00 
Staffordshire County Council,31/01/2015,CAPITA RESOURCING LTD,Adult Social Care,Supplies & Services,14/01/2015,3005478335, 550.00 
Staffordshire County Council,31/01/2015,CAPITA RESOURCING LTD,Other Education and Children's services,Supplies & Services,07/01/2015,4501358308," 5,808.00 "
Staffordshire County Council,31/01/2015,CAPITA RESOURCING LTD,Other Education and Children's services,Supplies & Services,16/01/2015,4501361247," 5,808.00 "
Staffordshire County Council,31/01/2015,Capita Translation & Interpret,Other Education and Children's services,Supplies & Services,28/01/2015,3005474816, 704.35 
Staffordshire County Council,31/01/2015,CAPSTONE VISION FOSTER CARE LT,Other Education and Children's services,Supplies & Services,23/01/2015,7008658508," 2,657.94 "
Staffordshire County Council,31/01/2015,CAPSTONE VISION FOSTER CARE LT,Other Education and Children's services,Supplies & Services,23/01/2015,7008658586," 14,253.18 "
Staffordshire County Council,31/01/2015,CAPSTONE VISION FOSTER CARE LT,Other Education and Children's services,Supplies & Services,23/01/2015,7008659359," 3,259.43 "
Staffordshire County Council,31/01/2015,CARCOLL EDUCATIONAL CONSULTANT, Schools,Supplies & Services,07/01/2015,3005441619, 550.00 
Staffordshire County Council,31/01/2015,Care & Fun Club, Schools,Supplies & Services,14/01/2015,7008643730," 2,134.11 "
Staffordshire County Council,31/01/2015,Care & Fun Club, Schools,Supplies & Services,14/01/2015,7008644057," 6,470.96 "
Staffordshire County Council,31/01/2015,Care by Claire, Schools,Supplies & Services,14/01/2015,7008643567, 853.64 
Staffordshire County Council,31/01/2015,CARE FIRST SERVICES,Other Education and Children's services,Supplies & Services,23/01/2015,7008658418," 1,483.57 "
Staffordshire County Council,31/01/2015,Care in Mind,Other Education and Children's services,Third Party,07/01/2015,3005469104," 4,788.26 "
Staffordshire County Council,31/01/2015,Care in Mind,Other Education and Children's services,Third Party,26/01/2015,7008667854," 4,788.13 "
Staffordshire County Council,31/01/2015,Care Monitoring 2000 Ltd,Adult Social Care,Supplies & Services,14/01/2015,3005477546," 34,915.89 "
Staffordshire County Council,31/01/2015,Care Monitoring 2000 Ltd,Adult Social Care,Supplies & Services,14/01/2015,3005477546, -   
Staffordshire County Council,31/01/2015,Care Monitoring 2000 Ltd,Adult Social Care,Supplies & Services,14/01/2015,3005477546, -   
Staffordshire County Council,31/01/2015,CARE PLUS,Health,Supplies & Services,20/01/2015,3005359264," 1,156.50 "
Staffordshire County Council,31/01/2015,CARE PLUS,Health,Supplies & Services,09/01/2015,3005467350, 605.64 
Staffordshire County Council,31/01/2015,CARE PLUS,Health,Supplies & Services,09/01/2015,3005467351, 807.52 
Staffordshire County Council,31/01/2015,CARE PLUS,Health,Supplies & Services,09/01/2015,3005467352, 908.46 
Staffordshire County Council,31/01/2015,CARE PLUS,Health,Supplies & Services,09/01/2015,3005467353," 1,816.92 "
Staffordshire County Council,31/01/2015,CARE PLUS,Health,Supplies & Services,09/01/2015,3005467355, 605.64 
Staffordshire County Council,31/01/2015,CARE PLUS,Health,Supplies & Services,09/01/2015,3005467356, 591.22 
Staffordshire County Council,31/01/2015,CARE PLUS,Health,Supplies & Services,07/01/2015,3005468954," 2,313.00 "
Staffordshire County Council,31/01/2015,CARE PLUS,Health,Supplies & Services,09/01/2015,3005468960," 1,850.40 "
Staffordshire County Council,31/01/2015,CARE PLUS,Health,Supplies & Services,09/01/2015,3005468979, 616.80 
Staffordshire County Council,31/01/2015,CARE PLUS,Health,Supplies & Services,09/01/2015,3005469027," 1,816.92 "
Staffordshire County Council,31/01/2015,CARE PLUS,Health,Supplies & Services,09/01/2015,3005469048, 925.20 
Staffordshire County Council,31/01/2015,CARE PLUS,Health,Supplies & Services,09/01/2015,3005469052, 616.80 
Staffordshire County Council,31/01/2015,CARE PLUS,Health,Supplies & Services,09/01/2015,3005469059, 771.00 
Staffordshire County Council,31/01/2015,CARE PLUS,Health,Supplies & Services,09/01/2015,3005469067, 925.20 
Staffordshire County Council,31/01/2015,CARE PLUS,Adult Social Care,Supplies & Services,13/01/2015,3005478166, 771.00 
Staffordshire County Council,31/01/2015,CARE PLUS,Health,Supplies & Services,20/01/2015,3005485114, 576.80 
Staffordshire County Council,31/01/2015,CARE PLUS,Health,Supplies & Services,20/01/2015,3005485116, 739.03 
Staffordshire County Council,31/01/2015,CARE PLUS,Health,Supplies & Services,20/01/2015,3005485128, 562.38 
Staffordshire County Council,31/01/2015,CARE SHOP,Adult Social Care,Supplies & Services,07/01/2015,4501357851, 855.14 
Staffordshire County Council,31/01/2015,CARE SHOP,Adult Social Care,Supplies & Services,07/01/2015,4501357852, 871.11 
Staffordshire County Council,31/01/2015,CARE SHOP,Adult Social Care,Supplies & Services,22/01/2015,4501361698, 566.24 
Staffordshire County Council,31/01/2015,CARE SHOP,Adult Social Care,Supplies & Services,23/01/2015,4501362253, -   
Staffordshire County Council,31/01/2015,CARE SHOP,Adult Social Care,Supplies & Services,23/01/2015,4501362253," 1,291.21 "
Staffordshire County Council,31/01/2015,CARE SHOP,Adult Social Care,Supplies & Services,23/01/2015,4501362253, -   
Staffordshire County Council,31/01/2015,CARE SHOP,Adult Social Care,Supplies & Services,28/01/2015,4501362780, 563.61 
Staffordshire County Council,31/01/2015,CARE TODAY, Schools,Supplies & Services,07/01/2015,3005467390," 3,580.92 "
Staffordshire County Council,31/01/2015,CARE TODAY, Schools,Supplies & Services,15/01/2015,3005478445," 2,557.98 "
Staffordshire County Council,31/01/2015,CARE TODAY, Schools,Supplies & Services,15/01/2015,3005478446," 2,557.98 "
Staffordshire County Council,31/01/2015,CARE TODAY, Schools,Supplies & Services,15/01/2015,3005478447," 2,557.80 "
Staffordshire County Council,31/01/2015,CARE TODAY, Schools,Supplies & Services,15/01/2015,3005478448," 2,557.98 "
Staffordshire County Council,31/01/2015,CARE TODAY, Schools,Supplies & Services,15/01/2015,3005478449," 2,557.98 "
Staffordshire County Council,31/01/2015,CARE TODAY, Schools,Supplies & Services,15/01/2015,3005478450," 2,557.98 "
Staffordshire County Council,31/01/2015,CARE TODAY,Other Education and Children's services,Third Party,23/01/2015,7008658428," 3,140.75 "
Staffordshire County Council,31/01/2015,Caremark (Cheshire South East),Health,Supplies & Services,22/01/2015,4501362848, 559.91 
Staffordshire County Council,31/01/2015,Caremark (Cheshire South East),Health,Supplies & Services,22/01/2015,4501362850, 919.00 
Staffordshire County Council,31/01/2015,CARERS ASSOC SOUTHERN STAFFS,Adult Social Care,Supplies & Services,16/01/2015,3005483203," 78,226.00 "
Staffordshire County Council,31/01/2015,CareTech Community Services,Other Education and Children's services,Third Party,23/01/2015,7008658451," 40,521.44 "
Staffordshire County Council,31/01/2015,CareTech Community Services,Other Education and Children's services,Third Party,23/01/2015,7008658457," 9,521.43 "
Staffordshire County Council,31/01/2015,CAREWORKS LTD,Other Education and Children's services,Supplies & Services,07/01/2015,3005469342," 5,100.00 "
Staffordshire County Council,31/01/2015,Carlton Upholstery, Schools,Supplies & Services,08/01/2015,3005469483, 600.00 
Staffordshire County Council,31/01/2015,CARSON POWELL CONSTRUCTION LTD, Schools,Premises,20/01/2015,4501362188," 7,404.00 "
Staffordshire County Council,31/01/2015,CARTER BROWN ASSOCIATES,Other Education and Children's services,Supplies & Services,29/01/2015,3005499751," 1,317.96 "
Staffordshire County Council,31/01/2015,CARTREF COMMUNICATIONS, Schools,Employees,29/01/2015,3005484461, 566.10 
Staffordshire County Council,31/01/2015,CARTREF COMMUNICATIONS, Schools,Supplies & Services,29/01/2015,3005485130, 639.60 
Staffordshire County Council,31/01/2015,Cascaid Ltd, Schools,Supplies & Services,23/01/2015,3005479904, 564.00 
Staffordshire County Council,31/01/2015,Cascaid Ltd, Schools,Supplies & Services,07/01/2015,4501358726, 666.00 
Staffordshire County Council,31/01/2015,CASTELE CONSULTANCY LTD, Schools,Supplies & Services,19/01/2015,3005472342," 1,915.00 "
Staffordshire County Council,31/01/2015,CASTELE CONSULTANCY LTD, Schools,Supplies & Services,26/01/2015,3005490408," 1,915.00 "
Staffordshire County Council,31/01/2015,CASTLE COACHES,Planning & Economic Development,Transport,19/01/2015,3005483559," 2,623.00 "
Staffordshire County Council,31/01/2015,Catering Management Cons Ltd, Schools,Supplies & Services,27/01/2015,3005489506," 2,700.00 "
Staffordshire County Council,31/01/2015,Catering Management Cons Ltd, Schools,Supplies & Services,27/01/2015,3005489980," 3,300.00 "
Staffordshire County Council,31/01/2015,CATKINS NURSERY, Schools,Supplies & Services,14/01/2015,7008643547," 5,335.27 "
Staffordshire County Council,31/01/2015,CATKINS NURSERY, Schools,Supplies & Services,14/01/2015,7008643818," 2,217.71 "
Staffordshire County Council,31/01/2015,CAULIFLOWERS CARDS LTD, Schools,Supplies & Services,20/01/2015,3005486520, 634.50 
Staffordshire County Council,31/01/2015,CAULIFLOWERS CARDS LTD, Schools,Supplies & Services,26/01/2015,3005492728," 1,158.50 "
Staffordshire County Council,31/01/2015,CB Richard Ellis Ltd,Planning & Economic Development,Supplies & Services,23/01/2015,3005489962," 320,570.80 "
Staffordshire County Council,31/01/2015,CBI SECURITY LTD, CXO,Supplies & Services,21/01/2015,3005484611, 540.00 
Staffordshire County Council,31/01/2015,CBI SECURITY LTD, CXO,Supplies & Services,27/01/2015,3005490115, 690.00 
Staffordshire County Council,31/01/2015,CC Support,Adult Social Care,Supplies & Services,16/01/2015,3005483289," 2,490.00 "
Staffordshire County Council,31/01/2015,CELSIAN, Schools,Employees,13/01/2015,3005478649," 1,188.00 "
Staffordshire County Council,31/01/2015,CELSIAN, Schools,Employees,23/01/2015,3005487253," 1,019.34 "
Staffordshire County Council,31/01/2015,CELSIAN, Schools,Employees,23/01/2015,3005490366," 1,188.00 "
Staffordshire County Council,31/01/2015,CELSIAN, Schools,Employees,26/01/2015,3005490412," 1,308.00 "
Staffordshire County Council,31/01/2015,CELSIAN, Schools,Employees,30/01/2015,3005491206," 1,019.34 "
Staffordshire County Council,31/01/2015,CELSIAN, Schools,Employees,30/01/2015,3005493347, 702.00 
Staffordshire County Council,31/01/2015,CELSIAN, Schools,Employees,30/01/2015,3005497800," 1,188.00 "
Staffordshire County Council,31/01/2015,Celsian Education, Schools,Employees,13/01/2015,3005478654," 1,188.00 "
Staffordshire County Council,31/01/2015,CEN GROUP LTD,Planning & Economic Development,Transport,08/01/2015,3005471732," 10,494.00 "
Staffordshire County Council,31/01/2015,CEN GROUP LTD,Planning & Economic Development,Transport,19/01/2015,3005471898," 4,850.00 "
Staffordshire County Council,31/01/2015,Central Connect Ltd,Planning & Economic Development,Transport,19/01/2015,3005483608," 8,823.00 "
Staffordshire County Council,31/01/2015,Centre for Assessment Ltd,Law & Governence,Employees,29/01/2015,3005499273," 2,221.50 "
Staffordshire County Council,31/01/2015,Cerebral Palsy Mid Staffordshi,Cultural Services,Supplies & Services,20/01/2015,3005474626," 5,506.00 "
Staffordshire County Council,31/01/2015,Cerebral Palsy Mid Staffordshi,Cultural Services,Supplies & Services,20/01/2015,3005474626, -   
Staffordshire County Council,31/01/2015,CFT FOSTERING LTD,Other Education and Children's services,Supplies & Services,23/01/2015,7008658521," 3,312.57 "
Staffordshire County Council,31/01/2015,CGP, Schools,Supplies & Services,20/01/2015,3005474484, 527.00 
Staffordshire County Council,31/01/2015,CGP, Schools,Supplies & Services,23/01/2015,3005488035, 765.00 
Staffordshire County Council,31/01/2015,CGP, Schools,Supplies & Services,23/01/2015,3005488035, -   
Staffordshire County Council,31/01/2015,CGP, Schools,Supplies & Services,28/01/2015,3005498417, 660.00 
Staffordshire County Council,31/01/2015,CGP, Schools,Supplies & Services,22/01/2015,4501362914," 1,216.25 "
Staffordshire County Council,31/01/2015,CGP, Schools,Supplies & Services,23/01/2015,4501363495, 660.00 
Staffordshire County Council,31/01/2015,Chadsmead Primary Academy, Schools,Supplies & Services,23/01/2015,3005487322," 3,007.50 "
Staffordshire County Council,31/01/2015,CHADSMOOR COMMUNITY TRUST,Law & Governence,Third Party,16/01/2015,3005482813," 3,500.00 "
Staffordshire County Council,31/01/2015,Challenging Boundaries Consult, CXO,Supplies & Services,21/01/2015,4501362145," 1,500.00 "
Staffordshire County Council,31/01/2015,Challenging Boundaries Consult, CXO,Supplies & Services,20/01/2015,4501362148, 750.00 
Staffordshire County Council,31/01/2015,Changes Heath & Wellbeing,Adult Social Care,Supplies & Services,20/01/2015,3005486403, -   
Staffordshire County Council,31/01/2015,Changes Heath & Wellbeing,Adult Social Care,Supplies & Services,20/01/2015,3005486403," 32,117.66 "
Staffordshire County Council,31/01/2015,Changes Heath & Wellbeing,Other Education and Children's services,Supplies & Services,30/01/2015,3005499311," 7,072.00 "
Staffordshire County Council,31/01/2015,CHAPLINS PANTO'S, Schools,Supplies & Services,12/01/2015,3005474884, 594.00 
Staffordshire County Council,31/01/2015,Charles Watson Taxis,Other Education and Children's services,Transport,07/01/2015,3005467451," 1,600.00 "
Staffordshire County Council,31/01/2015,Charles Watson Taxis,Other Education and Children's services,Transport,14/01/2015,3005468562," 1,120.00 "
Staffordshire County Council,31/01/2015,Charles Watson Taxis,Other Education and Children's services,Transport,14/01/2015,3005469864," 2,379.90 "
Staffordshire County Council,31/01/2015,Charles Watson Taxis,Other Education and Children's services,Transport,14/01/2015,3005469864, -   
Staffordshire County Council,31/01/2015,Charles Watson Taxis,Other Education and Children's services,Transport,14/01/2015,3005469864, -   
Staffordshire County Council,31/01/2015,Charles Watson Taxis,Other Education and Children's services,Transport,14/01/2015,3005469864, -   
Staffordshire County Council,31/01/2015,Chase Aqua Rural Enterprise CI,Other Education and Children's services,Supplies & Services,30/01/2015,4501365099, 828.00 
Staffordshire County Council,31/01/2015,Chase Electrical Wholesale Ltd, Schools,Premises,27/01/2015,4501363544, 601.28 
Staffordshire County Council,31/01/2015,CHASE PROMOTIONS LTD,Trading Service Central Print & Design,Supplies & Services,07/01/2015,4501358019," 1,176.00 "
Staffordshire County Council,31/01/2015,CHASE TRAVEL LTD,Other Education and Children's services,Transport,07/01/2015,3005468817," 1,845.90 "
Staffordshire County Council,31/01/2015,CHEADLE & DISTRICT HOME LINK S,Health,Supplies & Services,22/01/2015,3005486707," 1,623.87 "
Staffordshire County Council,31/01/2015,CHEADLE & DISTRICT HOME LINK S,Health,Supplies & Services,22/01/2015,3005486709," 1,623.87 "
Staffordshire County Council,31/01/2015,CHEADLE & DISTRICT HOME LINK S,Health,Supplies & Services,22/01/2015,3005486712," 1,623.87 "
Staffordshire County Council,31/01/2015,Cheadle Academy, Schools,Employees,28/01/2015,3005483056," 1,100.00 "
Staffordshire County Council,31/01/2015,Cheadle Academy, Schools,Employees,28/01/2015,3005483063, 650.00 
Staffordshire County Council,31/01/2015,Cheadle Academy, Schools,Employees,28/01/2015,3005483124, 600.00 
Staffordshire County Council,31/01/2015,Cheadle Academy, Schools,Supplies & Services,28/01/2015,3005483130, 650.00 
Staffordshire County Council,31/01/2015,Cheadle Academy, Schools,Employees,28/01/2015,3005484828, 650.00 
Staffordshire County Council,31/01/2015,Cheadle Academy, Schools,Supplies & Services,28/01/2015,3005486140, 650.00 
Staffordshire County Council,31/01/2015,Cheadle Academy, Schools,Supplies & Services,28/01/2015,3005486148, 600.00 
Staffordshire County Council,31/01/2015,Cheadle Academy, Schools,Supplies & Services,23/01/2015,3005487954," 6,913.29 "
Staffordshire County Council,31/01/2015,Cheadle Royal Hospital, Schools,Supplies & Services,07/01/2015,3005468772, 651.00 
Staffordshire County Council,31/01/2015,CHEDDLETON PARISH COUNCIL,Highways and transport,Third Party,07/01/2015,4501358503, 817.50 
Staffordshire County Council,31/01/2015,Cheshire & Staffs Homecare Ltd,Health,Supplies & Services,09/01/2015,3005472259, 891.50 
Staffordshire County Council,31/01/2015,Cheshire & Staffs Homecare Ltd,Health,Supplies & Services,15/01/2015,3005473534, 644.28 
Staffordshire County Council,31/01/2015,Cheshire & Staffs Homecare Ltd,Health,Supplies & Services,15/01/2015,3005473544," 1,721.64 "
Staffordshire County Council,31/01/2015,Cheshire & Staffs Homecare Ltd,Health,Supplies & Services,22/01/2015,3005489757," 1,414.84 "
Staffordshire County Council,31/01/2015,CHESHIRE EAST COUNCIL, Schools,Employees,20/01/2015,3005482241," 2,423.00 "
Staffordshire County Council,31/01/2015,Cheshire West & Chester Counci, Schools,Supplies & Services,09/01/2015,4501359288," 26,060.00 "
Staffordshire County Council,31/01/2015,Chess Ltd, Schools,Supplies & Services,21/01/2015,3005488100, -   
Staffordshire County Council,31/01/2015,Chess Ltd, Schools,Supplies & Services,21/01/2015,3005488100, 532.66 
Staffordshire County Council,31/01/2015,Chesterton Academy Trust, Schools,Supplies & Services,23/01/2015,3005487441," 1,778.00 "
Staffordshire County Council,31/01/2015,Chesterton Academy Trust, Schools,Premises,29/01/2015,3005487929," 1,302.04 "
Staffordshire County Council,31/01/2015,CHIEF CONSTABLE OF STAFFORDSHI,Adult Social Care,Supplies & Services,09/01/2015,3005473081," 33,200.40 "
Staffordshire County Council,31/01/2015,CHILDCARE BUREAU LTD,Other Education and Children's services,Supplies & Services,26/01/2015,7008667829," 4,217.86 "
Staffordshire County Council,31/01/2015,CHILDCARE BUREAU LTD,Other Education and Children's services,Supplies & Services,26/01/2015,7008667834," 4,047.98 "
Staffordshire County Council,31/01/2015,CHILDCARE BUREAU LTD,Other Education and Children's services,Supplies & Services,26/01/2015,7008667845," 7,758.06 "
Staffordshire County Council,31/01/2015,Childrens Choice, Schools,Supplies & Services,14/01/2015,7008643624," 3,201.16 "
Staffordshire County Council,31/01/2015,Childrens Choice, Schools,Supplies & Services,14/01/2015,7008643923," 2,217.71 "
Staffordshire County Council,31/01/2015,Children's Choice Therapy Serv, Schools,Supplies & Services,16/01/2015,3005471651," 1,224.00 "
Staffordshire County Council,31/01/2015,Children's Choice Therapy Serv, Schools,Employees,12/01/2015,3005472107," 3,128.00 "
Staffordshire County Council,31/01/2015,Children's Choice Therapy Serv, Schools,Supplies & Services,16/01/2015,3005474695," 2,448.00 "
Staffordshire County Council,31/01/2015,Children's Family Trust,Other Education and Children's services,Supplies & Services,23/01/2015,7008659366," 3,410.00 "
Staffordshire County Council,31/01/2015,CHOICES HOUSING ASSOCIATION,Adult Social Care,Supplies & Services,07/01/2015,3005469644," 3,582.45 "
Staffordshire County Council,31/01/2015,CHOICES HOUSING ASSOCIATION,Adult Social Care,Income,07/01/2015,3005469644,"-1,872.84 "
Staffordshire County Council,31/01/2015,CHOICES HOUSING ASSOCIATION,Adult Social Care,Supplies & Services,07/01/2015,3005469654," 1,987.29 "
Staffordshire County Council,31/01/2015,CHOICES HOUSING ASSOCIATION,Adult Social Care,Income,07/01/2015,3005469654,"-1,324.86 "
Staffordshire County Council,31/01/2015,CHOICES HOUSING ASSOCIATION,Adult Social Care,Supplies & Services,13/01/2015,3005474782," 3,582.45 "
Staffordshire County Council,31/01/2015,CHOICES HOUSING ASSOCIATION,Adult Social Care,Income,13/01/2015,3005474782,"-1,872.84 "
Staffordshire County Council,31/01/2015,CHOICES HOUSING ASSOCIATION,Adult Social Care,Income,13/01/2015,3005474792,"-1,872.84 "
Staffordshire County Council,31/01/2015,CHOICES HOUSING ASSOCIATION,Adult Social Care,Supplies & Services,13/01/2015,3005474792," 3,582.45 "
Staffordshire County Council,31/01/2015,CHOICES HOUSING ASSOCIATION,Adult Social Care,Supplies & Services,13/01/2015,3005478000," 1,987.29 "
Staffordshire County Council,31/01/2015,CHOICES HOUSING ASSOCIATION,Adult Social Care,Income,13/01/2015,3005478000,"-1,324.86 "
Staffordshire County Council,31/01/2015,CHOICES HOUSING ASSOCIATION,Adult Social Care,Supplies & Services,20/01/2015,3005486407," 7,339.36 "
Staffordshire County Council,31/01/2015,Chris Jones,Cultural Services,Third Party,16/01/2015,3005468418, 518.00 
Staffordshire County Council,31/01/2015,CHRIS QUIGLEY EDUCATION LTD, Schools,Employees,07/01/2015,3005468645," 1,680.00 "
Staffordshire County Council,31/01/2015,CHRIS QUIGLEY EDUCATION LTD, Schools,Supplies & Services,07/01/2015,3005468967, 840.00 
Staffordshire County Council,31/01/2015,CHRIS QUIGLEY EDUCATION LTD, Schools,Supplies & Services,13/01/2015,3005473994, 840.00 
Staffordshire County Council,31/01/2015,CHRIS QUIGLEY EDUCATION LTD, Schools,Supplies & Services,13/01/2015,3005474086, 750.00 
Staffordshire County Council,31/01/2015,CHRIS QUIGLEY EDUCATION LTD, Schools,Employees,27/01/2015,3005482082," 1,336.68 "
Staffordshire County Council,31/01/2015,CHRIS QUIGLEY EDUCATION LTD, Schools,Employees,08/01/2015,4501359160," 1,680.00 "
Staffordshire County Council,31/01/2015,Christ Church Academy, Schools,Employees,07/01/2015,3005453549," 2,500.00 "
Staffordshire County Council,31/01/2015,Christ Church Academy, Schools,Supplies & Services,23/01/2015,3005488079," 2,597.57 "
Staffordshire County Council,31/01/2015,CHUBB FIRE & SECURITY LTD, Schools,Premises,12/01/2015,3005474465,-925.20 
Staffordshire County Council,31/01/2015,CHUBB FIRE & SECURITY LTD, Schools,Supplies & Services,12/01/2015,3005477625," 1,274.80 "
Staffordshire County Council,31/01/2015,CHUBB FIRE & SECURITY LTD, Schools,Supplies & Services,15/01/2015,3005478003,-947.09 
Staffordshire County Council,31/01/2015,CHUBB FIRE & SECURITY LTD, Schools,Supplies & Services,27/01/2015,3005496611, 908.82 
Staffordshire County Council,31/01/2015,CHUBB FIRE & SECURITY LTD, Schools,Supplies & Services,27/01/2015,3005496653,-774.43 
Staffordshire County Council,31/01/2015,CHUBB FIRE & SECURITY LTD, Schools,Premises,27/01/2015,4501359793," 1,092.86 "
Staffordshire County Council,31/01/2015,CHUBB FIRE & SECURITY LTD,Property,Capital,30/01/2015,4501365038, 576.00 
Staffordshire County Council,31/01/2015,CHUBB FIRE LTD, CXO,Supplies & Services,07/01/2015,3005336348, 826.32 
Staffordshire County Council,31/01/2015,CHUBB FIRE LTD, CXO,Supplies & Services,07/01/2015,3005336356,-733.50 
Staffordshire County Council,31/01/2015,Chuckle Productions LTD,Law & Governence,Third Party,07/01/2015,3005469020," 1,000.00 "
Staffordshire County Council,31/01/2015,Chuckle Productions LTD,Other Education and Children's services,Supplies & Services,30/01/2015,3005496942, 500.00 
Staffordshire County Council,31/01/2015,Chuckle Productions LTD,Other Education and Children's services,Supplies & Services,28/01/2015,4501364491," 1,055.00 "
Staffordshire County Council,31/01/2015,CIE GROUP LTD,ICT,ICT Equipment,15/01/2015,4501360399, 950.32 
Staffordshire County Council,31/01/2015,CIPFA,ICT,Supplies & Services,16/01/2015,4501361015," 1,350.00 "
Staffordshire County Council,31/01/2015,CIT Education Division, Schools,Supplies & Services,29/01/2015,3005499307," 4,056.00 "
Staffordshire County Council,31/01/2015,CIT VENDOR FINANCE UK LTD, Schools,Supplies & Services,07/01/2015,3005453173, 531.12 
Staffordshire County Council,31/01/2015,CIT VENDOR FINANCE UK LTD, Schools,Supplies & Services,28/01/2015,3005491085, 816.00 
Staffordshire County Council,31/01/2015,CITY BUSES & COACHES,Other Education and Children's services,Transport,14/01/2015,3005480303," 2,475.00 "
Staffordshire County Council,31/01/2015,CITY BUSES & COACHES,Other Education and Children's services,Transport,14/01/2015,3005480303, -   
Staffordshire County Council,31/01/2015,CITY CABS 2000,Other Education and Children's services,Transport,14/01/2015,3005473236, -   
Staffordshire County Council,31/01/2015,CITY CABS 2000,Other Education and Children's services,Transport,14/01/2015,3005473236," 24,197.94 "
Staffordshire County Council,31/01/2015,CITY CABS 2000,Other Education and Children's services,Transport,14/01/2015,3005473236, -   
Staffordshire County Council,31/01/2015,CITY CABS 2000,Other Education and Children's services,Transport,14/01/2015,3005473236, -   
Staffordshire County Council,31/01/2015,CITY CABS 2000,Other Education and Children's services,Transport,14/01/2015,3005473236, -   
Staffordshire County Council,31/01/2015,CITY CABS 2000,Other Education and Children's services,Transport,14/01/2015,3005473236, -   
Staffordshire County Council,31/01/2015,CITY CABS 2000,Other Education and Children's services,Transport,14/01/2015,3005473236, -   
Staffordshire County Council,31/01/2015,CITY CABS 2000,Other Education and Children's services,Transport,14/01/2015,3005473236, -   
Staffordshire County Council,31/01/2015,CITY CABS 2000,Other Education and Children's services,Transport,14/01/2015,3005473236, -   
Staffordshire County Council,31/01/2015,CITY CABS 2000,Other Education and Children's services,Transport,14/01/2015,3005473236, -   
Staffordshire County Council,31/01/2015,CITY CABS 2000,Other Education and Children's services,Transport,14/01/2015,3005473236, -   
Staffordshire County Council,31/01/2015,CITY CABS 2000,Other Education and Children's services,Transport,14/01/2015,3005473236, -   
Staffordshire County Council,31/01/2015,CITY CABS 2000,Other Education and Children's services,Transport,14/01/2015,3005473236, -   
Staffordshire County Council,31/01/2015,CITY CABS 2000,Other Education and Children's services,Transport,14/01/2015,3005473236, -   
Staffordshire County Council,31/01/2015,CITY CABS 2000,Other Education and Children's services,Transport,14/01/2015,3005473236, -   
Staffordshire County Council,31/01/2015,CITY CABS 2000,Other Education and Children's services,Transport,14/01/2015,3005473236, -   
Staffordshire County Council,31/01/2015,CITY CARS (MIDLANDS)LTD,Other Education and Children's services,Transport,14/01/2015,3005470048, 954.00 
Staffordshire County Council,31/01/2015,CITY CARS (MIDLANDS)LTD,Other Education and Children's services,Transport,14/01/2015,3005470056, -   
Staffordshire County Council,31/01/2015,CITY CARS (MIDLANDS)LTD,Other Education and Children's services,Transport,14/01/2015,3005470056, -   
Staffordshire County Council,31/01/2015,CITY CARS (MIDLANDS)LTD,Other Education and Children's services,Transport,14/01/2015,3005470056, -   
Staffordshire County Council,31/01/2015,CITY CARS (MIDLANDS)LTD,Other Education and Children's services,Transport,14/01/2015,3005470056, -   
Staffordshire County Council,31/01/2015,CITY CARS (MIDLANDS)LTD,Other Education and Children's services,Transport,14/01/2015,3005470056," 8,493.31 "
Staffordshire County Council,31/01/2015,CITY CARS (MIDLANDS)LTD,Other Education and Children's services,Transport,14/01/2015,3005470056, -   
Staffordshire County Council,31/01/2015,CITY CENTRE CENTRAL,Other Education and Children's services,Transport,14/01/2015,3005472266, -   
Staffordshire County Council,31/01/2015,CITY CENTRE CENTRAL,Other Education and Children's services,Transport,14/01/2015,3005472266, -   
Staffordshire County Council,31/01/2015,CITY CENTRE CENTRAL,Other Education and Children's services,Transport,14/01/2015,3005472266, -   
Staffordshire County Council,31/01/2015,CITY CENTRE CENTRAL,Other Education and Children's services,Transport,14/01/2015,3005472266, -   
Staffordshire County Council,31/01/2015,CITY CENTRE CENTRAL,Other Education and Children's services,Transport,14/01/2015,3005472266, -   
Staffordshire County Council,31/01/2015,CITY CENTRE CENTRAL,Other Education and Children's services,Transport,14/01/2015,3005472266, -   
Staffordshire County Council,31/01/2015,CITY CENTRE CENTRAL,Other Education and Children's services,Transport,14/01/2015,3005472266, -   
Staffordshire County Council,31/01/2015,CITY CENTRE CENTRAL,Other Education and Children's services,Transport,14/01/2015,3005472266, -   
Staffordshire County Council,31/01/2015,CITY CENTRE CENTRAL,Other Education and Children's services,Transport,14/01/2015,3005472266, -   
Staffordshire County Council,31/01/2015,CITY CENTRE CENTRAL,Other Education and Children's services,Transport,14/01/2015,3005472266, -   
Staffordshire County Council,31/01/2015,CITY CENTRE CENTRAL,Other Education and Children's services,Transport,14/01/2015,3005472266, -   
Staffordshire County Council,31/01/2015,CITY CENTRE CENTRAL,Other Education and Children's services,Transport,14/01/2015,3005472266, -   
Staffordshire County Council,31/01/2015,CITY CENTRE CENTRAL,Other Education and Children's services,Transport,14/01/2015,3005472266, -   
Staffordshire County Council,31/01/2015,CITY CENTRE CENTRAL,Other Education and Children's services,Transport,14/01/2015,3005472266, -   
Staffordshire County Council,31/01/2015,CITY CENTRE CENTRAL,Other Education and Children's services,Transport,14/01/2015,3005472266, -   
Staffordshire County Council,31/01/2015,CITY CENTRE CENTRAL,Other Education and Children's services,Transport,14/01/2015,3005472266, -   
Staffordshire County Council,31/01/2015,CITY CENTRE CENTRAL,Other Education and Children's services,Transport,14/01/2015,3005472266, -   
Staffordshire County Council,31/01/2015,CITY CENTRE CENTRAL,Other Education and Children's services,Transport,14/01/2015,3005472266, -   
Staffordshire County Council,31/01/2015,CITY CENTRE CENTRAL,Other Education and Children's services,Transport,14/01/2015,3005472266, -   
Staffordshire County Council,31/01/2015,CITY CENTRE CENTRAL,Other Education and Children's services,Transport,14/01/2015,3005472266, -   
Staffordshire County Council,31/01/2015,CITY CENTRE CENTRAL,Other Education and Children's services,Transport,14/01/2015,3005472266, -   
Staffordshire County Council,31/01/2015,CITY CENTRE CENTRAL,Other Education and Children's services,Transport,14/01/2015,3005472266," 55,423.31 "
Staffordshire County Council,31/01/2015,City of Wolverhampton College, Schools,Supplies & Services,23/01/2015,3005489591," 14,700.00 "
Staffordshire County Council,31/01/2015,CITY PLUMBING SUPPLIES LTD,Corporate & Democratic Core,Premises,07/01/2015,4501358101," 1,338.00 "
Staffordshire County Council,31/01/2015,CITY SIGNS (MIDLANDS) LTD, Schools,Premises,29/01/2015,4501363779," 1,182.00 "
Staffordshire County Council,31/01/2015,CJ PROGRESSIVE SPORTS C I C, Schools,Employees,20/01/2015,3005480422," 1,800.00 "
Staffordshire County Council,31/01/2015,CJ PROGRESSIVE SPORTS C I C, Schools,Supplies & Services,16/01/2015,3005483528," 1,035.00 "
Staffordshire County Council,31/01/2015,CJB Care Ltd,Health,Supplies & Services,19/01/2015,3005473649," 1,624.00 "
Staffordshire County Council,31/01/2015,CJB Care Ltd,Health,Supplies & Services,26/01/2015,3005489887," 1,463.00 "
Staffordshire County Council,31/01/2015,CJB Care Ltd,Health,Supplies & Services,26/01/2015,3005489889," 1,806.00 "
Staffordshire County Council,31/01/2015,Clay Housing,Other Education and Children's services,Supplies & Services,14/01/2015,3005468367," 7,440.00 "
Staffordshire County Council,31/01/2015,Clay Housing,Other Education and Children's services,Supplies & Services,14/01/2015,3005468368," 3,216.40 "
Staffordshire County Council,31/01/2015,Clay Housing,Other Education and Children's services,Supplies & Services,14/01/2015,3005468369," 3,036.40 "
Staffordshire County Council,31/01/2015,CLEANING & HYGIENE DIST LTD, Schools,Premises,15/01/2015,3005481537, 782.28 
Staffordshire County Council,31/01/2015,CLEANING & HYGIENE DIST LTD,Adult Social Care,Supplies & Services,13/01/2015,4501342767, -   
Staffordshire County Council,31/01/2015,CLEANING & HYGIENE DIST LTD,Adult Social Care,Supplies & Services,13/01/2015,4501342767, -   
Staffordshire County Council,31/01/2015,CLEANING & HYGIENE DIST LTD,Adult Social Care,Supplies & Services,13/01/2015,4501342767, 546.62 
Staffordshire County Council,31/01/2015,CLEANING & HYGIENE DIST LTD, Schools,Premises,26/01/2015,4501360443, 524.52 
Staffordshire County Council,31/01/2015,CLEANING & HYGIENE DIST LTD, Schools,Supplies & Services,19/01/2015,4501361407, 670.26 
Staffordshire County Council,31/01/2015,CLEANING & HYGIENE DIST LTD,Corporate & Democratic Core,Supplies & Services,19/01/2015,4501361722," 1,696.14 "
Staffordshire County Council,31/01/2015,CLEANING & HYGIENE DIST LTD, Schools,Premises,26/01/2015,4501362234," 1,101.62 "
Staffordshire County Council,31/01/2015,CLEANING & HYGIENE DIST LTD, Schools,Premises,29/01/2015,4501362714, 540.98 
Staffordshire County Council,31/01/2015,CLEANING & HYGIENE DIST LTD,Trading Service Cleaning Services,Premises,22/01/2015,4501362964," 1,799.51 "
Staffordshire County Council,31/01/2015,CLEANING & HYGIENE DIST LTD,Trading Service Cleaning Services,Premises,26/01/2015,4501363626," 5,747.68 "
Staffordshire County Council,31/01/2015,CLEANING & HYGIENE DIST LTD,Trading Service Cleaning Services,Premises,29/01/2015,4501364471," 12,778.88 "
Staffordshire County Council,31/01/2015,CLEANING FORCE OFFICE CLEANERS, Schools,Premises,22/01/2015,3005489907, -   
Staffordshire County Council,31/01/2015,CLEANING FORCE OFFICE CLEANERS, Schools,Premises,22/01/2015,3005489907," 2,536.23 "
Staffordshire County Council,31/01/2015,Clena Supplies, Schools,Supplies & Services,28/01/2015,4501362285, 720.27 
Staffordshire County Council,31/01/2015,Clifford House Fostering Ltd,Other Education and Children's services,Supplies & Services,27/01/2015,3005496769," 3,489.67 "
Staffordshire County Council,31/01/2015,Clifford House Fostering Ltd,Other Education and Children's services,Supplies & Services,27/01/2015,3005496782," 2,442.77 "
Staffordshire County Council,31/01/2015,Clifford House Fostering Ltd,Other Education and Children's services,Supplies & Services,27/01/2015,3005496786," 2,507.87 "
Staffordshire County Council,31/01/2015,Clifford House Fostering Ltd,Other Education and Children's services,Supplies & Services,27/01/2015,3005496789," 2,644.36 "
Staffordshire County Council,31/01/2015,Clifford House Fostering Ltd,Other Education and Children's services,Supplies & Services,27/01/2015,3005496794," 2,644.36 "
Staffordshire County Council,31/01/2015,Clifford House Fostering Ltd,Other Education and Children's services,Supplies & Services,27/01/2015,3005496809," 2,507.87 "
Staffordshire County Council,31/01/2015,Clifford House Fostering Ltd,Other Education and Children's services,Supplies & Services,27/01/2015,3005496813," 2,507.87 "
Staffordshire County Council,31/01/2015,Clifford House Fostering Ltd,Other Education and Children's services,Supplies & Services,27/01/2015,3005496913," 3,582.67 "
Staffordshire County Council,31/01/2015,Clifford House Fostering Ltd,Other Education and Children's services,Supplies & Services,27/01/2015,3005496923," 3,489.67 "
Staffordshire County Council,31/01/2015,Clifford House Fostering Ltd,Other Education and Children's services,Supplies & Services,23/01/2015,7008658496," 8,440.41 "
Staffordshire County Council,31/01/2015,Clifford House Fostering Ltd,Other Education and Children's services,Supplies & Services,23/01/2015,7008658528," 8,505.51 "
Staffordshire County Council,31/01/2015,Clifford House Fostering Ltd,Other Education and Children's services,Supplies & Services,23/01/2015,7008658572," 8,871.31 "
Staffordshire County Council,31/01/2015,Clifford Thames(Holdings) Ltd,Trading Service County Fleet Care,Supplies & Services,14/01/2015,3005472082," 5,604.67 "
Staffordshire County Council,31/01/2015,Clinical Psychology Associates, Schools,Supplies & Services,14/01/2015,3005477566," 2,250.00 "
Staffordshire County Council,31/01/2015,CLOWES COACHES,Other Education and Children's services,Transport,13/01/2015,3005469998," 2,438.46 "
Staffordshire County Council,31/01/2015,CLOWES COACHES,Other Education and Children's services,Transport,13/01/2015,3005469998, -   
Staffordshire County Council,31/01/2015,Club Europe Holidays Ltd,Other Education and Children's services,Supplies & Services,07/01/2015,3005468798," 1,500.00 "
Staffordshire County Council,31/01/2015,Clubs Complete Ltd, Schools,Employees,30/01/2015,3005484845, 576.00 
Staffordshire County Council,31/01/2015,CMP MINI BUSES,Other Education and Children's services,Transport,13/01/2015,3005469992, -   
Staffordshire County Council,31/01/2015,CMP MINI BUSES,Other Education and Children's services,Transport,13/01/2015,3005469992," 1,971.45 "
Staffordshire County Council,31/01/2015,COASTAL LINER LTD,Planning & Economic Development,Transport,14/01/2015,3005471888," 2,434.37 "
Staffordshire County Council,31/01/2015,COASTAL LINER LTD,Other Education and Children's services,Transport,14/01/2015,3005471888," 1,852.50 "
Staffordshire County Council,31/01/2015,Codsall & Bilbrook Cars,Other Education and Children's services,Transport,22/01/2015,3005487584, 703.00 
Staffordshire County Council,31/01/2015,Codsall & Bilbrook Cars,Other Education and Children's services,Transport,22/01/2015,3005487589, 888.00 
Staffordshire County Council,31/01/2015,CODSALL FLOORING, Schools,Premises,09/01/2015,4501358070, 639.60 
Staffordshire County Council,31/01/2015,CODSALL METHODIST PRE-SCH GRP, Schools,Supplies & Services,14/01/2015,7008643690," 1,493.87 "
Staffordshire County Council,31/01/2015,CODSALL METHODIST PRE-SCH GRP, Schools,Supplies & Services,14/01/2015,7008643995," 2,940.67 "
Staffordshire County Council,31/01/2015,Colliery Healthcare,Adult Social Care,Supplies & Services,14/01/2015,3005474779, 745.60 
Staffordshire County Council,31/01/2015,Colliery Healthcare,Adult Social Care,Supplies & Services,26/01/2015,3005491641, 786.60 
Staffordshire County Council,31/01/2015,COLLINSON & GRAINGER LTD, Schools,Premises,22/01/2015,3005483349, 723.27 
Staffordshire County Council,31/01/2015,COLWICH PARISH COUNCIL,Highways and transport,Third Party,16/01/2015,3005470219," 1,212.48 "
Staffordshire County Council,31/01/2015,Comensura Ltd,Other Education and Children's services,Employees,09/01/2015,3005468294, -   
Staffordshire County Council,31/01/2015,Comensura Ltd,ICT,Employees,09/01/2015,3005468294, -   
Staffordshire County Council,31/01/2015,Comensura Ltd, CXO,Employees,09/01/2015,3005468294, -   
Staffordshire County Council,31/01/2015,Comensura Ltd,Other Education and Children's services,Employees,09/01/2015,3005468294, -   
Staffordshire County Council,31/01/2015,Comensura Ltd,Other Education and Children's services,Employees,09/01/2015,3005468294, -   
Staffordshire County Council,31/01/2015,Comensura Ltd,Health,Employees,09/01/2015,3005468294, -   
Staffordshire County Council,31/01/2015,Comensura Ltd,Other Education and Children's services,Employees,09/01/2015,3005468294, -   
Staffordshire County Council,31/01/2015,Comensura Ltd,Other Education and Children's services,Employees,09/01/2015,3005468294, -   
Staffordshire County Council,31/01/2015,Comensura Ltd,Planning & Economic Development,Employees,09/01/2015,3005468294, -   
Staffordshire County Council,31/01/2015,Comensura Ltd,Other Education and Children's services,Employees,09/01/2015,3005468294, -   
Staffordshire County Council,31/01/2015,Comensura Ltd,Health,Employees,09/01/2015,3005468294, -   
Staffordshire County Council,31/01/2015,Comensura Ltd,Other Education and Children's services,Employees,09/01/2015,3005468294, -   
Staffordshire County Council,31/01/2015,Comensura Ltd,Other Education and Children's services,Employees,09/01/2015,3005468294, -   
Staffordshire County Council,31/01/2015,Comensura Ltd,Health,Employees,09/01/2015,3005468294, -   
Staffordshire County Council,31/01/2015,Comensura Ltd,Other Education and Children's services,Employees,09/01/2015,3005468294, -   
Staffordshire County Council,31/01/2015,Comensura Ltd,Other Education and Children's services,Employees,09/01/2015,3005468294, -   
Staffordshire County Council,31/01/2015,Comensura Ltd,Health,Employees,09/01/2015,3005468294, -   
Staffordshire County Council,31/01/2015,Comensura Ltd,Other Education and Children's services,Employees,09/01/2015,3005468294, -   
Staffordshire County Council,31/01/2015,Comensura Ltd,Health,Employees,09/01/2015,3005468294, -   
Staffordshire County Council,31/01/2015,Comensura Ltd,Health,Employees,09/01/2015,3005468294, -   
Staffordshire County Council,31/01/2015,Comensura Ltd,Adult Social Care,Employees,09/01/2015,3005468294, -   
Staffordshire County Council,31/01/2015,Comensura Ltd,Law & Governence,Employees,09/01/2015,3005468294, -   
Staffordshire County Council,31/01/2015,Comensura Ltd,Other Education and Children's services,Employees,09/01/2015,3005468294, -   
Staffordshire County Council,31/01/2015,Comensura Ltd,Other Education and Children's services,Employees,09/01/2015,3005468294, -   
Staffordshire County Council,31/01/2015,Comensura Ltd, CXO,Employees,09/01/2015,3005468294, -   
Staffordshire County Council,31/01/2015,Comensura Ltd,Adult Social Care,Employees,09/01/2015,3005468294, -   
Staffordshire County Council,31/01/2015,Comensura Ltd,Adult Social Care,Employees,09/01/2015,3005468294, -   
Staffordshire County Council,31/01/2015,Comensura Ltd,ICT,Employees,09/01/2015,3005468294, -   
Staffordshire County Council,31/01/2015,Comensura Ltd, CXO,Employees,09/01/2015,3005468294, -   
Staffordshire County Council,31/01/2015,Comensura Ltd,Other Education and Children's services,Employees,09/01/2015,3005468294, -   
Staffordshire County Council,31/01/2015,Comensura Ltd,ICT,Employees,09/01/2015,3005468294," 141,868.79 "
Staffordshire County Council,31/01/2015,Comensura Ltd,Adult Social Care,Employees,09/01/2015,3005468294, -   
Staffordshire County Council,31/01/2015,Comensura Ltd,Health,Employees,09/01/2015,3005468294, -   
Staffordshire County Council,31/01/2015,Comensura Ltd,Other Education and Children's services,Employees,09/01/2015,3005468294, -   
Staffordshire County Council,31/01/2015,Comensura Ltd,Other Education and Children's services,Employees,09/01/2015,3005468294, -   
Staffordshire County Council,31/01/2015,Comensura Ltd,Other Education and Children's services,Employees,09/01/2015,3005468294, -   
Staffordshire County Council,31/01/2015,Comensura Ltd,Other Education and Children's services,Employees,09/01/2015,3005468294, -   
Staffordshire County Council,31/01/2015,Comensura Ltd,Health,Employees,09/01/2015,3005468294, -   
Staffordshire County Council,31/01/2015,Comensura Ltd,Other Education and Children's services,Employees,09/01/2015,3005468294, -   
Staffordshire County Council,31/01/2015,Comensura Ltd,Adult Social Care,Employees,09/01/2015,3005468294, -   
Staffordshire County Council,31/01/2015,Comensura Ltd,Other Education and Children's services,Employees,09/01/2015,3005468294, -   
Staffordshire County Council,31/01/2015,Comensura Ltd,Other Education and Children's services,Employees,09/01/2015,3005468294, -   
Staffordshire County Council,31/01/2015,Comensura Ltd,Law & Governence,Employees,09/01/2015,3005468294, -   
Staffordshire County Council,31/01/2015,Comensura Ltd,Adult Social Care,Employees,09/01/2015,3005468294, -   
Staffordshire County Council,31/01/2015,Comensura Ltd,Health,Employees,09/01/2015,3005468294, -   
Staffordshire County Council,31/01/2015,Comensura Ltd, CXO,Employees,09/01/2015,3005468294, -   
Staffordshire County Council,31/01/2015,Comensura Ltd,Other Education and Children's services,Employees,09/01/2015,3005468294, -   
Staffordshire County Council,31/01/2015,Comensura Ltd,Other Education and Children's services,Employees,09/01/2015,3005468294, -   
Staffordshire County Council,31/01/2015,Comensura Ltd,ICT,Employees,09/01/2015,3005468294, -   
Staffordshire County Council,31/01/2015,Comensura Ltd,Health,Employees,09/01/2015,3005468294, -   
Staffordshire County Council,31/01/2015,Comensura Ltd,Other Education and Children's services,Employees,09/01/2015,3005468294, -   
Staffordshire County Council,31/01/2015,Comensura Ltd,Other Education and Children's services,Employees,09/01/2015,3005468294, -   
Staffordshire County Council,31/01/2015,Comensura Ltd,Health,Employees,09/01/2015,3005468294, -   
Staffordshire County Council,31/01/2015,Comensura Ltd,Health,Employees,09/01/2015,3005468294, -   
Staffordshire County Council,31/01/2015,Comensura Ltd,Health,Employees,09/01/2015,3005468294, -   
Staffordshire County Council,31/01/2015,Comensura Ltd,Adult Social Care,Employees,09/01/2015,3005468294, -   
Staffordshire County Council,31/01/2015,Comensura Ltd,Other Education and Children's services,Employees,09/01/2015,3005468294, -   
Staffordshire County Council,31/01/2015,Comensura Ltd,Other Education and Children's services,Employees,09/01/2015,3005468294, -   
Staffordshire County Council,31/01/2015,Comensura Ltd,ICT,Employees,09/01/2015,3005468294, -   
Staffordshire County Council,31/01/2015,Comensura Ltd,Other Education and Children's services,Employees,09/01/2015,3005468294, -   
Staffordshire County Council,31/01/2015,Comensura Ltd,Other Education and Children's services,Employees,09/01/2015,3005468294, -   
Staffordshire County Council,31/01/2015,Comensura Ltd,Adult Social Care,Employees,21/01/2015,3005487543, -   
Staffordshire County Council,31/01/2015,Comensura Ltd,Health,Employees,21/01/2015,3005487543, -   
Staffordshire County Council,31/01/2015,Comensura Ltd,Other Education and Children's services,Employees,21/01/2015,3005487543, -   
Staffordshire County Council,31/01/2015,Comensura Ltd,Other Education and Children's services,Employees,21/01/2015,3005487543, -   
Staffordshire County Council,31/01/2015,Comensura Ltd,Health,Employees,21/01/2015,3005487543, -   
Staffordshire County Council,31/01/2015,Comensura Ltd,Other Education and Children's services,Employees,21/01/2015,3005487543, -   
Staffordshire County Council,31/01/2015,Comensura Ltd,ICT,Employees,21/01/2015,3005487543, -   
Staffordshire County Council,31/01/2015,Comensura Ltd,Other Education and Children's services,Employees,21/01/2015,3005487543, -   
Staffordshire County Council,31/01/2015,Comensura Ltd,Health,Employees,21/01/2015,3005487543, -   
Staffordshire County Council,31/01/2015,Comensura Ltd,Other Education and Children's services,Employees,21/01/2015,3005487543, -   
Staffordshire County Council,31/01/2015,Comensura Ltd,Health,Employees,21/01/2015,3005487543, -   
Staffordshire County Council,31/01/2015,Comensura Ltd,Other Education and Children's services,Employees,21/01/2015,3005487543, -   
Staffordshire County Council,31/01/2015,Comensura Ltd,Other Education and Children's services,Employees,21/01/2015,3005487543, -   
Staffordshire County Council,31/01/2015,Comensura Ltd,Adult Social Care,Employees,21/01/2015,3005487543, -   
Staffordshire County Council,31/01/2015,Comensura Ltd,Health,Employees,21/01/2015,3005487543, -   
Staffordshire County Council,31/01/2015,Comensura Ltd,Law & Governence,Employees,21/01/2015,3005487543, -   
Staffordshire County Council,31/01/2015,Comensura Ltd,Other Education and Children's services,Employees,21/01/2015,3005487543, -   
Staffordshire County Council,31/01/2015,Comensura Ltd,Adult Social Care,Employees,21/01/2015,3005487543, -   
Staffordshire County Council,31/01/2015,Comensura Ltd,ICT,Employees,21/01/2015,3005487543, -   
Staffordshire County Council,31/01/2015,Comensura Ltd,Other Education and Children's services,Employees,21/01/2015,3005487543, -   
Staffordshire County Council,31/01/2015,Comensura Ltd,ICT,Employees,21/01/2015,3005487543, -   
Staffordshire County Council,31/01/2015,Comensura Ltd,Health,Employees,21/01/2015,3005487543, -   
Staffordshire County Council,31/01/2015,Comensura Ltd,Other Education and Children's services,Employees,21/01/2015,3005487543, -   
Staffordshire County Council,31/01/2015,Comensura Ltd,ICT,Employees,21/01/2015,3005487543, -   
Staffordshire County Council,31/01/2015,Comensura Ltd,Other Education and Children's services,Employees,21/01/2015,3005487543, -   
Staffordshire County Council,31/01/2015,Comensura Ltd,Other Education and Children's services,Employees,21/01/2015,3005487543, -   
Staffordshire County Council,31/01/2015,Comensura Ltd,Other Education and Children's services,Employees,21/01/2015,3005487543, -   
Staffordshire County Council,31/01/2015,Comensura Ltd,Health,Employees,21/01/2015,3005487543, -   
Staffordshire County Council,31/01/2015,Comensura Ltd,Adult Social Care,Employees,21/01/2015,3005487543, -   
Staffordshire County Council,31/01/2015,Comensura Ltd,ICT,Employees,21/01/2015,3005487543, -   
Staffordshire County Council,31/01/2015,Comensura Ltd,Health,Employees,21/01/2015,3005487543, -   
Staffordshire County Council,31/01/2015,Comensura Ltd,Other Education and Children's services,Employees,21/01/2015,3005487543, -   
Staffordshire County Council,31/01/2015,Comensura Ltd,Other Education and Children's services,Employees,21/01/2015,3005487543," 96,246.25 "
Staffordshire County Council,31/01/2015,Comensura Ltd,Law & Governence,Employees,21/01/2015,3005487543, -   
Staffordshire County Council,31/01/2015,Comensura Ltd,Adult Social Care,Employees,21/01/2015,3005487543, -   
Staffordshire County Council,31/01/2015,Comensura Ltd,Adult Social Care,Employees,21/01/2015,3005487543, -   
Staffordshire County Council,31/01/2015,Comensura Ltd,ICT,Employees,21/01/2015,3005487543, -   
Staffordshire County Council,31/01/2015,Comensura Ltd,Adult Social Care,Employees,21/01/2015,3005487543, -   
Staffordshire County Council,31/01/2015,Comensura Ltd,Other Education and Children's services,Employees,21/01/2015,3005487543, -   
Staffordshire County Council,31/01/2015,Comensura Ltd, CXO,Employees,21/01/2015,3005487543, -   
Staffordshire County Council,31/01/2015,Comensura Ltd,Other Education and Children's services,Employees,21/01/2015,3005487543, -   
Staffordshire County Council,31/01/2015,Comensura Ltd,Other Education and Children's services,Employees,21/01/2015,3005487543, -   
Staffordshire County Council,31/01/2015,Comensura Ltd,Other Education and Children's services,Employees,21/01/2015,3005487543, -   
Staffordshire County Council,31/01/2015,Comensura Ltd,Other Education and Children's services,Employees,21/01/2015,3005487543, -   
Staffordshire County Council,31/01/2015,Comensura Ltd,Planning & Economic Development,Employees,21/01/2015,3005487543, -   
Staffordshire County Council,31/01/2015,Comensura Ltd, CXO,Employees,23/01/2015,3005487556, -   
Staffordshire County Council,31/01/2015,Comensura Ltd,ICT,Employees,23/01/2015,3005487556, -   
Staffordshire County Council,31/01/2015,Comensura Ltd,Health,Employees,23/01/2015,3005487556, -   
Staffordshire County Council,31/01/2015,Comensura Ltd,Other Education and Children's services,Employees,23/01/2015,3005487556, -   
Staffordshire County Council,31/01/2015,Comensura Ltd,Planning & Economic Development,Employees,23/01/2015,3005487556, -   
Staffordshire County Council,31/01/2015,Comensura Ltd,Other Education and Children's services,Employees,23/01/2015,3005487556, -   
Staffordshire County Council,31/01/2015,Comensura Ltd,Other Education and Children's services,Employees,23/01/2015,3005487556, -   
Staffordshire County Council,31/01/2015,Comensura Ltd,Other Education and Children's services,Employees,23/01/2015,3005487556, -   
Staffordshire County Council,31/01/2015,Comensura Ltd,ICT,Employees,23/01/2015,3005487556, -   
Staffordshire County Council,31/01/2015,Comensura Ltd,Other Education and Children's services,Employees,23/01/2015,3005487556, -   
Staffordshire County Council,31/01/2015,Comensura Ltd,ICT,Employees,23/01/2015,3005487556, -   
Staffordshire County Council,31/01/2015,Comensura Ltd,Other Education and Children's services,Employees,23/01/2015,3005487556, -   
Staffordshire County Council,31/01/2015,Comensura Ltd,Other Education and Children's services,Employees,23/01/2015,3005487556, -   
Staffordshire County Council,31/01/2015,Comensura Ltd,ICT,Employees,23/01/2015,3005487556, -   
Staffordshire County Council,31/01/2015,Comensura Ltd,Adult Social Care,Employees,23/01/2015,3005487556, -   
Staffordshire County Council,31/01/2015,Comensura Ltd,ICT,Employees,23/01/2015,3005487556, -   
Staffordshire County Council,31/01/2015,Comensura Ltd,Other Education and Children's services,Employees,23/01/2015,3005487556, -   
Staffordshire County Council,31/01/2015,Comensura Ltd,Other Education and Children's services,Employees,23/01/2015,3005487556, -   
Staffordshire County Council,31/01/2015,Comensura Ltd,Adult Social Care,Employees,23/01/2015,3005487556, -   
Staffordshire County Council,31/01/2015,Comensura Ltd,Other Education and Children's services,Employees,23/01/2015,3005487556, -   
Staffordshire County Council,31/01/2015,Comensura Ltd,Other Education and Children's services,Employees,23/01/2015,3005487556, -   
Staffordshire County Council,31/01/2015,Comensura Ltd, CXO,Employees,23/01/2015,3005487556, -   
Staffordshire County Council,31/01/2015,Comensura Ltd,Health,Employees,23/01/2015,3005487556," 138,339.54 "
Staffordshire County Council,31/01/2015,Comensura Ltd,Other Education and Children's services,Employees,23/01/2015,3005487556, -   
Staffordshire County Council,31/01/2015,Comensura Ltd,Other Education and Children's services,Employees,23/01/2015,3005487556, -   
Staffordshire County Council,31/01/2015,Comensura Ltd,Health,Employees,23/01/2015,3005487556, -   
Staffordshire County Council,31/01/2015,Comensura Ltd,Other Education and Children's services,Employees,23/01/2015,3005487556, -   
Staffordshire County Council,31/01/2015,Comensura Ltd,Other Education and Children's services,Employees,23/01/2015,3005487556, -   
Staffordshire County Council,31/01/2015,Comensura Ltd,Other Education and Children's services,Employees,23/01/2015,3005487556, -   
Staffordshire County Council,31/01/2015,Comensura Ltd,Other Education and Children's services,Employees,23/01/2015,3005487556, -   
Staffordshire County Council,31/01/2015,Comensura Ltd,Other Education and Children's services,Employees,23/01/2015,3005487556, -   
Staffordshire County Council,31/01/2015,Comensura Ltd,Adult Social Care,Employees,23/01/2015,3005487556, -   
Staffordshire County Council,31/01/2015,Comensura Ltd,Other Education and Children's services,Employees,23/01/2015,3005487556, -   
